Body Name,Trans.date,Department Code,Department,Expense Area Code,Expense Area,Expense type code,Expense type,Amount Paid (�),Supplier name,Extended description,TransNo,Period
Rother District Council,09/03/2020,091HOUSING,Housing and Community Services,20208,Care In The Community,D2513,Hired and Contracted services,315.00,Safe Partnership Ltd,Hired and Contracted services,2028600,202108
Rother District Council,04/05/2020,091HOUSING,Housing and Community Services,20108,Bexhill Promenade & Foreshore,B1100,Repairs to Premises,60.74,Network Rail,Repairs to Premises - Specified Repairs and Works listed,2028923,202108
Rother District Council,12/06/2020,091HOUSING,Housing and Community Services,20208,Care In The Community,D2513,Hired and Contracted services,290.00,Safe Partnership Ltd,Hired and Contracted services,2028459,202108
Rother District Council,12/06/2020,091HOUSING,Housing and Community Services,20208,Care In The Community,D2508,Removals and Storage,197.00,Safe Partnership Ltd,Removals and Storage,2028460,202108
Rother District Council,12/06/2020,091HOUSING,Housing and Community Services,20208,Care In The Community,D2513,Hired and Contracted services,185.00,Safe Partnership Ltd,Hired and Contracted services,2028461,202108
Rother District Council,29/06/2020,091HOUSING,Housing and Community Services,20208,Care In The Community,D2513,Hired and Contracted services,290.00,Safe Partnership Ltd,Hired and Contracted services,2028458,202108
Rother District Council,29/07/2020,091HOUSING,Housing and Community Services,20208,Care In The Community,D2513,Hired and Contracted services,290.00,Safe Partnership Ltd,Hired and Contracted services,2028456,202108
Rother District Council,29/07/2020,091HOUSING,Housing and Community Services,20208,Care In The Community,D2513,Hired and Contracted services,200.00,Safe Partnership Ltd,Hired and Contracted services,2028457,202108
Rother District Council,13/10/2020,091HOUSING,Housing and Community Services,20208,Care In The Community,D2513,Hired and Contracted services,305.00,Safe Partnership Ltd,Hired and Contracted services,2028445,202108
Rother District Council,06/01/2021,091HOUSING,Housing and Community Services,20208,Care In The Community,D2513,Hired and Contracted services,245.00,Safe Partnership Ltd,Hired and Contracted services,2028446,202108
Rother District Council,07/01/2021,091HOUSING,Housing and Community Services,20204,Housing Administration Account,A1110,Agency Staff,"1,292.00","G2V Recruitment Group Ltd, t/a Vivid Resourcing",Agency Staff,2029255,202109
Rother District Council,07/01/2021,071STRAT,Strategy and Planning,20246,Planning Applications,D2509,Consultants and Other Services,"5,310.00","G2V Recruitment Group Ltd, t/a Vivid Resourcing",Consultants and other services - Consultants Fees,2029254,202109
Rother District Council,19/01/2021,091HOUSING,Housing and Community Services,20208,Care In The Community,D2513,Hired and Contracted services,315.00,Safe Partnership Ltd,Hired and Contracted services,2028447,202108
Rother District Council,19/01/2021,091HOUSING,Housing and Community Services,20208,Care In The Community,D2513,Hired and Contracted services,320.00,Safe Partnership Ltd,Hired and Contracted services,2028448,202108
Rother District Council,12/02/2021,091HOUSING,Housing and Community Services,20208,Care In The Community,D2513,Hired and Contracted services,185.00,Safe Partnership Ltd,Hired and Contracted services,2028449,202108
Rother District Council,08/03/2021,091HOUSING,Housing and Community Services,20208,Care In The Community,D2513,Hired and Contracted services,310.00,Safe Partnership Ltd,Hired and Contracted services,2028450,202108
Rother District Council,24/03/2021,091HOUSING,Housing and Community Services,20208,Care In The Community,D2513,Hired and Contracted services,297.00,Safe Partnership Ltd,Hired and Contracted services,2028451,202108
Rother District Council,24/03/2021,091HOUSING,Housing and Community Services,20208,Care In The Community,D2513,Hired and Contracted services,210.00,Safe Partnership Ltd,Hired and Contracted services,2028452,202108
Rother District Council,25/03/2021,081ACQUISIT,Chief Executive & Corporate Core,20171,Human Resources,D2928,Disability Assistance Programme,"2,452.15",Dyslexia Box Ltd,Disability Assistance Programme,2028071,202107
Rother District Council,31/03/2021,091HOUSING,Housing and Community Services,20133,Refuse Collection,E2302,Third party payment private contractors,30.00,Data Shredding Services Ltd,Third party payment private contractors - Commercial Waste Collection Contract,2028790,202108
Rother District Council,13/04/2021,041ENVIRON,Environmental Services,20280,Covid 19 RHSS Reopening High Streets Safely,D2513,Hired and Contracted services,206.67,Rother Valley Press Ltd,Hired and contracted services - Service fee paid,2027917,202107
Rother District Council,30/04/2021,091HOUSING,Housing and Community Services,70727,Capital - Refuse Equipment,N1008,Equipment,"4,432.49",Wybone Ltd,Capital - Purchase of Equipment,2026216,202108
Rother District Council,10/05/2021,091HOUSING,Housing and Community Services,20208,Care In The Community,D2513,Hired and Contracted services,347.00,Safe Partnership Ltd,Hired and Contracted services,2028453,202108
Rother District Council,10/05/2021,091HOUSING,Housing and Community Services,20208,Care In The Community,D2513,Hired and Contracted services,227.00,Safe Partnership Ltd,Hired and Contracted services,2028454,202108
Rother District Council,27/05/2021,091HOUSING,Housing and Community Services,20208,Care In The Community,D2513,Hired and Contracted services,240.00,Safe Partnership Ltd,Hired and Contracted services,2028455,202108
Rother District Council,01/06/2021,041ENVIRON,Environmental Services,20129,Community Safety - CCTV costs only,B2201,Electricity,291.50,Ecotricity Ltd,Electricity - Electricity Charges,2027821,202107
Rother District Council,01/06/2021,041ENVIRON,Environmental Services,20129,Community Safety - CCTV costs only,B2201,Electricity,38.87,Ecotricity Ltd,Electricity - Electricity Charges,2027822,202107
Rother District Council,01/06/2021,091HOUSING,Housing and Community Services,20108,Bexhill Promenade & Foreshore,B2201,Electricity,1.64,Ecotricity Ltd,Electricity - Electricity Charges,2027823,202107
Rother District Council,01/06/2021,091HOUSING,Housing and Community Services,20108,Bexhill Promenade & Foreshore,B2201,Electricity,3.00,Ecotricity Ltd,Electricity - Electricity Charges,2027824,202107
Rother District Council,01/06/2021,091HOUSING,Housing and Community Services,20108,Bexhill Promenade & Foreshore,B2201,Electricity,7.13,Ecotricity Ltd,Electricity - Electricity Charges,2027825,202107
Rother District Council,01/06/2021,091HOUSING,Housing and Community Services,20114,Bexhill Parks & Open Spaces,B2201,Electricity,19.33,Ecotricity Ltd,Electricity - Electricity Charges,2027820,202107
Rother District Council,01/06/2021,091HOUSING,Housing and Community Services,20137,Car Parks,B2201,Electricity,38.89,Ecotricity Ltd,Electricity - Electricity Charges,2027821,202107
Rother District Council,01/06/2021,091HOUSING,Housing and Community Services,20137,Car Parks,B2201,Electricity,5.18,Ecotricity Ltd,Electricity - Electricity Charges,2027822,202107
Rother District Council,01/06/2021,091HOUSING,Housing and Community Services,20137,Car Parks,B2201,Electricity,10.35,Ecotricity Ltd,Electricity - Electricity Charges,2027823,202107
Rother District Council,01/06/2021,091HOUSING,Housing and Community Services,20137,Car Parks,B2201,Electricity,19.00,Ecotricity Ltd,Electricity - Electricity Charges,2027824,202107
Rother District Council,01/06/2021,091HOUSING,Housing and Community Services,20137,Car Parks,B2201,Electricity,45.12,Ecotricity Ltd,Electricity - Electricity Charges,2027825,202107
Rother District Council,01/06/2021,091HOUSING,Housing and Community Services,20138,Residual Highway Services,B2201,Electricity,32.36,Ecotricity Ltd,Electricity - Electricity Charges,2027821,202107
Rother District Council,01/06/2021,091HOUSING,Housing and Community Services,20138,Residual Highway Services,B2201,Electricity,4.31,Ecotricity Ltd,Electricity - Electricity Charges,2027822,202107
Rother District Council,01/06/2021,091HOUSING,Housing and Community Services,20138,Residual Highway Services,B2201,Electricity,1.63,Ecotricity Ltd,Electricity - Electricity Charges,2027823,202107
Rother District Council,01/06/2021,091HOUSING,Housing and Community Services,20138,Residual Highway Services,B2201,Electricity,3.00,Ecotricity Ltd,Electricity - Electricity Charges,2027824,202107
Rother District Council,01/06/2021,091HOUSING,Housing and Community Services,20138,Residual Highway Services,B2201,Electricity,7.12,Ecotricity Ltd,Electricity - Electricity Charges,2027825,202107
Rother District Council,07/06/2021,041ENVIRON,Environmental Services,20130,Crime and Disorder Initiatives,D2923,Grants made,"5,000.00",Seaview,Grants made - Crime Prevention Initiative (JAG),2028398,202108
Rother District Council,09/06/2021,081ACQUISIT,"Acquisitions, Transformation and Regeneration",20122,Economic Development,A2203,Training,289.00,Lloyds Bank,Training,2027669,202107
Rother District Council,09/06/2021,081ACQUISIT,"Acquisitions, Transformation and Regeneration",20101,Cultural Development,D2922,Subscriptions,105.00,Lloyds Bank,Subscriptions - Subscription to Organisations,2027669,202107
Rother District Council,09/06/2021,031RESOURCES,Chief Executive & Corporate Core,20276,COVID19 RDC expenditure,D1201,Equipment & Materials,214.46,Lloyds Bank,Equipment & materials - Miscellaneous,2027668,202107
Rother District Council,09/06/2021,091HOUSING,Housing and Community Services,20206,UK Resettlement (Syrians),D2513,Hired and Contracted services,770.30,Lloyds Bank,Hired and contracted services - Syrian Misc,2027667,202107
Rother District Council,09/06/2021,091HOUSING,Housing and Community Services,20236,Customer Services and Development,D2420,General office supplies (Stationery purchased from ext suppliers),4.17,Lloyds Bank,General office supplies - Stationary,2027671,202107
Rother District Council,09/06/2021,101RESOURCES,Resources,20239,Computer Services,D2420,General office supplies (Stationery purchased from ext suppliers),24.41,Lloyds Bank,General office supplies - Stationary,2027670,202107
Rother District Council,09/06/2021,101RESOURCES,Resources,20239,Computer Services,D2420,General office supplies (Stationery purchased from ext suppliers),2.58,Lloyds Bank,General office supplies - Stationary,2027670,202107
Rother District Council,09/06/2021,101RESOURCES,Resources,20239,Computer Services,D2420,General office supplies (Stationery purchased from ext suppliers),4.56,Lloyds Bank,General office supplies - Stationary,2027670,202107
Rother District Council,10/06/2021,101RESOURCES,Resources,20222,Accountancy,D2922,Subscriptions,"2,512.00",Association for Public Service Excellence (APSE),Subscriptions - Subscription to Organisations,2027743,202107
Rother District Council,13/06/2021,091HOUSING,Housing and Community Services,20107,Camber Beach & Foreshore,B1100,Repairs to Premises,611.59,Alfa Electric Ltd,Repairs to Premises - Repairs - Electrical Works,2028212,202107
Rother District Council,14/06/2021,091HOUSING,Housing and Community Services,20200,Housing Needs - HB (Housing Benefit),D2514,Accommodation Costs,25.00,Dale Saunders (Holdings) Ltd,Accommodation Costs,2028909,202108
Rother District Council,14/06/2021,091HOUSING,Housing and Community Services,20329,Rough Sleeping Initiative,D2514,Accommodation Costs,25.00,Dale Saunders (Holdings) Ltd,Accommodation Costs,2028909,202108
Rother District Council,14/06/2021,091HOUSING,Housing and Community Services,20200,Housing Needs - HB (Housing Benefit),D2514,Accommodation Costs,25.00,Dale Saunders (Holdings) Ltd,Accommodation Costs,2028909,202108
Rother District Council,14/06/2021,091HOUSING,Housing and Community Services,20200,Housing Needs - HB (Housing Benefit),D2514,Accommodation Costs,390.00,Dale Saunders (Holdings) Ltd,Accommodation Costs,2028911,202108
Rother District Council,14/06/2021,091HOUSING,Housing and Community Services,20329,Rough Sleeping Initiative,D2514,Accommodation Costs,390.00,Dale Saunders (Holdings) Ltd,Accommodation Costs,2028911,202108
Rother District Council,14/06/2021,091HOUSING,Housing and Community Services,20200,Housing Needs - HB (Housing Benefit),D2514,Accommodation Costs,390.00,Dale Saunders (Holdings) Ltd,Accommodation Costs,2028911,202108
Rother District Council,17/06/2021,091HOUSING,Housing and Community Services,20137,Car Parks,B1100,Repairs to Premises,286.60,Fleet (Line Markers) Ltd,Repairs to Premises - White Lining in Car Parks,2029170,202109
Rother District Council,21/06/2021,101RESOURCES,Resources,20239,Computer Services,D2635,Computer Licences,487.93,Civica UK Ltd,Computer Licences - Website Management,2028794,202109
Rother District Council,23/06/2021,081ACQUISIT,"Acquisitions, Transformation and Regeneration",20154,Committee Property Account,D2513,Hired and Contracted services,"2,500.00",Potter Raper Ltd,Hired and contracted services - Service fee paid,2028297,202108
Rother District Council,23/06/2021,081ACQUISIT,"Acquisitions, Transformation and Regeneration",20154,Committee Property Account,B2202,Gas,11.10,Laser Energy Buying Group (Kent County Council Commercial Services),Gas - Gas Charges,2027604,202107
Rother District Council,23/06/2021,081ACQUISIT,"Acquisitions, Transformation and Regeneration",20154,Committee Property Account,B2202,Gas,11.47,Laser Energy Buying Group (Kent County Council Commercial Services),Gas - Gas Charges,2027604,202107
Rother District Council,23/06/2021,031RESOURCES,Chief Executive & Corporate Core,20176,Administrative Offices - Print Room,B2202,Gas,69.60,Laser Energy Buying Group (Kent County Council Commercial Services),Gas - Gas Charges,2027604,202107
Rother District Council,23/06/2021,031RESOURCES,Chief Executive & Corporate Core,20175,Administrative Offices - T.H. Annex (NOT CHP),B2202,Gas,244.48,Laser Energy Buying Group (Kent County Council Commercial Services),Gas - Gas Charges,2027604,202107
Rother District Council,23/06/2021,031RESOURCES,Chief Executive & Corporate Core,20173,Administrative Offices - Town Hall,B2202,Gas,803.32,Laser Energy Buying Group (Kent County Council Commercial Services),Gas - Gas Charges,2027604,202107
Rother District Council,24/06/2021,091HOUSING,Housing and Community Services,20137,Car Parks,D1201,Equipment & Materials,285.90,Fleet (Line Markers) Ltd,Equipment & Materials - Car Parks various,2029039,202109
Rother District Council,29/06/2021,021CORP,Corporate Services & Human Resources,20168,Police Crime Commissioners,D2513,Hired and Contracted services,210.00,The Cherry Tree Inn Limited,Hired and Contracted services,2028385,202108
Rother District Council,29/06/2021,021CORP,Corporate Services & Human Resources,20165,ESCC Elections,D2513,Hired and Contracted services,210.00,The Cherry Tree Inn Limited,Hired and Contracted services,2028385,202108
Rother District Council,01/07/2021,031RESOURCES,Chief Executive & Corporate Core,20281,Establishing a Bexhill Town Council,D2922,Subscriptions,95.00,Rother Association of Local Councils,Subscriptions - Subscription to Organisations,2027943,202107
Rother District Council,01/07/2021,091HOUSING,Housing and Community Services,20108,Bexhill Promenade & Foreshore,D2621,Telephones,10.00,Commtel Ltd T/A Teleguard,Equipment & Materials - Access cards and systems,2028702,202109
Rother District Council,02/07/2021,091HOUSING,Housing and Community Services,20200,Housing Needs - HB (Housing Benefit),D2514,Accommodation Costs,111.41,Travelodge - FIS Payments UK Ltd,Accommodation Costs,2028570,202108
Rother District Council,02/07/2021,101RESOURCES,Resources,20209,Corporate management,D2513,Hired and Contracted services,30.00,Travelodge - FIS Payments UK Ltd,Interest Paid - Late Invoice Payment Fee,2028570,202108
Rother District Council,07/07/2021,081ACQUISIT,"Acquisitions, Transformation and Regeneration",20267,Property Investment Strategy - 18-40 Beeching Road ( Land and Buildings),B2201,Electricity,35.56,Laser Energy Buying Group (Kent County Council Commercial Services),Electricity - Electricity Charges,2027636,202107
Rother District Council,07/07/2021,081ACQUISIT,"Acquisitions, Transformation and Regeneration",20148,Misc Land & Buildings,B2201,Electricity,17.44,Laser Energy Buying Group (Kent County Council Commercial Services),Electricity - Electricity Charges,2027636,202107
Rother District Council,07/07/2021,081ACQUISIT,"Acquisitions, Transformation and Regeneration",20154,Committee Property Account,B2201,Electricity,22.23,Laser Energy Buying Group (Kent County Council Commercial Services),Electricity - Electricity Charges,2027636,202107
Rother District Council,07/07/2021,081ACQUISIT,"Acquisitions, Transformation and Regeneration",20154,Committee Property Account,B2201,Electricity,22.23,Laser Energy Buying Group (Kent County Council Commercial Services),Electricity - Electricity Charges,2027636,202107
Rother District Council,07/07/2021,081ACQUISIT,"Acquisitions, Transformation and Regeneration",20154,Committee Property Account,B2201,Electricity,22.23,Laser Energy Buying Group (Kent County Council Commercial Services),Electricity - Electricity Charges,2027636,202107
Rother District Council,07/07/2021,081ACQUISIT,"Acquisitions, Transformation and Regeneration",20154,Committee Property Account,B2201,Electricity,22.22,Laser Energy Buying Group (Kent County Council Commercial Services),Electricity - Electricity Charges,2027636,202107
Rother District Council,07/07/2021,081ACQUISIT,"Acquisitions, Transformation and Regeneration",20104,Ancient Monuments & Gazebo,B2201,Electricity,26.35,Laser Energy Buying Group (Kent County Council Commercial Services),Electricity - Electricity Charges,2027636,202107
Rother District Council,07/07/2021,081ACQUISIT,"Acquisitions, Transformation and Regeneration",20153,"Elva Business Centre, Bexhill",B2201,Electricity,882.90,Laser Energy Buying Group (Kent County Council Commercial Services),Electricity - Electricity Charges,2027636,202107
Rother District Council,07/07/2021,081ACQUISIT,"Acquisitions, Transformation and Regeneration",20153,"Elva Business Centre, Bexhill",B2201,Electricity,873.67,Laser Energy Buying Group (Kent County Council Commercial Services),Electricity - Electricity Charges,2027636,202107
Rother District Council,07/07/2021,081ACQUISIT,"Acquisitions, Transformation and Regeneration",20151,Udimore Workshops,B2201,Electricity,28.88,Laser Energy Buying Group (Kent County Council Commercial Services),Electricity - Electricity Charges,2027636,202107
Rother District Council,07/07/2021,081ACQUISIT,"Acquisitions, Transformation and Regeneration",20154,Committee Property Account,B2201,Electricity,14.59,Laser Energy Buying Group (Kent County Council Commercial Services),Electricity - Electricity Charges,2027636,202107
Rother District Council,07/07/2021,081ACQUISIT,"Acquisitions, Transformation and Regeneration",20154,Committee Property Account,B2201,Electricity,14.59,Laser Energy Buying Group (Kent County Council Commercial Services),Electricity - Electricity Charges,2027636,202107
Rother District Council,07/07/2021,081ACQUISIT,"Acquisitions, Transformation and Regeneration",20154,Committee Property Account,B2201,Electricity,14.59,Laser Energy Buying Group (Kent County Council Commercial Services),Electricity - Electricity Charges,2027636,202107
Rother District Council,07/07/2021,081ACQUISIT,"Acquisitions, Transformation and Regeneration",20154,Committee Property Account,B2201,Electricity,14.59,Laser Energy Buying Group (Kent County Council Commercial Services),Electricity - Electricity Charges,2027636,202107
Rother District Council,07/07/2021,081ACQUISIT,"Acquisitions, Transformation and Regeneration",20154,Committee Property Account,B2201,Electricity,656.67,Laser Energy Buying Group (Kent County Council Commercial Services),Electricity - Electricity Charges,2027636,202107
Rother District Council,07/07/2021,081ACQUISIT,"Acquisitions, Transformation and Regeneration",20154,Committee Property Account,B2201,Electricity,283.17,Laser Energy Buying Group (Kent County Council Commercial Services),Electricity - Electricity Charges,2027636,202107
Rother District Council,07/07/2021,081ACQUISIT,"Acquisitions, Transformation and Regeneration",20154,Committee Property Account,B2201,Electricity,16.84,Laser Energy Buying Group (Kent County Council Commercial Services),Electricity - Electricity Charges,2027636,202107
Rother District Council,07/07/2021,081ACQUISIT,"Acquisitions, Transformation and Regeneration",20154,Committee Property Account,B2201,Electricity,16.84,Laser Energy Buying Group (Kent County Council Commercial Services),Electricity - Electricity Charges,2027636,202107
Rother District Council,07/07/2021,081ACQUISIT,"Acquisitions, Transformation and Regeneration",20154,Committee Property Account,B2201,Electricity,16.84,Laser Energy Buying Group (Kent County Council Commercial Services),Electricity - Electricity Charges,2027636,202107
Rother District Council,07/07/2021,081ACQUISIT,"Acquisitions, Transformation and Regeneration",20148,Misc Land & Buildings,B2201,Electricity,32.73,Laser Energy Buying Group (Kent County Council Commercial Services),Electricity - Electricity Charges,2027636,202107
Rother District Council,07/07/2021,081ACQUISIT,"Acquisitions, Transformation and Regeneration",20154,Committee Property Account,B2201,Electricity,15.10,Laser Energy Buying Group (Kent County Council Commercial Services),Electricity - Electricity Charges,2027636,202107
Rother District Council,07/07/2021,081ACQUISIT,"Acquisitions, Transformation and Regeneration",20154,Committee Property Account,B2201,Electricity,15.10,Laser Energy Buying Group (Kent County Council Commercial Services),Electricity - Electricity Charges,2027636,202107
Rother District Council,07/07/2021,081ACQUISIT,"Acquisitions, Transformation and Regeneration",20154,Committee Property Account,B2201,Electricity,15.10,Laser Energy Buying Group (Kent County Council Commercial Services),Electricity - Electricity Charges,2027636,202107
Rother District Council,07/07/2021,081ACQUISIT,"Acquisitions, Transformation and Regeneration",20154,Committee Property Account,B2201,Electricity,15.10,Laser Energy Buying Group (Kent County Council Commercial Services),Electricity - Electricity Charges,2027636,202107
Rother District Council,07/07/2021,081ACQUISIT,"Acquisitions, Transformation and Regeneration",20154,Committee Property Account,B2201,Electricity,679.65,Laser Energy Buying Group (Kent County Council Commercial Services),Electricity - Electricity Charges,2027636,202107
Rother District Council,07/07/2021,081ACQUISIT,"Acquisitions, Transformation and Regeneration",20154,Committee Property Account,B2201,Electricity,15.16,Laser Energy Buying Group (Kent County Council Commercial Services),Electricity - Electricity Charges,2027636,202107
Rother District Council,07/07/2021,081ACQUISIT,"Acquisitions, Transformation and Regeneration",20154,Committee Property Account,B2201,Electricity,15.16,Laser Energy Buying Group (Kent County Council Commercial Services),Electricity - Electricity Charges,2027636,202107
Rother District Council,07/07/2021,081ACQUISIT,"Acquisitions, Transformation and Regeneration",20154,Committee Property Account,B2201,Electricity,15.17,Laser Energy Buying Group (Kent County Council Commercial Services),Electricity - Electricity Charges,2027636,202107
Rother District Council,07/07/2021,081ACQUISIT,"Acquisitions, Transformation and Regeneration",20154,Committee Property Account,B2201,Electricity,15.16,Laser Energy Buying Group (Kent County Council Commercial Services),Electricity - Electricity Charges,2027636,202107
Rother District Council,07/07/2021,081ACQUISIT,"Acquisitions, Transformation and Regeneration",20154,Committee Property Account,B2201,Electricity,16.78,Laser Energy Buying Group (Kent County Council Commercial Services),Electricity - Electricity Charges,2027636,202107
Rother District Council,07/07/2021,081ACQUISIT,"Acquisitions, Transformation and Regeneration",20150,Peasmarsh Workshops,B2201,Electricity,28.70,Laser Energy Buying Group (Kent County Council Commercial Services),Electricity - Electricity Charges,2027636,202107
Rother District Council,07/07/2021,081ACQUISIT,"Acquisitions, Transformation and Regeneration",20104,Ancient Monuments & Gazebo,B2201,Electricity,27.23,Laser Energy Buying Group (Kent County Council Commercial Services),Electricity - Electricity Charges,2027636,202107
Rother District Council,07/07/2021,081ACQUISIT,"Acquisitions, Transformation and Regeneration",20155,Investment properties,B2201,Electricity,33.14,Laser Energy Buying Group (Kent County Council Commercial Services),Electricity - Electricity Charges,2027636,202107
Rother District Council,07/07/2021,031RESOURCES,Chief Executive & Corporate Core,20176,Administrative Offices - Print Room,B2201,Electricity,83.74,Laser Energy Buying Group (Kent County Council Commercial Services),Electricity - Electricity Charges,2027636,202107
Rother District Council,07/07/2021,031RESOURCES,Chief Executive & Corporate Core,20173,Administrative Offices - Town Hall,B2201,Electricity,"1,856.26",Laser Energy Buying Group (Kent County Council Commercial Services),Electricity - Electricity Charges,2027636,202107
Rother District Council,07/07/2021,031RESOURCES,Chief Executive & Corporate Core,20177,Administrative Offices - Rear Depot,B2201,Electricity,33.42,Laser Energy Buying Group (Kent County Council Commercial Services),Electricity - Electricity Charges,2027636,202107
Rother District Council,07/07/2021,091HOUSING,Housing and Community Services,20102,Rother Museum Services,B2201,Electricity,364.58,Laser Energy Buying Group (Kent County Council Commercial Services),Electricity - Electricity Charges,2027636,202107
Rother District Council,07/07/2021,091HOUSING,Housing and Community Services,20102,Rother Museum Services,B2201,Electricity,338.47,Laser Energy Buying Group (Kent County Council Commercial Services),Electricity - Electricity Charges,2027636,202107
Rother District Council,07/07/2021,091HOUSING,Housing and Community Services,20107,Camber Beach & Foreshore,B2201,Electricity,117.57,Laser Energy Buying Group (Kent County Council Commercial Services),Electricity - Electricity Charges,2027636,202107
Rother District Council,07/07/2021,091HOUSING,Housing and Community Services,20108,Bexhill Promenade & Foreshore,B2201,Electricity,26.69,Laser Energy Buying Group (Kent County Council Commercial Services),Electricity - Electricity Charges,2027636,202107
Rother District Council,07/07/2021,091HOUSING,Housing and Community Services,20108,Bexhill Promenade & Foreshore,B2201,Electricity,46.47,Laser Energy Buying Group (Kent County Council Commercial Services),Electricity - Electricity Charges,2027636,202107
Rother District Council,07/07/2021,091HOUSING,Housing and Community Services,20108,Bexhill Promenade & Foreshore,B2201,Electricity,26.89,Laser Energy Buying Group (Kent County Council Commercial Services),Electricity - Electricity Charges,2027636,202107
Rother District Council,07/07/2021,091HOUSING,Housing and Community Services,20108,Bexhill Promenade & Foreshore,B2201,Electricity,28.79,Laser Energy Buying Group (Kent County Council Commercial Services),Electricity - Electricity Charges,2027636,202107
Rother District Council,07/07/2021,091HOUSING,Housing and Community Services,20108,Bexhill Promenade & Foreshore,B2201,Electricity,47.30,Laser Energy Buying Group (Kent County Council Commercial Services),Electricity - Electricity Charges,2027636,202107
Rother District Council,07/07/2021,091HOUSING,Housing and Community Services,20108,Bexhill Promenade & Foreshore,B2201,Electricity,33.39,Laser Energy Buying Group (Kent County Council Commercial Services),Electricity - Electricity Charges,2027636,202107
Rother District Council,07/07/2021,091HOUSING,Housing and Community Services,20108,Bexhill Promenade & Foreshore,B2201,Electricity,28.74,Laser Energy Buying Group (Kent County Council Commercial Services),Electricity - Electricity Charges,2027636,202107
Rother District Council,07/07/2021,091HOUSING,Housing and Community Services,20108,Bexhill Promenade & Foreshore,B2201,Electricity,7.29,Laser Energy Buying Group (Kent County Council Commercial Services),Electricity - Electricity Charges,2027636,202107
Rother District Council,07/07/2021,091HOUSING,Housing and Community Services,20108,Bexhill Promenade & Foreshore,B2201,Electricity,7.30,Laser Energy Buying Group (Kent County Council Commercial Services),Electricity - Electricity Charges,2027636,202107
Rother District Council,07/07/2021,091HOUSING,Housing and Community Services,20108,Bexhill Promenade & Foreshore,B2201,Electricity,16.83,Laser Energy Buying Group (Kent County Council Commercial Services),Electricity - Electricity Charges,2027636,202107
Rother District Council,07/07/2021,091HOUSING,Housing and Community Services,20108,Bexhill Promenade & Foreshore,B2201,Electricity,54.91,Laser Energy Buying Group (Kent County Council Commercial Services),Electricity - Electricity Charges,2027636,202107
Rother District Council,07/07/2021,091HOUSING,Housing and Community Services,20108,Bexhill Promenade & Foreshore,B2201,Electricity,27.62,Laser Energy Buying Group (Kent County Council Commercial Services),Electricity - Electricity Charges,2027636,202107
Rother District Council,07/07/2021,091HOUSING,Housing and Community Services,20108,Bexhill Promenade & Foreshore,B2201,Electricity,7.55,Laser Energy Buying Group (Kent County Council Commercial Services),Electricity - Electricity Charges,2027636,202107
Rother District Council,07/07/2021,091HOUSING,Housing and Community Services,20108,Bexhill Promenade & Foreshore,B2201,Electricity,7.55,Laser Energy Buying Group (Kent County Council Commercial Services),Electricity - Electricity Charges,2027636,202107
Rother District Council,07/07/2021,091HOUSING,Housing and Community Services,20108,Bexhill Promenade & Foreshore,B2201,Electricity,55.95,Laser Energy Buying Group (Kent County Council Commercial Services),Electricity - Electricity Charges,2027636,202107
Rother District Council,07/07/2021,091HOUSING,Housing and Community Services,20107,Camber Beach & Foreshore,B2201,Electricity,79.89,Laser Energy Buying Group (Kent County Council Commercial Services),Electricity - Electricity Charges,2027636,202107
Rother District Council,07/07/2021,091HOUSING,Housing and Community Services,20108,Bexhill Promenade & Foreshore,B2201,Electricity,40.76,Laser Energy Buying Group (Kent County Council Commercial Services),Electricity - Electricity Charges,2027636,202107
Rother District Council,07/07/2021,091HOUSING,Housing and Community Services,20115,Rye Area Parks & Gardens,B2201,Electricity,17.44,Laser Energy Buying Group (Kent County Council Commercial Services),Electricity - Electricity Charges,2027636,202107
Rother District Council,07/07/2021,091HOUSING,Housing and Community Services,20115,Rye Area Parks & Gardens,B2201,Electricity,26.63,Laser Energy Buying Group (Kent County Council Commercial Services),Electricity - Electricity Charges,2027636,202107
Rother District Council,07/07/2021,091HOUSING,Housing and Community Services,20114,Bexhill Parks & Open Spaces,B2201,Electricity,35.15,Laser Energy Buying Group (Kent County Council Commercial Services),Electricity - Electricity Charges,2027636,202107
Rother District Council,07/07/2021,091HOUSING,Housing and Community Services,20114,Bexhill Parks & Open Spaces,B2201,Electricity,12.43,Laser Energy Buying Group (Kent County Council Commercial Services),Electricity - Electricity Charges,2027636,202107
Rother District Council,07/07/2021,091HOUSING,Housing and Community Services,20115,Rye Area Parks & Gardens,B2201,Electricity,28.74,Laser Energy Buying Group (Kent County Council Commercial Services),Electricity - Electricity Charges,2027636,202107
Rother District Council,07/07/2021,091HOUSING,Housing and Community Services,20114,Bexhill Parks & Open Spaces,B2201,Electricity,11.54,Laser Energy Buying Group (Kent County Council Commercial Services),Electricity - Electricity Charges,2027636,202107
Rother District Council,07/07/2021,091HOUSING,Housing and Community Services,20114,Bexhill Parks & Open Spaces,B2201,Electricity,24.10,Laser Energy Buying Group (Kent County Council Commercial Services),Electricity - Electricity Charges,2027636,202107
Rother District Council,07/07/2021,091HOUSING,Housing and Community Services,20114,Bexhill Parks & Open Spaces,B2201,Electricity,28.61,Laser Energy Buying Group (Kent County Council Commercial Services),Electricity - Electricity Charges,2027636,202107
Rother District Council,07/07/2021,091HOUSING,Housing and Community Services,20114,Bexhill Parks & Open Spaces,B2201,Electricity,31.08,Laser Energy Buying Group (Kent County Council Commercial Services),Electricity - Electricity Charges,2027636,202107
Rother District Council,07/07/2021,091HOUSING,Housing and Community Services,20114,Bexhill Parks & Open Spaces,B2201,Electricity,73.87,Laser Energy Buying Group (Kent County Council Commercial Services),Electricity - Electricity Charges,2027636,202107
Rother District Council,07/07/2021,091HOUSING,Housing and Community Services,20114,Bexhill Parks & Open Spaces,B2201,Electricity,28.83,Laser Energy Buying Group (Kent County Council Commercial Services),Electricity - Electricity Charges,2027636,202107
Rother District Council,07/07/2021,091HOUSING,Housing and Community Services,20115,Rye Area Parks & Gardens,B2201,Electricity,16.78,Laser Energy Buying Group (Kent County Council Commercial Services),Electricity - Electricity Charges,2027636,202107
Rother District Council,07/07/2021,091HOUSING,Housing and Community Services,20128,Public Conveniences,B2201,Electricity,18.98,Laser Energy Buying Group (Kent County Council Commercial Services),Electricity - Electricity Charges,2027636,202107
Rother District Council,07/07/2021,091HOUSING,Housing and Community Services,20128,Public Conveniences,B2201,Electricity,27.04,Laser Energy Buying Group (Kent County Council Commercial Services),Electricity - Electricity Charges,2027636,202107
Rother District Council,07/07/2021,091HOUSING,Housing and Community Services,20128,Public Conveniences,B2201,Electricity,32.95,Laser Energy Buying Group (Kent County Council Commercial Services),Electricity - Electricity Charges,2027636,202107
Rother District Council,07/07/2021,091HOUSING,Housing and Community Services,20128,Public Conveniences,B2201,Electricity,26.90,Laser Energy Buying Group (Kent County Council Commercial Services),Electricity - Electricity Charges,2027636,202107
Rother District Council,07/07/2021,091HOUSING,Housing and Community Services,20128,Public Conveniences,B2201,Electricity,37.29,Laser Energy Buying Group (Kent County Council Commercial Services),Electricity - Electricity Charges,2027636,202107
Rother District Council,07/07/2021,091HOUSING,Housing and Community Services,20128,Public Conveniences,B2201,Electricity,40.25,Laser Energy Buying Group (Kent County Council Commercial Services),Electricity - Electricity Charges,2027636,202107
Rother District Council,07/07/2021,091HOUSING,Housing and Community Services,20128,Public Conveniences,B2201,Electricity,34.21,Laser Energy Buying Group (Kent County Council Commercial Services),Electricity - Electricity Charges,2027636,202107
Rother District Council,07/07/2021,091HOUSING,Housing and Community Services,20128,Public Conveniences,B2201,Electricity,42.18,Laser Energy Buying Group (Kent County Council Commercial Services),Electricity - Electricity Charges,2027636,202107
Rother District Council,07/07/2021,091HOUSING,Housing and Community Services,20128,Public Conveniences,B2201,Electricity,26.63,Laser Energy Buying Group (Kent County Council Commercial Services),Electricity - Electricity Charges,2027636,202107
Rother District Council,07/07/2021,091HOUSING,Housing and Community Services,20128,Public Conveniences,B2201,Electricity,34.62,Laser Energy Buying Group (Kent County Council Commercial Services),Electricity - Electricity Charges,2027636,202107
Rother District Council,07/07/2021,091HOUSING,Housing and Community Services,20128,Public Conveniences,B2201,Electricity,44.16,Laser Energy Buying Group (Kent County Council Commercial Services),Electricity - Electricity Charges,2027636,202107
Rother District Council,07/07/2021,091HOUSING,Housing and Community Services,20128,Public Conveniences,B2201,Electricity,45.93,Laser Energy Buying Group (Kent County Council Commercial Services),Electricity - Electricity Charges,2027636,202107
Rother District Council,07/07/2021,091HOUSING,Housing and Community Services,20128,Public Conveniences,B2201,Electricity,60.69,Laser Energy Buying Group (Kent County Council Commercial Services),Electricity - Electricity Charges,2027636,202107
Rother District Council,07/07/2021,091HOUSING,Housing and Community Services,20128,Public Conveniences,B2201,Electricity,34.38,Laser Energy Buying Group (Kent County Council Commercial Services),Electricity - Electricity Charges,2027636,202107
Rother District Council,07/07/2021,091HOUSING,Housing and Community Services,20128,Public Conveniences,B2201,Electricity,31.36,Laser Energy Buying Group (Kent County Council Commercial Services),Electricity - Electricity Charges,2027636,202107
Rother District Council,07/07/2021,091HOUSING,Housing and Community Services,20128,Public Conveniences,B2201,Electricity,49.09,Laser Energy Buying Group (Kent County Council Commercial Services),Electricity - Electricity Charges,2027636,202107
Rother District Council,07/07/2021,091HOUSING,Housing and Community Services,20128,Public Conveniences,B2201,Electricity,27.92,Laser Energy Buying Group (Kent County Council Commercial Services),Electricity - Electricity Charges,2027636,202107
Rother District Council,07/07/2021,091HOUSING,Housing and Community Services,20128,Public Conveniences,B2201,Electricity,6.02,Laser Energy Buying Group (Kent County Council Commercial Services),Electricity - Electricity Charges,2027636,202107
Rother District Council,07/07/2021,091HOUSING,Housing and Community Services,20128,Public Conveniences,B2201,Electricity,41.13,Laser Energy Buying Group (Kent County Council Commercial Services),Electricity - Electricity Charges,2027636,202107
Rother District Council,07/07/2021,091HOUSING,Housing and Community Services,20128,Public Conveniences,B2201,Electricity,108.03,Laser Energy Buying Group (Kent County Council Commercial Services),Electricity - Electricity Charges,2027636,202107
Rother District Council,07/07/2021,091HOUSING,Housing and Community Services,20128,Public Conveniences,B2201,Electricity,72.81,Laser Energy Buying Group (Kent County Council Commercial Services),Electricity - Electricity Charges,2027636,202107
Rother District Council,07/07/2021,091HOUSING,Housing and Community Services,20128,Public Conveniences,B2201,Electricity,67.24,Laser Energy Buying Group (Kent County Council Commercial Services),Electricity - Electricity Charges,2027636,202107
Rother District Council,07/07/2021,091HOUSING,Housing and Community Services,20128,Public Conveniences,B2201,Electricity,35.48,Laser Energy Buying Group (Kent County Council Commercial Services),Electricity - Electricity Charges,2027636,202107
Rother District Council,07/07/2021,091HOUSING,Housing and Community Services,20128,Public Conveniences,B2201,Electricity,28.88,Laser Energy Buying Group (Kent County Council Commercial Services),Electricity - Electricity Charges,2027636,202107
Rother District Council,07/07/2021,091HOUSING,Housing and Community Services,20123,Cemeteries,B2201,Electricity,53.77,Laser Energy Buying Group (Kent County Council Commercial Services),Electricity - Electricity Charges,2027636,202107
Rother District Council,07/07/2021,091HOUSING,Housing and Community Services,20128,Public Conveniences,B2201,Electricity,40.71,Laser Energy Buying Group (Kent County Council Commercial Services),Electricity - Electricity Charges,2027636,202107
Rother District Council,07/07/2021,091HOUSING,Housing and Community Services,20128,Public Conveniences,B2201,Electricity,32.95,Laser Energy Buying Group (Kent County Council Commercial Services),Electricity - Electricity Charges,2027636,202107
Rother District Council,07/07/2021,091HOUSING,Housing and Community Services,20128,Public Conveniences,B2201,Electricity,33.14,Laser Energy Buying Group (Kent County Council Commercial Services),Electricity - Electricity Charges,2027636,202107
Rother District Council,07/07/2021,091HOUSING,Housing and Community Services,20128,Public Conveniences,B2201,Electricity,33.36,Laser Energy Buying Group (Kent County Council Commercial Services),Electricity - Electricity Charges,2027636,202107
Rother District Council,07/07/2021,091HOUSING,Housing and Community Services,20128,Public Conveniences,B2201,Electricity,27.92,Laser Energy Buying Group (Kent County Council Commercial Services),Electricity - Electricity Charges,2027636,202107
Rother District Council,07/07/2021,091HOUSING,Housing and Community Services,20128,Public Conveniences,B2201,Electricity,146.31,Laser Energy Buying Group (Kent County Council Commercial Services),Electricity - Electricity Charges,2027636,202107
Rother District Council,07/07/2021,091HOUSING,Housing and Community Services,20128,Public Conveniences,B2201,Electricity,34.24,Laser Energy Buying Group (Kent County Council Commercial Services),Electricity - Electricity Charges,2027636,202107
Rother District Council,07/07/2021,091HOUSING,Housing and Community Services,20128,Public Conveniences,B2201,Electricity,30.39,Laser Energy Buying Group (Kent County Council Commercial Services),Electricity - Electricity Charges,2027636,202107
Rother District Council,07/07/2021,091HOUSING,Housing and Community Services,20128,Public Conveniences,B2201,Electricity,33.97,Laser Energy Buying Group (Kent County Council Commercial Services),Electricity - Electricity Charges,2027636,202107
Rother District Council,07/07/2021,091HOUSING,Housing and Community Services,20128,Public Conveniences,B2201,Electricity,61.23,Laser Energy Buying Group (Kent County Council Commercial Services),Electricity - Electricity Charges,2027636,202107
Rother District Council,07/07/2021,091HOUSING,Housing and Community Services,20128,Public Conveniences,B2201,Electricity,96.39,Laser Energy Buying Group (Kent County Council Commercial Services),Electricity - Electricity Charges,2027636,202107
Rother District Council,07/07/2021,091HOUSING,Housing and Community Services,20128,Public Conveniences,B2201,Electricity,33.97,Laser Energy Buying Group (Kent County Council Commercial Services),Electricity - Electricity Charges,2027636,202107
Rother District Council,07/07/2021,091HOUSING,Housing and Community Services,20128,Public Conveniences,B2201,Electricity,80.97,Laser Energy Buying Group (Kent County Council Commercial Services),Electricity - Electricity Charges,2027636,202107
Rother District Council,07/07/2021,091HOUSING,Housing and Community Services,20128,Public Conveniences,B2201,Electricity,31.22,Laser Energy Buying Group (Kent County Council Commercial Services),Electricity - Electricity Charges,2027636,202107
Rother District Council,07/07/2021,091HOUSING,Housing and Community Services,20128,Public Conveniences,B2201,Electricity,27.78,Laser Energy Buying Group (Kent County Council Commercial Services),Electricity - Electricity Charges,2027636,202107
Rother District Council,07/07/2021,091HOUSING,Housing and Community Services,20128,Public Conveniences,B2201,Electricity,81.68,Laser Energy Buying Group (Kent County Council Commercial Services),Electricity - Electricity Charges,2027636,202107
Rother District Council,07/07/2021,091HOUSING,Housing and Community Services,20128,Public Conveniences,B2201,Electricity,63.05,Laser Energy Buying Group (Kent County Council Commercial Services),Electricity - Electricity Charges,2027636,202107
Rother District Council,07/07/2021,091HOUSING,Housing and Community Services,20137,Car Parks,B2201,Electricity,35.07,Laser Energy Buying Group (Kent County Council Commercial Services),Electricity - Electricity Charges,2027636,202107
Rother District Council,07/07/2021,091HOUSING,Housing and Community Services,20137,Car Parks,B2201,Electricity,48.13,Laser Energy Buying Group (Kent County Council Commercial Services),Electricity - Electricity Charges,2027636,202107
Rother District Council,07/07/2021,101RESOURCES,Resources,20242,Communications-Phones,D2621,Telephones,"3,052.96",KCOM Group Plc,Telephones - KCOM Smartnumber Charges,2027608,202107
Rother District Council,09/07/2021,081ACQUISIT,"Acquisitions, Transformation and Regeneration",70736,Capital - 18-40 Beeching Close Refurbishment,N1002,Land & Property fees,462.00,Lloyds Bank,Land & Property fees Capital-Land and Propty - Fees Etc.,2029038,202109
Rother District Council,09/07/2021,081ACQUISIT,"Acquisitions, Transformation and Regeneration",70736,Capital - 18-40 Beeching Close Refurbishment,N1002,Land & Property fees,23.33,Lloyds Bank,Land & Property fees Capital-Land and Propty - Fees Etc.,2029038,202109
Rother District Council,09/07/2021,031RESOURCES,Chief Executive & Corporate Core,20156,Representing Local Interest,D2734,Members Training and Seminars,160.00,Lloyds Bank,Members Training and Seminars,2029038,202109
Rother District Council,09/07/2021,031RESOURCES,Chief Executive & Corporate Core,20276,COVID19 RDC expenditure,D2513,Hired and Contracted services,274.14,Lloyds Bank,Equipment & materials - Miscellaneous,2029032,202109
Rother District Council,09/07/2021,091HOUSING,Housing and Community Services,20264,Property Maintenance Team,A2203,Training,438.00,Lloyds Bank,Training,2029036,202109
Rother District Council,09/07/2021,091HOUSING,Housing and Community Services,20206,UK Resettlement (Syrians),D2513,Hired and Contracted services,"1,184.15",Lloyds Bank,Hired and contracted services - Syrian Misc,2029031,202109
Rother District Council,09/07/2021,091HOUSING,Housing and Community Services,20206,UK Resettlement (Syrians),D2513,Hired and Contracted services,137.79,Lloyds Bank,Hired and contracted services - Syrian Misc,2029031,202109
Rother District Council,09/07/2021,091HOUSING,Housing and Community Services,20304,Housing First,D2513,Hired and Contracted services,158.71,Lloyds Bank,Hired and contracted services - Service fee paid,2029031,202109
Rother District Council,09/07/2021,091HOUSING,Housing and Community Services,20304,Housing First,D2513,Hired and Contracted services,300.00,Lloyds Bank,Hired and contracted services - Service fee paid,2029031,202109
Rother District Council,09/07/2021,101RESOURCES,Resources,20239,Computer Services,D2420,General office supplies (Stationery purchased from ext suppliers),57.72,Lloyds Bank,General office supplies - Stationary,2029035,202109
Rother District Council,09/07/2021,101RESOURCES,Resources,20239,Computer Services,D2635,Computer Licences,9.99,Lloyds Bank,Computer Licences - Domain Name Renewal,2029037,202108
Rother District Council,09/07/2021,101RESOURCES,Resources,20239,Computer Services,D2635,Computer Licences,79.92,Lloyds Bank,Computer Licences - Domain Name Renewal,2029037,202108
Rother District Council,09/07/2021,101RESOURCES,Resources,20239,Computer Services,D2633,Computer Equipment,261.43,Lloyds Bank,Computer Equipment - Computer peripherals,2029035,202109
Rother District Council,09/07/2021,101RESOURCES,Resources,20239,Computer Services,D2633,Computer Equipment,64.25,Lloyds Bank,Computer Equipment - Carry Case,2029035,202109
Rother District Council,13/07/2021,031RESOURCES,Chief Executive & Corporate Core,20171,Human Resources,D2513,Hired and Contracted services,120.00,Staywell Occupational Health Ltd,Hired and contracted services - Occupational Health,2027828,202107
Rother District Council,13/07/2021,101RESOURCES,Resources,20242,Communications-Phones,D2622,Mobile Phones,110.00,O2 (UK) Ltd,Mobile Phones,2027490,202107
Rother District Council,13/07/2021,101RESOURCES,Resources,20242,Communications-Phones,D2622,Mobile Phones,244.00,O2 (UK) Ltd,Mobile Phones,2027492,202107
Rother District Council,13/07/2021,101RESOURCES,Resources,20242,Communications-Phones,D2622,Mobile Phones,539.00,O2 (UK) Ltd,Mobile Phones,2027494,202107
Rother District Council,13/07/2021,101RESOURCES,Resources,20242,Communications-Phones,D2622,Mobile Phones,55.00,O2 (UK) Ltd,Mobile Phones,2027495,202107
Rother District Council,13/07/2021,101RESOURCES,Resources,20242,Communications-Phones,D2622,Mobile Phones,605.67,O2 (UK) Ltd,Mobile Phones,2027497,202107
Rother District Council,13/07/2021,101RESOURCES,Resources,20242,Communications-Phones,D2622,Mobile Phones,110.00,O2 (UK) Ltd,Mobile Phones,2027499,202107
Rother District Council,14/07/2021,031RESOURCES,Chief Executive & Corporate Core,20175,Administrative Offices - T.H. Annex (NOT CHP),B1100,Repairs to Premises,189.39,Alfa Electric Ltd,Repairs to Premises - Repairs - Electrical Works,2028603,202108
Rother District Council,16/07/2021,101RESOURCES,Resources,20239,Computer Services,D2635,Computer Licences,504.80,Civica UK Ltd,Computer Licences - Website Management,2028795,202109
Rother District Council,17/07/2021,101RESOURCES,Resources,20241,Stationery,D2420,General office supplies (Stationery purchased from ext suppliers),24.53,Office Depot UK Ltd,General office supplies - Stationery (Stationery Services to buy ONLY),2027965,202107
Rother District Council,17/07/2021,101RESOURCES,Resources,20241,Stationery,D2420,General office supplies (Stationery purchased from ext suppliers),13.02,Office Depot UK Ltd,General office supplies - Stationery (Stationery Services to buy ONLY),2027966,202107
Rother District Council,19/07/2021,021CORP,Corporate Services & Human Resources,20168,Police Crime Commissioners,D2513,Hired and Contracted services,64.00,Westfield Church Hall,Hired and Contracted services,2028387,202108
Rother District Council,19/07/2021,021CORP,Corporate Services & Human Resources,20165,ESCC Elections,D2513,Hired and Contracted services,64.00,Westfield Church Hall,Hired and Contracted services,2028387,202108
Rother District Council,23/07/2021,081ACQUISIT,"Acquisitions, Transformation and Regeneration",20154,Committee Property Account,B2201,Electricity,255.12,Laser Energy Buying Group (Kent County Council Commercial Services),Electricity - Electricity Charges,2027665,202107
Rother District Council,23/07/2021,081ACQUISIT,"Acquisitions, Transformation and Regeneration",20148,Misc Land & Buildings,B2201,Electricity,21.43,Laser Energy Buying Group (Kent County Council Commercial Services),Electricity - Electricity Charges,2027665,202107
Rother District Council,23/07/2021,031RESOURCES,Chief Executive & Corporate Core,20176,Administrative Offices - Print Room,B2202,Gas,47.45,Laser Energy Buying Group (Kent County Council Commercial Services),Gas - Gas Charges,2027666,202107
Rother District Council,23/07/2021,031RESOURCES,Chief Executive & Corporate Core,20175,Administrative Offices - T.H. Annex (NOT CHP),B2202,Gas,141.70,Laser Energy Buying Group (Kent County Council Commercial Services),Gas - Gas Charges,2027666,202107
Rother District Council,23/07/2021,031RESOURCES,Chief Executive & Corporate Core,20173,Administrative Offices - Town Hall,B2202,Gas,126.91,Laser Energy Buying Group (Kent County Council Commercial Services),Gas - Gas Charges,2027666,202107
Rother District Council,23/07/2021,031RESOURCES,Chief Executive & Corporate Core,20176,Administrative Offices - Print Room,B2201,Electricity,110.22,Laser Energy Buying Group (Kent County Council Commercial Services),Electricity - Electricity Charges,2027665,202107
Rother District Council,23/07/2021,031RESOURCES,Chief Executive & Corporate Core,20176,Administrative Offices - Print Room,B2201,Electricity,615.96,Laser Energy Buying Group (Kent County Council Commercial Services),Electricity - Electricity Charges,2027665,202107
Rother District Council,23/07/2021,031RESOURCES,Chief Executive & Corporate Core,20177,Administrative Offices - Rear Depot,B2201,Electricity,33.64,Laser Energy Buying Group (Kent County Council Commercial Services),Electricity - Electricity Charges,2027665,202107
Rother District Council,23/07/2021,031RESOURCES,Chief Executive & Corporate Core,20175,Administrative Offices - T.H. Annex (NOT CHP),B2201,Electricity,809.06,Laser Energy Buying Group (Kent County Council Commercial Services),Electricity - Electricity Charges,2027665,202107
Rother District Council,23/07/2021,031RESOURCES,Chief Executive & Corporate Core,20175,Administrative Offices - T.H. Annex (NOT CHP),B2201,Electricity,773.73,Laser Energy Buying Group (Kent County Council Commercial Services),Electricity - Electricity Charges,2027665,202107
Rother District Council,23/07/2021,091HOUSING,Housing and Community Services,20107,Camber Beach & Foreshore,A2203,Training,630.00,Southeastern Medical Services Ltd,Training - First Aid training course,2027637,202107
Rother District Council,23/07/2021,091HOUSING,Housing and Community Services,20108,Bexhill Promenade & Foreshore,B2201,Electricity,-40.49,Laser Energy Buying Group (Kent County Council Commercial Services),Electricity - Electricity Charges,2027665,202107
Rother District Council,23/07/2021,091HOUSING,Housing and Community Services,20107,Camber Beach & Foreshore,B2201,Electricity,37.76,Laser Energy Buying Group (Kent County Council Commercial Services),Electricity - Electricity Charges,2027665,202107
Rother District Council,23/07/2021,091HOUSING,Housing and Community Services,20107,Camber Beach & Foreshore,B2201,Electricity,113.80,Laser Energy Buying Group (Kent County Council Commercial Services),Electricity - Electricity Charges,2027665,202107
Rother District Council,23/07/2021,091HOUSING,Housing and Community Services,20108,Bexhill Promenade & Foreshore,B2201,Electricity,64.99,Laser Energy Buying Group (Kent County Council Commercial Services),Electricity - Electricity Charges,2027665,202107
Rother District Council,23/07/2021,091HOUSING,Housing and Community Services,20114,Bexhill Parks & Open Spaces,B2201,Electricity,41.89,Laser Energy Buying Group (Kent County Council Commercial Services),Electricity - Electricity Charges,2027665,202107
Rother District Council,23/07/2021,091HOUSING,Housing and Community Services,20114,Bexhill Parks & Open Spaces,B2201,Electricity,29.15,Laser Energy Buying Group (Kent County Council Commercial Services),Electricity - Electricity Charges,2027665,202107
Rother District Council,23/07/2021,091HOUSING,Housing and Community Services,20114,Bexhill Parks & Open Spaces,B2201,Electricity,28.88,Laser Energy Buying Group (Kent County Council Commercial Services),Electricity - Electricity Charges,2027665,202107
Rother District Council,23/07/2021,091HOUSING,Housing and Community Services,20115,Rye Area Parks & Gardens,B2201,Electricity,21.43,Laser Energy Buying Group (Kent County Council Commercial Services),Electricity - Electricity Charges,2027665,202107
Rother District Council,23/07/2021,091HOUSING,Housing and Community Services,20114,Bexhill Parks & Open Spaces,B2201,Electricity,23.72,Laser Energy Buying Group (Kent County Council Commercial Services),Electricity - Electricity Charges,2027665,202107
Rother District Council,23/07/2021,091HOUSING,Housing and Community Services,20128,Public Conveniences,B2201,Electricity,45.60,Laser Energy Buying Group (Kent County Council Commercial Services),Electricity - Electricity Charges,2027665,202107
Rother District Council,23/07/2021,091HOUSING,Housing and Community Services,20128,Public Conveniences,B2201,Electricity,216.92,Laser Energy Buying Group (Kent County Council Commercial Services),Electricity - Electricity Charges,2027665,202107
Rother District Council,23/07/2021,091HOUSING,Housing and Community Services,20128,Public Conveniences,B2201,Electricity,49.18,Laser Energy Buying Group (Kent County Council Commercial Services),Electricity - Electricity Charges,2027665,202107
Rother District Council,23/07/2021,091HOUSING,Housing and Community Services,20128,Public Conveniences,B2201,Electricity,56.19,Laser Energy Buying Group (Kent County Council Commercial Services),Electricity - Electricity Charges,2027665,202107
Rother District Council,23/07/2021,091HOUSING,Housing and Community Services,20128,Public Conveniences,B2201,Electricity,134.01,Laser Energy Buying Group (Kent County Council Commercial Services),Electricity - Electricity Charges,2027665,202107
Rother District Council,23/07/2021,091HOUSING,Housing and Community Services,20128,Public Conveniences,B2201,Electricity,44.78,Laser Energy Buying Group (Kent County Council Commercial Services),Electricity - Electricity Charges,2027665,202107
Rother District Council,23/07/2021,091HOUSING,Housing and Community Services,20128,Public Conveniences,B2201,Electricity,42.58,Laser Energy Buying Group (Kent County Council Commercial Services),Electricity - Electricity Charges,2027665,202107
Rother District Council,23/07/2021,091HOUSING,Housing and Community Services,20128,Public Conveniences,B2201,Electricity,29.24,Laser Energy Buying Group (Kent County Council Commercial Services),Electricity - Electricity Charges,2027665,202107
Rother District Council,23/07/2021,091HOUSING,Housing and Community Services,20128,Public Conveniences,B2201,Electricity,29.24,Laser Energy Buying Group (Kent County Council Commercial Services),Electricity - Electricity Charges,2027665,202107
Rother District Council,23/07/2021,091HOUSING,Housing and Community Services,20128,Public Conveniences,B2201,Electricity,33.36,Laser Energy Buying Group (Kent County Council Commercial Services),Electricity - Electricity Charges,2027665,202107
Rother District Council,23/07/2021,091HOUSING,Housing and Community Services,20128,Public Conveniences,B2201,Electricity,30.75,Laser Energy Buying Group (Kent County Council Commercial Services),Electricity - Electricity Charges,2027665,202107
Rother District Council,23/07/2021,091HOUSING,Housing and Community Services,20123,Cemeteries,B2201,Electricity,38.18,Laser Energy Buying Group (Kent County Council Commercial Services),Electricity - Electricity Charges,2027665,202107
Rother District Council,23/07/2021,091HOUSING,Housing and Community Services,20128,Public Conveniences,B2201,Electricity,32.54,Laser Energy Buying Group (Kent County Council Commercial Services),Electricity - Electricity Charges,2027665,202107
Rother District Council,23/07/2021,091HOUSING,Housing and Community Services,20128,Public Conveniences,B2201,Electricity,46.01,Laser Energy Buying Group (Kent County Council Commercial Services),Electricity - Electricity Charges,2027665,202107
Rother District Council,23/07/2021,091HOUSING,Housing and Community Services,20128,Public Conveniences,B2201,Electricity,19.61,Laser Energy Buying Group (Kent County Council Commercial Services),Electricity - Electricity Charges,2027665,202107
Rother District Council,23/07/2021,091HOUSING,Housing and Community Services,20128,Public Conveniences,B2201,Electricity,61.96,Laser Energy Buying Group (Kent County Council Commercial Services),Electricity - Electricity Charges,2027665,202107
Rother District Council,23/07/2021,091HOUSING,Housing and Community Services,20128,Public Conveniences,B2201,Electricity,5.93,Laser Energy Buying Group (Kent County Council Commercial Services),Electricity - Electricity Charges,2027665,202107
Rother District Council,23/07/2021,091HOUSING,Housing and Community Services,20128,Public Conveniences,B2201,Electricity,30.37,Laser Energy Buying Group (Kent County Council Commercial Services),Electricity - Electricity Charges,2027665,202107
Rother District Council,23/07/2021,091HOUSING,Housing and Community Services,20128,Public Conveniences,B2201,Electricity,30.35,Laser Energy Buying Group (Kent County Council Commercial Services),Electricity - Electricity Charges,2027665,202107
Rother District Council,23/07/2021,091HOUSING,Housing and Community Services,20137,Car Parks,B2201,Electricity,30.20,Laser Energy Buying Group (Kent County Council Commercial Services),Electricity - Electricity Charges,2027665,202107
Rother District Council,01/08/2021,091HOUSING,Housing and Community Services,20206,UK Resettlement (Syrians),D2513,Hired and Contracted services,668.16,REDACTED PERSONAL DATA,Hired and contracted services - Syrian-Education-Exempt VAT,2027742,202107
Rother District Council,01/08/2021,091HOUSING,Housing and Community Services,20108,Bexhill Promenade & Foreshore,D2621,Telephones,6.00,Commtel Ltd T/A Teleguard,Equipment & Materials - Access cards and systems,2028701,202109
Rother District Council,01/08/2021,091HOUSING,Housing and Community Services,20200,Housing Needs - HB (Housing Benefit),D2508,Removals and Storage,34.80,1066 Removal Services,Removals and Storage,2027913,202107
Rother District Council,02/08/2021,091HOUSING,Housing and Community Services,20128,Public Conveniences,B1100,Repairs to Premises,139.59,Alfa Electric Ltd,Repairs to Premises - Repairs - Electrical Works,2028213,202107
Rother District Council,02/08/2021,101RESOURCES,Resources,20242,Communications-Phones,D2621,Telephones,26.38,TalkTalk Communications Ltd T/A TalkTalk Business,Telephones - Telephone Call Costs+Line Rental,2028667,202109
Rother District Council,05/08/2021,101RESOURCES,Resources,20209,Corporate management,D2513,Hired and Contracted services,50.00,Lloyds Bank,Bank Charges,2028661,202108
Rother District Council,06/08/2021,091HOUSING,Housing and Community Services,20128,Public Conveniences,B1100,Repairs to Premises,62.10,Trade Paints Ltd,Repairs to Premises - Purchase of Materials - Build Maint,2028548,202108
Rother District Council,06/08/2021,091HOUSING,Housing and Community Services,20206,UK Resettlement (Syrians),D2513,Hired and Contracted services,716.85,REDACTED PERSONAL DATA,Hired and contracted services - Syrian-Translation Services,2028708,202108
Rother District Council,09/08/2021,041ENVIRON,Environmental Services,20129,Community Safety - CCTV costs only,B2201,Electricity,291.50,Ecotricity Ltd,Electricity - Electricity Charges,2027815,202107
Rother District Council,09/08/2021,041ENVIRON,Environmental Services,20129,Community Safety - CCTV costs only,B2201,Electricity,38.87,Ecotricity Ltd,Electricity,2027816,202107
Rother District Council,09/08/2021,091HOUSING,Housing and Community Services,20108,Bexhill Promenade & Foreshore,B2201,Electricity,1.64,Ecotricity Ltd,Electricity - Electricity Charges,2027817,202107
Rother District Council,09/08/2021,091HOUSING,Housing and Community Services,20108,Bexhill Promenade & Foreshore,B2201,Electricity,3.00,Ecotricity Ltd,Electricity - Electricity Charges,2027818,202107
Rother District Council,09/08/2021,091HOUSING,Housing and Community Services,20108,Bexhill Promenade & Foreshore,B2201,Electricity,7.13,Ecotricity Ltd,Electricity - Electricity Charges,2027819,202107
Rother District Council,09/08/2021,091HOUSING,Housing and Community Services,20114,Bexhill Parks & Open Spaces,B2201,Electricity,19.33,Ecotricity Ltd,Electricity - Electricity Charges,2027814,202107
Rother District Council,09/08/2021,091HOUSING,Housing and Community Services,20137,Car Parks,B2201,Electricity,38.89,Ecotricity Ltd,Electricity - Electricity Charges,2027815,202107
Rother District Council,09/08/2021,091HOUSING,Housing and Community Services,20137,Car Parks,B2201,Electricity,10.35,Ecotricity Ltd,Electricity - Electricity Charges,2027817,202107
Rother District Council,09/08/2021,091HOUSING,Housing and Community Services,20137,Car Parks,B2201,Electricity,19.00,Ecotricity Ltd,Electricity - Electricity Charges,2027818,202107
Rother District Council,09/08/2021,091HOUSING,Housing and Community Services,20137,Car Parks,B2201,Electricity,45.12,Ecotricity Ltd,Electricity - Electricity Charges,2027819,202107
Rother District Council,09/08/2021,091HOUSING,Housing and Community Services,20138,Residual Highway Services,B2201,Electricity,32.36,Ecotricity Ltd,Electricity - Electricity Charges,2027815,202107
Rother District Council,09/08/2021,091HOUSING,Housing and Community Services,20138,Residual Highway Services,B2201,Electricity,1.63,Ecotricity Ltd,Electricity - Electricity Charges,2027817,202107
Rother District Council,09/08/2021,091HOUSING,Housing and Community Services,20138,Residual Highway Services,B2201,Electricity,3.00,Ecotricity Ltd,Electricity - Electricity Charges,2027818,202107
Rother District Council,09/08/2021,091HOUSING,Housing and Community Services,20138,Residual Highway Services,B2201,Electricity,7.12,Ecotricity Ltd,Electricity - Electricity Charges,2027819,202107
Rother District Council,09/08/2021,091HOUSING,Housing and Community Services,20137,Car Parks,B2201,Electricity,5.18,Ecotricity Ltd,Electricity,2027816,202107
Rother District Council,09/08/2021,091HOUSING,Housing and Community Services,20138,Residual Highway Services,B2201,Electricity,4.31,Ecotricity Ltd,Electricity,2027816,202107
Rother District Council,10/08/2021,031RESOURCES,Chief Executive & Corporate Core,20156,Representing Local Interest,D2513,Hired and Contracted services,275.00,Rambler Coaches Ltd,Hired and contracted services - Coach Hire for Planning Site Visits,2027947,202107
Rother District Council,11/08/2021,081ACQUISIT,"Acquisitions, Transformation and Regeneration",20101,Cultural Development,D2926,District Events- Concessionary Use,"1,500.00",De La Warr Pavilion (Enterprise) Ltd,District Events-Concessionary - Use DLWP Community Concessionary Grant,2029062,202109
Rother District Council,11/08/2021,091HOUSING,Housing and Community Services,20128,Public Conveniences,B1100,Repairs to Premises,195.00,B and G Environmental Services Limited,Repairs to Premises - Drainage Clearance,2028009,202107
Rother District Council,12/08/2021,091HOUSING,Housing and Community Services,20128,Public Conveniences,B1100,Repairs to Premises,337.54,Alfa Electric Ltd,Repairs to Premises - Repairs - Electrical Works,2028214,202107
Rother District Council,13/08/2021,101RESOURCES,Resources,20242,Communications-Phones,D2622,Mobile Phones,110.00,O2 (UK) Ltd,Mobile Phones,2027491,202107
Rother District Council,13/08/2021,101RESOURCES,Resources,20242,Communications-Phones,D2622,Mobile Phones,244.00,O2 (UK) Ltd,Mobile Phones,2027493,202107
Rother District Council,13/08/2021,101RESOURCES,Resources,20242,Communications-Phones,D2622,Mobile Phones,55.00,O2 (UK) Ltd,Mobile Phones,2027496,202107
Rother District Council,13/08/2021,101RESOURCES,Resources,20242,Communications-Phones,D2622,Mobile Phones,606.39,O2 (UK) Ltd,Mobile Phones,2027498,202107
Rother District Council,13/08/2021,101RESOURCES,Resources,20242,Communications-Phones,D2622,Mobile Phones,110.00,O2 (UK) Ltd,Mobile Phones,2027500,202107
Rother District Council,13/08/2021,101RESOURCES,Resources,20242,Communications-Phones,D2622,Mobile Phones,539.65,O2 (UK) Ltd,Mobile Phones,2027501,202107
Rother District Council,15/08/2021,031RESOURCES,Chief Executive & Corporate Core,20281,Establishing a Bexhill Town Council,D2635,Computer Licences,72.20,Barry Technology Ltd,Computer Licences - New Computer Software,2027782,202107
Rother District Council,16/08/2021,091HOUSING,Housing and Community Services,20200,Housing Needs - HB (Housing Benefit),D2508,Removals and Storage,535.00,Express Removals Worldwide Ltd,Removals and Storage,2028041,202107
Rother District Council,17/08/2021,081ACQUISIT,"Acquisitions, Transformation and Regeneration",20243,Business Improvement,D2513,Hired and Contracted services,"81,795.47",Public-i Group Ltd,Hired and contracted services - Equipment for Meetings,2026764,202108
Rother District Council,18/08/2021,041ENVIRON,Environmental Services,32134,EH Pollution R + W Partnership,D2626,Postages,18.00,Cirrus Research PLC,Postages - Carriage of Supplies,2026838,202107
Rother District Council,18/08/2021,041ENVIRON,Environmental Services,32134,EH Pollution R + W Partnership,D1201,Equipment & Materials,373.00,Cirrus Research PLC,Equipment & Materials - EnvH- Pollution Equipment,2026838,202107
Rother District Council,23/08/2021,091HOUSING,Housing and Community Services,20137,Car Parks,B1100,Repairs to Premises,285.90,Fleet (Line Markers) Ltd,Repairs to Premises - Car Park Maintenance,2029040,202109
Rother District Council,24/08/2021,081ACQUISIT,"Acquisitions, Transformation and Regeneration",20154,Committee Property Account,B2202,Gas,11.10,Laser Energy Buying Group (Kent County Council Commercial Services),Gas - Gas Charges,2027952,202107
Rother District Council,24/08/2021,081ACQUISIT,"Acquisitions, Transformation and Regeneration",20154,Committee Property Account,B2201,Electricity,15.94,Laser Energy Buying Group (Kent County Council Commercial Services),Electricity - Electricity Charges,2027951,202107
Rother District Council,24/08/2021,081ACQUISIT,"Acquisitions, Transformation and Regeneration",20154,Committee Property Account,B2201,Electricity,15.94,Laser Energy Buying Group (Kent County Council Commercial Services),Electricity - Electricity Charges,2027951,202107
Rother District Council,24/08/2021,081ACQUISIT,"Acquisitions, Transformation and Regeneration",20154,Committee Property Account,B2201,Electricity,15.94,Laser Energy Buying Group (Kent County Council Commercial Services),Electricity - Electricity Charges,2027951,202107
Rother District Council,24/08/2021,081ACQUISIT,"Acquisitions, Transformation and Regeneration",20154,Committee Property Account,B2201,Electricity,15.94,Laser Energy Buying Group (Kent County Council Commercial Services),Electricity - Electricity Charges,2027951,202107
Rother District Council,24/08/2021,081ACQUISIT,"Acquisitions, Transformation and Regeneration",20154,Committee Property Account,B2201,Electricity,717.38,Laser Energy Buying Group (Kent County Council Commercial Services),Electricity - Electricity Charges,2027951,202107
Rother District Council,24/08/2021,081ACQUISIT,"Acquisitions, Transformation and Regeneration",20154,Committee Property Account,B2201,Electricity,12.06,Laser Energy Buying Group (Kent County Council Commercial Services),Electricity - Electricity Charges,2027951,202107
Rother District Council,24/08/2021,081ACQUISIT,"Acquisitions, Transformation and Regeneration",20154,Committee Property Account,B2201,Electricity,12.05,Laser Energy Buying Group (Kent County Council Commercial Services),Electricity - Electricity Charges,2027951,202107
Rother District Council,24/08/2021,081ACQUISIT,"Acquisitions, Transformation and Regeneration",20154,Committee Property Account,B2201,Electricity,12.06,Laser Energy Buying Group (Kent County Council Commercial Services),Electricity - Electricity Charges,2027951,202107
Rother District Council,24/08/2021,081ACQUISIT,"Acquisitions, Transformation and Regeneration",20151,Udimore Workshops,B2201,Electricity,27.73,Laser Energy Buying Group (Kent County Council Commercial Services),Electricity - Electricity Charges,2027951,202107
Rother District Council,24/08/2021,081ACQUISIT,"Acquisitions, Transformation and Regeneration",20150,Peasmarsh Workshops,B2201,Electricity,27.76,Laser Energy Buying Group (Kent County Council Commercial Services),Electricity - Electricity Charges,2027951,202107
Rother District Council,24/08/2021,081ACQUISIT,"Acquisitions, Transformation and Regeneration",20153,"Elva Business Centre, Bexhill",B2201,Electricity,907.06,Laser Energy Buying Group (Kent County Council Commercial Services),Electricity - Electricity Charges,2027951,202107
Rother District Council,24/08/2021,081ACQUISIT,"Acquisitions, Transformation and Regeneration",20153,"Elva Business Centre, Bexhill",B2201,Electricity,916.68,Laser Energy Buying Group (Kent County Council Commercial Services),Electricity - Electricity Charges,2027951,202107
Rother District Council,24/08/2021,081ACQUISIT,"Acquisitions, Transformation and Regeneration",20150,Peasmarsh Workshops,B2201,Electricity,28.70,Laser Energy Buying Group (Kent County Council Commercial Services),Electricity - Electricity Charges,2027951,202107
Rother District Council,24/08/2021,081ACQUISIT,"Acquisitions, Transformation and Regeneration",20148,Misc Land & Buildings,B2201,Electricity,48.27,Laser Energy Buying Group (Kent County Council Commercial Services),Electricity - Electricity Charges,2027951,202107
Rother District Council,24/08/2021,081ACQUISIT,"Acquisitions, Transformation and Regeneration",20148,Misc Land & Buildings,B2201,Electricity,65.68,Laser Energy Buying Group (Kent County Council Commercial Services),Electricity - Electricity Charges,2027951,202107
Rother District Council,24/08/2021,081ACQUISIT,"Acquisitions, Transformation and Regeneration",20155,Investment properties,B2201,Electricity,30.32,Laser Energy Buying Group (Kent County Council Commercial Services),Electricity - Electricity Charges,2027951,202107
Rother District Council,24/08/2021,081ACQUISIT,"Acquisitions, Transformation and Regeneration",20154,Committee Property Account,B2201,Electricity,16.94,Laser Energy Buying Group (Kent County Council Commercial Services),Electricity - Electricity Charges,2027951,202107
Rother District Council,24/08/2021,081ACQUISIT,"Acquisitions, Transformation and Regeneration",20154,Committee Property Account,B2201,Electricity,16.93,Laser Energy Buying Group (Kent County Council Commercial Services),Electricity - Electricity Charges,2027951,202107
Rother District Council,24/08/2021,081ACQUISIT,"Acquisitions, Transformation and Regeneration",20154,Committee Property Account,B2201,Electricity,16.93,Laser Energy Buying Group (Kent County Council Commercial Services),Electricity - Electricity Charges,2027951,202107
Rother District Council,24/08/2021,081ACQUISIT,"Acquisitions, Transformation and Regeneration",20154,Committee Property Account,B2201,Electricity,16.93,Laser Energy Buying Group (Kent County Council Commercial Services),Electricity - Electricity Charges,2027951,202107
Rother District Council,24/08/2021,081ACQUISIT,"Acquisitions, Transformation and Regeneration",20154,Committee Property Account,B2201,Electricity,762.09,Laser Energy Buying Group (Kent County Council Commercial Services),Electricity - Electricity Charges,2027951,202107
Rother District Council,24/08/2021,081ACQUISIT,"Acquisitions, Transformation and Regeneration",20154,Committee Property Account,B2201,Electricity,14.30,Laser Energy Buying Group (Kent County Council Commercial Services),Electricity - Electricity Charges,2027951,202107
Rother District Council,24/08/2021,081ACQUISIT,"Acquisitions, Transformation and Regeneration",20154,Committee Property Account,B2201,Electricity,14.30,Laser Energy Buying Group (Kent County Council Commercial Services),Electricity - Electricity Charges,2027951,202107
Rother District Council,24/08/2021,081ACQUISIT,"Acquisitions, Transformation and Regeneration",20154,Committee Property Account,B2201,Electricity,14.30,Laser Energy Buying Group (Kent County Council Commercial Services),Electricity - Electricity Charges,2027951,202107
Rother District Council,24/08/2021,081ACQUISIT,"Acquisitions, Transformation and Regeneration",20154,Committee Property Account,B2201,Electricity,14.31,Laser Energy Buying Group (Kent County Council Commercial Services),Electricity - Electricity Charges,2027951,202107
Rother District Council,24/08/2021,081ACQUISIT,"Acquisitions, Transformation and Regeneration",20151,Udimore Workshops,B2201,Electricity,28.47,Laser Energy Buying Group (Kent County Council Commercial Services),Electricity - Electricity Charges,2027951,202107
Rother District Council,24/08/2021,081ACQUISIT,"Acquisitions, Transformation and Regeneration",20148,Misc Land & Buildings,B2201,Electricity,16.23,Laser Energy Buying Group (Kent County Council Commercial Services),Electricity - Electricity Charges,2027951,202107
Rother District Council,24/08/2021,081ACQUISIT,"Acquisitions, Transformation and Regeneration",20154,Committee Property Account,B2201,Electricity,13.51,Laser Energy Buying Group (Kent County Council Commercial Services),Electricity - Electricity Charges,2027951,202107
Rother District Council,24/08/2021,081ACQUISIT,"Acquisitions, Transformation and Regeneration",20154,Committee Property Account,B2201,Electricity,13.51,Laser Energy Buying Group (Kent County Council Commercial Services),Electricity - Electricity Charges,2027951,202107
Rother District Council,24/08/2021,081ACQUISIT,"Acquisitions, Transformation and Regeneration",20154,Committee Property Account,B2201,Electricity,13.51,Laser Energy Buying Group (Kent County Council Commercial Services),Electricity - Electricity Charges,2027951,202107
Rother District Council,24/08/2021,081ACQUISIT,"Acquisitions, Transformation and Regeneration",20154,Committee Property Account,B2201,Electricity,13.51,Laser Energy Buying Group (Kent County Council Commercial Services),Electricity - Electricity Charges,2027951,202107
Rother District Council,24/08/2021,081ACQUISIT,"Acquisitions, Transformation and Regeneration",20154,Committee Property Account,B2201,Electricity,17.99,Laser Energy Buying Group (Kent County Council Commercial Services),Electricity - Electricity Charges,2027951,202107
Rother District Council,24/08/2021,081ACQUISIT,"Acquisitions, Transformation and Regeneration",20154,Committee Property Account,B2201,Electricity,17.98,Laser Energy Buying Group (Kent County Council Commercial Services),Electricity - Electricity Charges,2027951,202107
Rother District Council,24/08/2021,081ACQUISIT,"Acquisitions, Transformation and Regeneration",20154,Committee Property Account,B2201,Electricity,17.98,Laser Energy Buying Group (Kent County Council Commercial Services),Electricity - Electricity Charges,2027951,202107
Rother District Council,24/08/2021,031RESOURCES,Chief Executive & Corporate Core,20176,Administrative Offices - Print Room,B2202,Gas,43.79,Laser Energy Buying Group (Kent County Council Commercial Services),Gas - Gas Charges,2027952,202107
Rother District Council,24/08/2021,031RESOURCES,Chief Executive & Corporate Core,20175,Administrative Offices - T.H. Annex (NOT CHP),B2202,Gas,127.42,Laser Energy Buying Group (Kent County Council Commercial Services),Gas - Gas Charges,2027952,202107
Rother District Council,24/08/2021,031RESOURCES,Chief Executive & Corporate Core,20173,Administrative Offices - Town Hall,B2202,Gas,131.13,Laser Energy Buying Group (Kent County Council Commercial Services),Gas - Gas Charges,2027952,202107
Rother District Council,24/08/2021,031RESOURCES,Chief Executive & Corporate Core,20173,Administrative Offices - Town Hall,B2201,Electricity,"1,690.22",Laser Energy Buying Group (Kent County Council Commercial Services),Electricity - Electricity Charges,2027951,202107
Rother District Council,24/08/2021,031RESOURCES,Chief Executive & Corporate Core,20175,Administrative Offices - T.H. Annex (NOT CHP),B2201,Electricity,657.62,Laser Energy Buying Group (Kent County Council Commercial Services),Electricity - Electricity Charges,2027951,202107
Rother District Council,24/08/2021,031RESOURCES,Chief Executive & Corporate Core,20175,Administrative Offices - T.H. Annex (NOT CHP),B2201,Electricity,635.30,Laser Energy Buying Group (Kent County Council Commercial Services),Electricity - Electricity Charges,2027951,202107
Rother District Council,24/08/2021,031RESOURCES,Chief Executive & Corporate Core,20173,Administrative Offices - Town Hall,B2201,Electricity,"1,742.10",Laser Energy Buying Group (Kent County Council Commercial Services),Electricity - Electricity Charges,2027951,202107
Rother District Council,24/08/2021,031RESOURCES,Chief Executive & Corporate Core,20176,Administrative Offices - Print Room,B2201,Electricity,142.54,Laser Energy Buying Group (Kent County Council Commercial Services),Electricity - Electricity Charges,2027951,202107
Rother District Council,24/08/2021,091HOUSING,Housing and Community Services,20137,Car Parks,B1100,Repairs to Premises,214.11,Alfa Electric Ltd,Repairs to Premises - Repairs - Electrical Works,2028216,202107
Rother District Council,24/08/2021,091HOUSING,Housing and Community Services,20114,Bexhill Parks & Open Spaces,D2513,Hired and Contracted services,"1,751.29",Strata Safety Solutions,Hired and contracted services - Parks-Consultants Fees,2027940,202107
Rother District Council,24/08/2021,091HOUSING,Housing and Community Services,20115,Rye Area Parks & Gardens,D2513,Hired and Contracted services,603.76,Strata Safety Solutions,Hired and contracted services - Parks-Consultants Fees,2027940,202107
Rother District Council,24/08/2021,091HOUSING,Housing and Community Services,20114,Bexhill Parks & Open Spaces,D2513,Hired and Contracted services,"1,368.48",Strata Safety Solutions,Hired and contracted services - Parks-Consultants Fees,2027941,202107
Rother District Council,24/08/2021,091HOUSING,Housing and Community Services,20115,Rye Area Parks & Gardens,D2513,Hired and Contracted services,273.69,Strata Safety Solutions,Hired and contracted services - Parks-Consultants Fees,2027941,202107
Rother District Council,24/08/2021,091HOUSING,Housing and Community Services,20102,Rother Museum Services,B2201,Electricity,400.13,Laser Energy Buying Group (Kent County Council Commercial Services),Electricity - Electricity Charges,2027951,202107
Rother District Council,24/08/2021,091HOUSING,Housing and Community Services,20108,Bexhill Promenade & Foreshore,B2201,Electricity,7.97,Laser Energy Buying Group (Kent County Council Commercial Services),Electricity - Electricity Charges,2027951,202107
Rother District Council,24/08/2021,091HOUSING,Housing and Community Services,20108,Bexhill Promenade & Foreshore,B2201,Electricity,7.97,Laser Energy Buying Group (Kent County Council Commercial Services),Electricity - Electricity Charges,2027951,202107
Rother District Council,24/08/2021,091HOUSING,Housing and Community Services,20108,Bexhill Promenade & Foreshore,B2201,Electricity,37.17,Laser Energy Buying Group (Kent County Council Commercial Services),Electricity - Electricity Charges,2027951,202107
Rother District Council,24/08/2021,091HOUSING,Housing and Community Services,20108,Bexhill Promenade & Foreshore,B2201,Electricity,30.52,Laser Energy Buying Group (Kent County Council Commercial Services),Electricity - Electricity Charges,2027951,202107
Rother District Council,24/08/2021,091HOUSING,Housing and Community Services,20108,Bexhill Promenade & Foreshore,B2201,Electricity,32.51,Laser Energy Buying Group (Kent County Council Commercial Services),Electricity - Electricity Charges,2027951,202107
Rother District Council,24/08/2021,091HOUSING,Housing and Community Services,20108,Bexhill Promenade & Foreshore,B2201,Electricity,12.06,Laser Energy Buying Group (Kent County Council Commercial Services),Electricity - Electricity Charges,2027951,202107
Rother District Council,24/08/2021,091HOUSING,Housing and Community Services,20108,Bexhill Promenade & Foreshore,B2201,Electricity,30.57,Laser Energy Buying Group (Kent County Council Commercial Services),Electricity - Electricity Charges,2027951,202107
Rother District Council,24/08/2021,091HOUSING,Housing and Community Services,20108,Bexhill Promenade & Foreshore,B2201,Electricity,59.94,Laser Energy Buying Group (Kent County Council Commercial Services),Electricity - Electricity Charges,2027951,202107
Rother District Council,24/08/2021,091HOUSING,Housing and Community Services,20108,Bexhill Promenade & Foreshore,B2201,Electricity,56.19,Laser Energy Buying Group (Kent County Council Commercial Services),Electricity - Electricity Charges,2027951,202107
Rother District Council,24/08/2021,091HOUSING,Housing and Community Services,20108,Bexhill Promenade & Foreshore,B2201,Electricity,-28.74,Laser Energy Buying Group (Kent County Council Commercial Services),Electricity - Electricity Charges,2027951,202107
Rother District Council,24/08/2021,091HOUSING,Housing and Community Services,20108,Bexhill Promenade & Foreshore,B2201,Electricity,-33.39,Laser Energy Buying Group (Kent County Council Commercial Services),Electricity - Electricity Charges,2027951,202107
Rother District Council,24/08/2021,091HOUSING,Housing and Community Services,20108,Bexhill Promenade & Foreshore,B2201,Electricity,-27.62,Laser Energy Buying Group (Kent County Council Commercial Services),Electricity - Electricity Charges,2027951,202107
Rother District Council,24/08/2021,091HOUSING,Housing and Community Services,20108,Bexhill Promenade & Foreshore,B2201,Electricity,-47.30,Laser Energy Buying Group (Kent County Council Commercial Services),Electricity - Electricity Charges,2027951,202107
Rother District Council,24/08/2021,091HOUSING,Housing and Community Services,20108,Bexhill Promenade & Foreshore,B2201,Electricity,-26.89,Laser Energy Buying Group (Kent County Council Commercial Services),Electricity - Electricity Charges,2027951,202107
Rother District Council,24/08/2021,091HOUSING,Housing and Community Services,20108,Bexhill Promenade & Foreshore,B2201,Electricity,-40.76,Laser Energy Buying Group (Kent County Council Commercial Services),Electricity - Electricity Charges,2027951,202107
Rother District Council,24/08/2021,091HOUSING,Housing and Community Services,20108,Bexhill Promenade & Foreshore,B2201,Electricity,-37.17,Laser Energy Buying Group (Kent County Council Commercial Services),Electricity - Electricity Charges,2027951,202107
Rother District Council,24/08/2021,091HOUSING,Housing and Community Services,20108,Bexhill Promenade & Foreshore,B2201,Electricity,-32.51,Laser Energy Buying Group (Kent County Council Commercial Services),Electricity - Electricity Charges,2027951,202107
Rother District Council,24/08/2021,091HOUSING,Housing and Community Services,20108,Bexhill Promenade & Foreshore,B2201,Electricity,-30.52,Laser Energy Buying Group (Kent County Council Commercial Services),Electricity - Electricity Charges,2027951,202107
Rother District Council,24/08/2021,091HOUSING,Housing and Community Services,20108,Bexhill Promenade & Foreshore,B2201,Electricity,-30.57,Laser Energy Buying Group (Kent County Council Commercial Services),Electricity - Electricity Charges,2027951,202107
Rother District Council,24/08/2021,091HOUSING,Housing and Community Services,20107,Camber Beach & Foreshore,B2201,Electricity,84.84,Laser Energy Buying Group (Kent County Council Commercial Services),Electricity - Electricity Charges,2027951,202107
Rother District Council,24/08/2021,091HOUSING,Housing and Community Services,20108,Bexhill Promenade & Foreshore,B2201,Electricity,35.93,Laser Energy Buying Group (Kent County Council Commercial Services),Electricity - Electricity Charges,2027951,202107
Rother District Council,24/08/2021,091HOUSING,Housing and Community Services,20108,Bexhill Promenade & Foreshore,B2201,Electricity,42.29,Laser Energy Buying Group (Kent County Council Commercial Services),Electricity - Electricity Charges,2027951,202107
Rother District Council,24/08/2021,091HOUSING,Housing and Community Services,20108,Bexhill Promenade & Foreshore,B2201,Electricity,33.20,Laser Energy Buying Group (Kent County Council Commercial Services),Electricity - Electricity Charges,2027951,202107
Rother District Council,24/08/2021,091HOUSING,Housing and Community Services,20108,Bexhill Promenade & Foreshore,B2201,Electricity,8.47,Laser Energy Buying Group (Kent County Council Commercial Services),Electricity - Electricity Charges,2027951,202107
Rother District Council,24/08/2021,091HOUSING,Housing and Community Services,20108,Bexhill Promenade & Foreshore,B2201,Electricity,8.47,Laser Energy Buying Group (Kent County Council Commercial Services),Electricity - Electricity Charges,2027951,202107
Rother District Council,24/08/2021,091HOUSING,Housing and Community Services,20107,Camber Beach & Foreshore,B2201,Electricity,117.02,Laser Energy Buying Group (Kent County Council Commercial Services),Electricity - Electricity Charges,2027951,202107
Rother District Council,24/08/2021,091HOUSING,Housing and Community Services,20108,Bexhill Promenade & Foreshore,B2201,Electricity,17.98,Laser Energy Buying Group (Kent County Council Commercial Services),Electricity - Electricity Charges,2027951,202107
Rother District Council,24/08/2021,091HOUSING,Housing and Community Services,20108,Bexhill Promenade & Foreshore,B2201,Electricity,30.09,Laser Energy Buying Group (Kent County Council Commercial Services),Electricity - Electricity Charges,2027951,202107
Rother District Council,24/08/2021,091HOUSING,Housing and Community Services,20114,Bexhill Parks & Open Spaces,B2201,Electricity,13.64,Laser Energy Buying Group (Kent County Council Commercial Services),Electricity - Electricity Charges,2027951,202107
Rother District Council,24/08/2021,091HOUSING,Housing and Community Services,20114,Bexhill Parks & Open Spaces,B2201,Electricity,26.90,Laser Energy Buying Group (Kent County Council Commercial Services),Electricity - Electricity Charges,2027951,202107
Rother District Council,24/08/2021,091HOUSING,Housing and Community Services,20114,Bexhill Parks & Open Spaces,B2201,Electricity,33.09,Laser Energy Buying Group (Kent County Council Commercial Services),Electricity - Electricity Charges,2027951,202107
Rother District Council,24/08/2021,091HOUSING,Housing and Community Services,20114,Bexhill Parks & Open Spaces,B2201,Electricity,30.03,Laser Energy Buying Group (Kent County Council Commercial Services),Electricity - Electricity Charges,2027951,202107
Rother District Council,24/08/2021,091HOUSING,Housing and Community Services,20114,Bexhill Parks & Open Spaces,B2201,Electricity,38.37,Laser Energy Buying Group (Kent County Council Commercial Services),Electricity - Electricity Charges,2027951,202107
Rother District Council,24/08/2021,091HOUSING,Housing and Community Services,20114,Bexhill Parks & Open Spaces,B2201,Electricity,27.78,Laser Energy Buying Group (Kent County Council Commercial Services),Electricity - Electricity Charges,2027951,202107
Rother District Council,24/08/2021,091HOUSING,Housing and Community Services,20115,Rye Area Parks & Gardens,B2201,Electricity,28.47,Laser Energy Buying Group (Kent County Council Commercial Services),Electricity - Electricity Charges,2027951,202107
Rother District Council,24/08/2021,091HOUSING,Housing and Community Services,20114,Bexhill Parks & Open Spaces,B2201,Electricity,24.31,Laser Energy Buying Group (Kent County Council Commercial Services),Electricity - Electricity Charges,2027951,202107
Rother District Council,24/08/2021,091HOUSING,Housing and Community Services,20115,Rye Area Parks & Gardens,B2201,Electricity,16.23,Laser Energy Buying Group (Kent County Council Commercial Services),Electricity - Electricity Charges,2027951,202107
Rother District Council,24/08/2021,091HOUSING,Housing and Community Services,20114,Bexhill Parks & Open Spaces,B2201,Electricity,27.78,Laser Energy Buying Group (Kent County Council Commercial Services),Electricity - Electricity Charges,2027951,202107
Rother District Council,24/08/2021,091HOUSING,Housing and Community Services,20115,Rye Area Parks & Gardens,B2201,Electricity,31.99,Laser Energy Buying Group (Kent County Council Commercial Services),Electricity - Electricity Charges,2027951,202107
Rother District Council,24/08/2021,091HOUSING,Housing and Community Services,20128,Public Conveniences,B2201,Electricity,51.52,Laser Energy Buying Group (Kent County Council Commercial Services),Electricity - Electricity Charges,2027951,202107
Rother District Council,24/08/2021,091HOUSING,Housing and Community Services,20128,Public Conveniences,B2201,Electricity,33.36,Laser Energy Buying Group (Kent County Council Commercial Services),Electricity - Electricity Charges,2027951,202107
Rother District Council,24/08/2021,091HOUSING,Housing and Community Services,20128,Public Conveniences,B2201,Electricity,27.04,Laser Energy Buying Group (Kent County Council Commercial Services),Electricity - Electricity Charges,2027951,202107
Rother District Council,24/08/2021,091HOUSING,Housing and Community Services,20128,Public Conveniences,B2201,Electricity,82.08,Laser Energy Buying Group (Kent County Council Commercial Services),Electricity - Electricity Charges,2027951,202107
Rother District Council,24/08/2021,091HOUSING,Housing and Community Services,20128,Public Conveniences,B2201,Electricity,34.33,Laser Energy Buying Group (Kent County Council Commercial Services),Electricity - Electricity Charges,2027951,202107
Rother District Council,24/08/2021,091HOUSING,Housing and Community Services,20128,Public Conveniences,B2201,Electricity,43.53,Laser Energy Buying Group (Kent County Council Commercial Services),Electricity - Electricity Charges,2027951,202107
Rother District Council,24/08/2021,091HOUSING,Housing and Community Services,20128,Public Conveniences,B2201,Electricity,60.02,Laser Energy Buying Group (Kent County Council Commercial Services),Electricity - Electricity Charges,2027951,202107
Rother District Council,24/08/2021,091HOUSING,Housing and Community Services,20128,Public Conveniences,B2201,Electricity,74.76,Laser Energy Buying Group (Kent County Council Commercial Services),Electricity - Electricity Charges,2027951,202107
Rother District Council,24/08/2021,091HOUSING,Housing and Community Services,20128,Public Conveniences,B2201,Electricity,26.76,Laser Energy Buying Group (Kent County Council Commercial Services),Electricity - Electricity Charges,2027951,202107
Rother District Council,24/08/2021,091HOUSING,Housing and Community Services,20128,Public Conveniences,B2201,Electricity,40.92,Laser Energy Buying Group (Kent County Council Commercial Services),Electricity - Electricity Charges,2027951,202107
Rother District Council,24/08/2021,091HOUSING,Housing and Community Services,20128,Public Conveniences,B2201,Electricity,104.70,Laser Energy Buying Group (Kent County Council Commercial Services),Electricity - Electricity Charges,2027951,202107
Rother District Council,24/08/2021,091HOUSING,Housing and Community Services,20128,Public Conveniences,B2201,Electricity,27.04,Laser Energy Buying Group (Kent County Council Commercial Services),Electricity - Electricity Charges,2027951,202107
Rother District Council,24/08/2021,091HOUSING,Housing and Community Services,20128,Public Conveniences,B2201,Electricity,18.98,Laser Energy Buying Group (Kent County Council Commercial Services),Electricity - Electricity Charges,2027951,202107
Rother District Council,24/08/2021,091HOUSING,Housing and Community Services,20128,Public Conveniences,B2201,Electricity,44.42,Laser Energy Buying Group (Kent County Council Commercial Services),Electricity - Electricity Charges,2027951,202107
Rother District Council,24/08/2021,091HOUSING,Housing and Community Services,20128,Public Conveniences,B2201,Electricity,30.31,Laser Energy Buying Group (Kent County Council Commercial Services),Electricity - Electricity Charges,2027951,202107
Rother District Council,24/08/2021,091HOUSING,Housing and Community Services,20128,Public Conveniences,B2201,Electricity,73.35,Laser Energy Buying Group (Kent County Council Commercial Services),Electricity - Electricity Charges,2027951,202107
Rother District Council,24/08/2021,091HOUSING,Housing and Community Services,20128,Public Conveniences,B2201,Electricity,46.07,Laser Energy Buying Group (Kent County Council Commercial Services),Electricity - Electricity Charges,2027951,202107
Rother District Council,24/08/2021,091HOUSING,Housing and Community Services,20128,Public Conveniences,B2201,Electricity,29.29,Laser Energy Buying Group (Kent County Council Commercial Services),Electricity - Electricity Charges,2027951,202107
Rother District Council,24/08/2021,091HOUSING,Housing and Community Services,20128,Public Conveniences,B2201,Electricity,75.30,Laser Energy Buying Group (Kent County Council Commercial Services),Electricity - Electricity Charges,2027951,202107
Rother District Council,24/08/2021,091HOUSING,Housing and Community Services,20128,Public Conveniences,B2201,Electricity,42.91,Laser Energy Buying Group (Kent County Council Commercial Services),Electricity - Electricity Charges,2027951,202107
Rother District Council,24/08/2021,091HOUSING,Housing and Community Services,20128,Public Conveniences,B2201,Electricity,33.01,Laser Energy Buying Group (Kent County Council Commercial Services),Electricity - Electricity Charges,2027951,202107
Rother District Council,24/08/2021,091HOUSING,Housing and Community Services,20123,Cemeteries,B2201,Electricity,41.67,Laser Energy Buying Group (Kent County Council Commercial Services),Electricity - Electricity Charges,2027951,202107
Rother District Council,24/08/2021,091HOUSING,Housing and Community Services,20128,Public Conveniences,B2201,Electricity,220.85,Laser Energy Buying Group (Kent County Council Commercial Services),Electricity - Electricity Charges,2027951,202107
Rother District Council,24/08/2021,091HOUSING,Housing and Community Services,20128,Public Conveniences,B2201,Electricity,85.40,Laser Energy Buying Group (Kent County Council Commercial Services),Electricity - Electricity Charges,2027951,202107
Rother District Council,24/08/2021,091HOUSING,Housing and Community Services,20128,Public Conveniences,B2201,Electricity,131.59,Laser Energy Buying Group (Kent County Council Commercial Services),Electricity - Electricity Charges,2027951,202107
Rother District Council,24/08/2021,091HOUSING,Housing and Community Services,20128,Public Conveniences,B2201,Electricity,34.38,Laser Energy Buying Group (Kent County Council Commercial Services),Electricity - Electricity Charges,2027951,202107
Rother District Council,24/08/2021,091HOUSING,Housing and Community Services,20128,Public Conveniences,B2201,Electricity,107.12,Laser Energy Buying Group (Kent County Council Commercial Services),Electricity - Electricity Charges,2027951,202107
Rother District Council,24/08/2021,091HOUSING,Housing and Community Services,20128,Public Conveniences,B2201,Electricity,32.46,Laser Energy Buying Group (Kent County Council Commercial Services),Electricity - Electricity Charges,2027951,202107
Rother District Council,24/08/2021,091HOUSING,Housing and Community Services,20128,Public Conveniences,B2201,Electricity,29.98,Laser Energy Buying Group (Kent County Council Commercial Services),Electricity - Electricity Charges,2027951,202107
Rother District Council,24/08/2021,091HOUSING,Housing and Community Services,20128,Public Conveniences,B2201,Electricity,63.57,Laser Energy Buying Group (Kent County Council Commercial Services),Electricity - Electricity Charges,2027951,202107
Rother District Council,24/08/2021,091HOUSING,Housing and Community Services,20128,Public Conveniences,B2201,Electricity,28.33,Laser Energy Buying Group (Kent County Council Commercial Services),Electricity - Electricity Charges,2027951,202107
Rother District Council,24/08/2021,091HOUSING,Housing and Community Services,20128,Public Conveniences,B2201,Electricity,50.61,Laser Energy Buying Group (Kent County Council Commercial Services),Electricity - Electricity Charges,2027951,202107
Rother District Council,24/08/2021,091HOUSING,Housing and Community Services,20128,Public Conveniences,B2201,Electricity,29.84,Laser Energy Buying Group (Kent County Council Commercial Services),Electricity - Electricity Charges,2027951,202107
Rother District Council,24/08/2021,091HOUSING,Housing and Community Services,20128,Public Conveniences,B2201,Electricity,50.19,Laser Energy Buying Group (Kent County Council Commercial Services),Electricity - Electricity Charges,2027951,202107
Rother District Council,24/08/2021,091HOUSING,Housing and Community Services,20128,Public Conveniences,B2201,Electricity,39.88,Laser Energy Buying Group (Kent County Council Commercial Services),Electricity - Electricity Charges,2027951,202107
Rother District Council,24/08/2021,091HOUSING,Housing and Community Services,20128,Public Conveniences,B2201,Electricity,6.08,Laser Energy Buying Group (Kent County Council Commercial Services),Electricity - Electricity Charges,2027951,202107
Rother District Council,24/08/2021,091HOUSING,Housing and Community Services,20137,Car Parks,B2201,Electricity,69.53,Laser Energy Buying Group (Kent County Council Commercial Services),Electricity - Electricity Charges,2027951,202107
Rother District Council,24/08/2021,091HOUSING,Housing and Community Services,20137,Car Parks,B2201,Electricity,39.06,Laser Energy Buying Group (Kent County Council Commercial Services),Electricity - Electricity Charges,2027951,202107
Rother District Council,24/08/2021,091HOUSING,Housing and Community Services,20137,Car Parks,B2201,Electricity,32.04,Laser Energy Buying Group (Kent County Council Commercial Services),Electricity - Electricity Charges,2027951,202107
Rother District Council,24/08/2021,091HOUSING,Housing and Community Services,20145,Maintenance Services,B2201,Electricity,234.50,Laser Energy Buying Group (Kent County Council Commercial Services),Electricity - Electricity Charges,2027951,202107
Rother District Council,24/08/2021,101RESOURCES,Resources,20239,Computer Services,D2633,Computer Equipment,750.00,Apple Retail UK Ltd,Computer Equipment - New - Computer Hardware,2028618,202108
Rother District Council,25/08/2021,031RESOURCES,Chief Executive & Corporate Core,20171,Human Resources,A2203,Training,818.10,Croner Group Ltd,Training,2027455,202107
Rother District Council,25/08/2021,031RESOURCES,Chief Executive & Corporate Core,20171,Human Resources,A2203,Training,101.81,Croner Group Ltd,Training,2027455,202107
Rother District Council,26/08/2021,081ACQUISIT,"Acquisitions, Transformation and Regeneration",70725,Capital - Blackfriars,N1004,Architects & Consultant Fees,"2,199.60",Bevan Brittan LLP,Hired and contracted services - Legal Advice,2027741,202107
Rother District Council,27/08/2021,091HOUSING,Housing and Community Services,20128,Public Conveniences,B1100,Repairs to Premises,546.32,Alfa Electric Ltd,Repairs to Premises - Repairs - Electrical Works,2028100,202107
Rother District Council,27/08/2021,101RESOURCES,Resources,20242,Communications-Phones,D2621,Telephones,309.64,BT British Telecommunications plc,Telephones - BT-Rental-General,2027285,202107
Rother District Council,27/08/2021,101RESOURCES,Resources,20242,Communications-Phones,D2621,Telephones,40.00,BT British Telecommunications plc,Telephones - BT-Rental-General,2027285,202107
Rother District Council,28/08/2021,091HOUSING,Housing and Community Services,20137,Car Parks,B1100,Repairs to Premises,192.61,Alfa Electric Ltd,Repairs to Premises - Repairs - Electrical Works,2028215,202107
Rother District Council,31/08/2021,081ACQUISIT,"Acquisitions, Transformation and Regeneration",20122,Economic Development,D2513,Hired and Contracted services,45.72,R French and  Son Ltd,Hired and contracted services - Office Move Costs,2027345,202107
Rother District Council,31/08/2021,081ACQUISIT,"Acquisitions, Transformation and Regeneration",20122,Economic Development,D2513,Hired and Contracted services,45.72,R French and  Son Ltd,Hired and contracted services - Office Move Costs,2027346,202107
Rother District Council,31/08/2021,081ACQUISIT,"Acquisitions, Transformation and Regeneration",20122,Economic Development,D2513,Hired and Contracted services,45.72,R French and  Son Ltd,Hired and contracted services - Office Move Costs,2027347,202107
Rother District Council,31/08/2021,031RESOURCES,Chief Executive & Corporate Core,20281,Establishing a Bexhill Town Council,D2415,Printing by external suppliers,710.16,Sparc PM Ltd,Printing by external suppliers - Printing (Not from RDC Print Room),2027945,202107
Rother District Council,31/08/2021,031RESOURCES,Chief Executive & Corporate Core,20172,Facilities Management,D2513,Hired and Contracted services,45.71,R French and  Son Ltd,Hired and contracted services - Office Move Costs,2027345,202107
Rother District Council,31/08/2021,031RESOURCES,Chief Executive & Corporate Core,20172,Facilities Management,D2513,Hired and Contracted services,45.72,R French and  Son Ltd,Hired and contracted services - Office Move Costs,2027346,202107
Rother District Council,31/08/2021,031RESOURCES,Chief Executive & Corporate Core,20172,Facilities Management,D2513,Hired and Contracted services,45.72,R French and  Son Ltd,Hired and contracted services - Office Move Costs,2027347,202107
Rother District Council,31/08/2021,041ENVIRON,Environmental Services,32144,EH Environmental Services Admin R + W Partnership,D2513,Hired and Contracted services,45.72,R French and  Son Ltd,Hired and contracted services - Office Move Costs,2027345,202107
Rother District Council,31/08/2021,041ENVIRON,Environmental Services,32144,EH Environmental Services Admin R + W Partnership,D2513,Hired and Contracted services,45.72,R French and  Son Ltd,Hired and contracted services - Office Move Costs,2027346,202107
Rother District Council,31/08/2021,041ENVIRON,Environmental Services,32144,EH Environmental Services Admin R + W Partnership,D2513,Hired and Contracted services,45.71,R French and  Son Ltd,Hired and contracted services - Office Move Costs,2027347,202107
Rother District Council,31/08/2021,041ENVIRON,Environmental Services,32136,EH Pest Control R + W Partnership,C1104,Derv,3.80,Allstar Business Solutions,Derv - Fuel Service fee payable on fuel cards,2028628,202108
Rother District Council,31/08/2021,041ENVIRON,Environmental Services,32136,EH Pest Control R + W Partnership,C1104,Derv,55.83,Allstar Business Solutions,Derv,2028628,202108
Rother District Council,31/08/2021,041ENVIRON,Environmental Services,32136,EH Pest Control R + W Partnership,C1104,Derv,55.83,Allstar Business Solutions,Derv,2028628,202108
Rother District Council,31/08/2021,091HOUSING,Housing and Community Services,20133,Refuse Collection,E2302,Third party payment private contractors,260.90,Data Shredding Services Ltd,Third party payment private contractors - Commercial Waste Collection Contract,2028791,202108
Rother District Council,31/08/2021,091HOUSING,Housing and Community Services,20137,Car Parks,D2507,Security Services,240.00,Continental Facilities Management Group Ltd,Security services provided,2027202,202108
Rother District Council,31/08/2021,091HOUSING,Housing and Community Services,20304,Housing First,D2513,Hired and Contracted services,"10,750.00",Hastings Borough Council,Hired and contracted services - Service fee paid,2028006,202107
Rother District Council,31/08/2021,091HOUSING,Housing and Community Services,20120,Neighbourhood Services,D2513,Hired and Contracted services,45.72,R French and  Son Ltd,Hired and contracted services - Office Move Costs,2027345,202107
Rother District Council,31/08/2021,091HOUSING,Housing and Community Services,20120,Neighbourhood Services,D2513,Hired and Contracted services,45.71,R French and  Son Ltd,Hired and contracted services - Office Move Costs,2027346,202107
Rother District Council,31/08/2021,091HOUSING,Housing and Community Services,20120,Neighbourhood Services,D2513,Hired and Contracted services,45.72,R French and  Son Ltd,Hired and contracted services - Office Move Costs,2027347,202107
Rother District Council,31/08/2021,091HOUSING,Housing and Community Services,20204,Housing Administration Account,D2513,Hired and Contracted services,45.72,R French and  Son Ltd,Hired and contracted services - Office Move Costs,2027345,202107
Rother District Council,31/08/2021,091HOUSING,Housing and Community Services,20204,Housing Administration Account,D2513,Hired and Contracted services,45.71,R French and  Son Ltd,Hired and contracted services - Office Move Costs,2027346,202107
Rother District Council,31/08/2021,091HOUSING,Housing and Community Services,20204,Housing Administration Account,D2513,Hired and Contracted services,45.71,R French and  Son Ltd,Hired and contracted services - Office Move Costs,2027347,202107
Rother District Council,31/08/2021,091HOUSING,Housing and Community Services,20107,Camber Beach & Foreshore,C1104,Derv,1.90,Allstar Business Solutions,Derv - Fuel Service fee payable on fuel cards,2028628,202108
Rother District Council,31/08/2021,091HOUSING,Housing and Community Services,20107,Camber Beach & Foreshore,C1104,Derv,49.52,Allstar Business Solutions,Derv,2028628,202108
Rother District Council,31/08/2021,091HOUSING,Housing and Community Services,20145,Maintenance Services,C1104,Derv,49.17,Allstar Business Solutions,Derv,2028628,202108
Rother District Council,31/08/2021,091HOUSING,Housing and Community Services,20145,Maintenance Services,C1104,Derv,41.67,Allstar Business Solutions,Derv,2028628,202108
Rother District Council,31/08/2021,091HOUSING,Housing and Community Services,20145,Maintenance Services,C1104,Derv,75.82,Allstar Business Solutions,Derv,2028628,202108
Rother District Council,31/08/2021,101RESOURCES,Resources,20215,Revenue and Benefits,D2513,Hired and Contracted services,45.71,R French and  Son Ltd,Hired and contracted services - Office Move Costs,2027345,202107
Rother District Council,31/08/2021,101RESOURCES,Resources,20215,Revenue and Benefits,D2513,Hired and Contracted services,45.72,R French and  Son Ltd,Hired and contracted services - Office Move Costs,2027346,202107
Rother District Council,31/08/2021,101RESOURCES,Resources,20215,Revenue and Benefits,D2513,Hired and Contracted services,45.72,R French and  Son Ltd,Hired and contracted services - Office Move Costs,2027347,202107
Rother District Council,31/08/2021,101RESOURCES,Resources,20209,Corporate management,D2513,Hired and Contracted services,24.45,allpay.net Ltd,Hired and contracted services - Allpay Card/Rep/Let Chrg - Vatable,2028623,202108
Rother District Council,31/08/2021,101RESOURCES,Resources,20209,Corporate management,D2513,Hired and Contracted services,11.44,allpay.net Ltd,Hired and contracted services - Allpay Card/Rep/Let Chrg - Vatable,2028624,202108
Rother District Council,31/08/2021,101RESOURCES,Resources,20209,Corporate management,D2513,Hired and Contracted services,33.55,allpay.net Ltd,Hired and contracted services - Allpay Card/Rep/Let Chrg - Vatable,2028625,202108
Rother District Council,31/08/2021,101RESOURCES,Resources,20209,Corporate management,D2513,Hired and Contracted services,950.49,allpay.net Ltd,Hired and contracted services - Allpay Card/Rep/Let Chrg - Vatable,2028626,202108
Rother District Council,31/08/2021,071STRAT,Strategy and Planning,20246,Planning Applications,D2513,Hired and Contracted services,45.72,R French and  Son Ltd,Hired and contracted services - Office Move Costs,2027345,202107
Rother District Council,31/08/2021,071STRAT,Strategy and Planning,20246,Planning Applications,D2513,Hired and Contracted services,45.72,R French and  Son Ltd,Hired and contracted services - Office Move Costs,2027346,202107
Rother District Council,31/08/2021,071STRAT,Strategy and Planning,20246,Planning Applications,D2513,Hired and Contracted services,45.72,R French and  Son Ltd,Hired and contracted services - Office Move Costs,2027347,202107
Rother District Council,01/09/2021,041ENVIRON,Environmental Services,32143,EH Licenses and Registration R + W Partnership,D2513,Hired and Contracted services,354.17,Fairfield House Veterinary Surgery,Hired and contracted services - EnvH-Veterinary Services for Licens,2028224,202107
Rother District Council,01/09/2021,091HOUSING,Housing and Community Services,20137,Car Parks,B1100,Repairs to Premises,84.56,Alfa Electric Ltd,Repairs to Premises - Repairs - Electrical Works,2028217,202107
Rother District Council,01/09/2021,091HOUSING,Housing and Community Services,20108,Bexhill Promenade & Foreshore,D2621,Telephones,6.00,Commtel Ltd T/A Teleguard,Equipment & Materials - Access cards and systems,2028705,202109
Rother District Council,01/09/2021,091HOUSING,Housing and Community Services,20200,Housing Needs - HB (Housing Benefit),D2508,Removals and Storage,90.00,1066 Removal Services,Removals and Storage,2027915,202107
Rother District Council,01/09/2021,101RESOURCES,Resources,20209,Corporate management,D2513,Hired and Contracted services,498.00,Her Majestys Court Service,Hired and contracted services - Court Costs/Fees,2028689,202108
Rother District Council,01/09/2021,101RESOURCES,Resources,20209,Corporate management,D2513,Hired and Contracted services,41.64,Lloyds Bank,Bank Charges,2028638,202108
Rother District Council,01/09/2021,071STRAT,Strategy and Planning,20269,Neighbourhood plan referendums,D2513,Hired and Contracted services,217.00,Battle Methodist Church,Hired and Contracted services,2027629,202107
Rother District Council,02/09/2021,031RESOURCES,Chief Executive & Corporate Core,20173,Administrative Offices - Town Hall,B1100,Repairs to Premises,160.00,I.B. Lock & Safe,Repairs to Premises - Specified Repairs and Works listed,2027634,202107
Rother District Council,02/09/2021,101RESOURCES,Resources,20242,Communications-Phones,D2621,Telephones,28.55,TalkTalk Communications Ltd T/A TalkTalk Business,Telephones - Telephone Call Costs+Line Rental,2028669,202109
Rother District Council,02/09/2021,101RESOURCES,Resources,20242,Communications-Phones,D2621,Telephones,420.00,TalkTalk Communications Ltd T/A TalkTalk Business,Telephones - Telephone Call Costs+Line Rental,2028670,202109
Rother District Council,02/09/2021,101RESOURCES,Resources,20209,Corporate management,D2513,Hired and Contracted services,241.43,Capita Business Services Ltd,Bank Charges,2028632,202108
Rother District Council,03/09/2021,091HOUSING,Housing and Community Services,20107,Camber Beach & Foreshore,B2311,Rents and service charges,399.00,The Crown Estate,Rents and service charges,2027339,202107
Rother District Council,06/09/2021,031RESOURCES,Chief Executive & Corporate Core,20170,Communications-Postages,D2626,Postages,112.07,Royal Mail Group Ltd,Postages - Response Service-Royal Mail Chg,2028692,202108
Rother District Council,06/09/2021,091HOUSING,Housing and Community Services,20261,"TA Purchases (prev - 41 Jameson Mews, Bexhill on Sea)",D2513,Hired and Contracted services,25.43,Lets 2 Share Limited,Hired and contracted services - Service fee paid,2027118,202107
Rother District Council,06/09/2021,091HOUSING,Housing and Community Services,20261,"TA Purchases (prev - 41 Jameson Mews, Bexhill on Sea)",D2513,Hired and Contracted services,25.43,Lets 2 Share Limited,Hired and contracted services - Service fee paid,2027118,202107
Rother District Council,06/09/2021,091HOUSING,Housing and Community Services,20261,"TA Purchases (prev - 41 Jameson Mews, Bexhill on Sea)",D2513,Hired and Contracted services,25.43,Lets 2 Share Limited,Hired and contracted services - Service fee paid,2027118,202107
Rother District Council,06/09/2021,091HOUSING,Housing and Community Services,20261,"TA Purchases (prev - 41 Jameson Mews, Bexhill on Sea)",D2513,Hired and Contracted services,25.43,Lets 2 Share Limited,Hired and contracted services - Service fee paid,2027118,202107
Rother District Council,06/09/2021,091HOUSING,Housing and Community Services,20261,"TA Purchases (prev - 41 Jameson Mews, Bexhill on Sea)",D2513,Hired and Contracted services,25.43,Lets 2 Share Limited,Hired and contracted services - Service fee paid,2027118,202107
Rother District Council,06/09/2021,101RESOURCES,Resources,20209,Corporate management,D2513,Hired and Contracted services,75.84,Lloyds Bank,Bank Charges,2028660,202108
Rother District Council,06/09/2021,101RESOURCES,Resources,20209,Corporate management,D2513,Hired and Contracted services,81.00,Lloyds Bank,Bank Charges,2028662,202108
Rother District Council,07/09/2021,031RESOURCES,Chief Executive & Corporate Core,20156,Representing Local Interest,D2513,Hired and Contracted services,275.00,Rambler Coaches Ltd,Hired and contracted services - Coach Hire for Planning Site Visits,2027948,202107
Rother District Council,07/09/2021,091HOUSING,Housing and Community Services,20137,Car Parks,B1100,Repairs to Premises,285.90,Fleet (Line Markers) Ltd,Repairs to Premises - White Lining in Car Parks,2029041,202109
Rother District Council,07/09/2021,091HOUSING,Housing and Community Services,20304,Housing First,B2201,Electricity,68.94,EON Next,Electricity - Electricity Charges,2028810,202108
Rother District Council,08/09/2021,041ENVIRON,Environmental Services,32143,EH Licenses and Registration R + W Partnership,D2513,Hired and Contracted services,354.17,Fairfield House Veterinary Surgery,Hired and contracted services - EnvH-Veterinary Services for Licens,2028220,202107
Rother District Council,08/09/2021,071STRAT,Strategy and Planning,20250,Planning Policy,D2509,Consultants and Other Services,"1,600.00",Strategic Leisure Ltd,Consultants and other services - Consultants Fees,2028381,202108
Rother District Council,09/09/2021,031RESOURCES,Chief Executive & Corporate Core,20173,Administrative Offices - Town Hall,B1100,Repairs to Premises,37.00,Saint-Gobain Building Distribution Ltd t/a Jewson,Repairs to Premises - Purchase of Materials - Build Maint,2027546,202107
Rother District Council,09/09/2021,041ENVIRON,Environmental Services,20129,Community Safety - CCTV costs only,B2201,Electricity,291.50,Ecotricity Ltd,Electricity - Electricity Charges,2028929,202108
Rother District Council,09/09/2021,041ENVIRON,Environmental Services,20129,Community Safety - CCTV costs only,B2201,Electricity,38.87,Ecotricity Ltd,Electricity,2028927,202108
Rother District Council,09/09/2021,091HOUSING,Housing and Community Services,20108,Bexhill Promenade & Foreshore,B2201,Electricity,7.13,Ecotricity Ltd,Electricity - Electricity Charges,2028924,202108
Rother District Council,09/09/2021,091HOUSING,Housing and Community Services,20108,Bexhill Promenade & Foreshore,B2201,Electricity,1.64,Ecotricity Ltd,Electricity - Electricity Charges,2028926,202108
Rother District Council,09/09/2021,091HOUSING,Housing and Community Services,20114,Bexhill Parks & Open Spaces,B2201,Electricity,19.33,Ecotricity Ltd,Electricity - Electricity Charges,2028930,202108
Rother District Council,09/09/2021,091HOUSING,Housing and Community Services,20137,Car Parks,B2201,Electricity,45.12,Ecotricity Ltd,Electricity - Electricity Charges,2028924,202108
Rother District Council,09/09/2021,091HOUSING,Housing and Community Services,20137,Car Parks,B2201,Electricity,10.35,Ecotricity Ltd,Electricity - Electricity Charges,2028926,202108
Rother District Council,09/09/2021,091HOUSING,Housing and Community Services,20137,Car Parks,B2201,Electricity,38.89,Ecotricity Ltd,Electricity - Electricity Charges,2028929,202108
Rother District Council,09/09/2021,091HOUSING,Housing and Community Services,20138,Residual Highway Services,B2201,Electricity,7.12,Ecotricity Ltd,Electricity - Electricity Charges,2028924,202108
Rother District Council,09/09/2021,091HOUSING,Housing and Community Services,20138,Residual Highway Services,B2201,Electricity,1.63,Ecotricity Ltd,Electricity - Electricity Charges,2028926,202108
Rother District Council,09/09/2021,091HOUSING,Housing and Community Services,20138,Residual Highway Services,B2201,Electricity,32.36,Ecotricity Ltd,Electricity - Electricity Charges,2028929,202108
Rother District Council,09/09/2021,091HOUSING,Housing and Community Services,20108,Bexhill Promenade & Foreshore,B2201,Electricity,3.00,Ecotricity Ltd,Electricity,2028925,202108
Rother District Council,09/09/2021,091HOUSING,Housing and Community Services,20137,Car Parks,B2201,Electricity,19.00,Ecotricity Ltd,Electricity,2028925,202108
Rother District Council,09/09/2021,091HOUSING,Housing and Community Services,20137,Car Parks,B2201,Electricity,5.18,Ecotricity Ltd,Electricity,2028927,202108
Rother District Council,09/09/2021,091HOUSING,Housing and Community Services,20200,Housing Needs - HB (Housing Benefit),D2508,Removals and Storage,"1,200.00",REDACTED PERSONAL DATA,Removals and Storage,2027699,202107
Rother District Council,09/09/2021,091HOUSING,Housing and Community Services,20138,Residual Highway Services,B2201,Electricity,3.00,Ecotricity Ltd,Electricity,2028925,202108
Rother District Council,09/09/2021,091HOUSING,Housing and Community Services,20138,Residual Highway Services,B2201,Electricity,4.31,Ecotricity Ltd,Electricity,2028927,202108
Rother District Council,09/09/2021,101RESOURCES,Resources,20242,Communications-Phones,D2621,Telephones,67.50,TalkTalk Communications Ltd T/A TalkTalk Business,Telephones - Telephone Call Costs+Line Rental,2028671,202109
Rother District Council,09/09/2021,101RESOURCES,Resources,20239,Computer Services,D2633,Computer Equipment,"5,480.82",Konica Minolta Business Solutions (UK) Ltd,Computer Equip Maintenance - Maintenance re Colourwave Printer,2027226,202107
Rother District Council,10/09/2021,081ACQUISIT,"Acquisitions, Transformation and Regeneration",20153,"Elva Business Centre, Bexhill",B1100,Repairs to Premises,329.63,Alfa Electric Ltd,Repairs to Premises - Repairs - Electrical Works,2027778,202107
Rother District Council,10/09/2021,091HOUSING,Housing and Community Services,20108,Bexhill Promenade & Foreshore,B1100,Repairs to Premises,96.25,Streetlights,Repairs to Premises - Lighting Repairs,2027755,202107
Rother District Council,10/09/2021,091HOUSING,Housing and Community Services,20137,Car Parks,B1100,Repairs to Premises,161.25,Streetlights,Repairs to Premises - Lighting Repairs,2027754,202107
Rother District Council,10/09/2021,101RESOURCES,Resources,20209,Corporate management,D2513,Hired and Contracted services,310.50,Lloyds Bank,Bank Charges,2028657,202108
Rother District Council,10/09/2021,101RESOURCES,Resources,20209,Corporate management,D2513,Hired and Contracted services,732.05,Lloyds Bank,Bank Charges,2028659,202108
Rother District Council,11/09/2021,091HOUSING,Housing and Community Services,20306,Afghan Relocation Assistance Policy,D2513,Hired and Contracted services,"2,844.36",HFS - Hastings Furniture Service Ltd,Hired and contracted services - Syrian Resettlement Programme-Furniture,2027599,202107
Rother District Council,11/09/2021,091HOUSING,Housing and Community Services,20306,Afghan Relocation Assistance Policy,D2513,Hired and Contracted services,"2,844.36",HFS - Hastings Furniture Service Ltd,Hired and contracted services - Syrian Resettlement Programme-Furniture,2027827,202107
Rother District Council,12/09/2021,101RESOURCES,Resources,20242,Communications-Phones,D2621,Telephones,587.13,BT British Telecommunications plc,Telephones - BT-Rental-General,2027286,202107
Rother District Council,13/09/2021,081ACQUISIT,"Acquisitions, Transformation and Regeneration",20153,"Elva Business Centre, Bexhill",B1100,Repairs to Premises,520.00,REDACTED PERSONAL DATA,Repairs to Premises - Parks- Landscaping Works,2027879,202107
Rother District Council,13/09/2021,091HOUSING,Housing and Community Services,20137,Car Parks,B1100,Repairs to Premises,95.50,Alfa Electric Ltd,Repairs to Premises - Repairs - Electrical Works,2027779,202107
Rother District Council,13/09/2021,091HOUSING,Housing and Community Services,20114,Bexhill Parks & Open Spaces,B1100,Repairs to Premises,93.89,Saint-Gobain Building Distribution Ltd t/a Jewson,Repairs to Premises - Purchase of Materials - Build Maint,2027657,202107
Rother District Council,13/09/2021,091HOUSING,Housing and Community Services,20115,Rye Area Parks & Gardens,B1100,Repairs to Premises,660.00,REDACTED PERSONAL DATA,Repairs to Premises - Parks- Landscaping Works,2027878,202107
Rother District Council,13/09/2021,091HOUSING,Housing and Community Services,20206,UK Resettlement (Syrians),D2513,Hired and Contracted services,684.00,In2Play CIC,Hired and contracted services - Syrian-Education-Exempt VAT,2027711,202107
Rother District Council,13/09/2021,091HOUSING,Housing and Community Services,20261,"TA Purchases (prev - 41 Jameson Mews, Bexhill on Sea)",D2513,Hired and Contracted services,25.43,Lets 2 Share Limited,Hired and contracted services - Service fee paid,2027236,202107
Rother District Council,13/09/2021,091HOUSING,Housing and Community Services,20261,"TA Purchases (prev - 41 Jameson Mews, Bexhill on Sea)",D2513,Hired and Contracted services,25.43,Lets 2 Share Limited,Hired and contracted services - Service fee paid,2027236,202107
Rother District Council,13/09/2021,091HOUSING,Housing and Community Services,20261,"TA Purchases (prev - 41 Jameson Mews, Bexhill on Sea)",D2513,Hired and Contracted services,25.43,Lets 2 Share Limited,Hired and contracted services - Service fee paid,2027236,202107
Rother District Council,13/09/2021,091HOUSING,Housing and Community Services,20261,"TA Purchases (prev - 41 Jameson Mews, Bexhill on Sea)",D2513,Hired and Contracted services,25.43,Lets 2 Share Limited,Hired and contracted services - Service fee paid,2027236,202107
Rother District Council,13/09/2021,091HOUSING,Housing and Community Services,20261,"TA Purchases (prev - 41 Jameson Mews, Bexhill on Sea)",D2513,Hired and Contracted services,25.43,Lets 2 Share Limited,Hired and contracted services - Service fee paid,2027236,202107
Rother District Council,13/09/2021,091HOUSING,Housing and Community Services,20261,"TA Purchases (prev - 41 Jameson Mews, Bexhill on Sea)",D2513,Hired and Contracted services,70.00,Lets 2 Share Limited,Hired and contracted services - Service fee paid,2027237,202107
Rother District Council,13/09/2021,101RESOURCES,Resources,20239,Computer Services,D2633,Computer Equipment,85.65,Ricoh UK Limited,Computer Equip Maintenance - Maintenance re Colourwave Printer,2027549,202108
Rother District Council,14/09/2021,041ENVIRON,Environmental Services,32134,EH Pollution R + W Partnership,D2513,Hired and Contracted services,"1,650.00",C P J Field & Co Ltd,Hired and contracted services - Parks-Public Health Burials,2028228,202108
Rother District Council,14/09/2021,091HOUSING,Housing and Community Services,20261,"TA Purchases (prev - 41 Jameson Mews, Bexhill on Sea)",B2421,Water,167.45,South East Water Ltd,Water - Water Charges,2027655,202107
Rother District Council,14/09/2021,091HOUSING,Housing and Community Services,20261,"TA Purchases (prev - 41 Jameson Mews, Bexhill on Sea)",B2422,Sewerage,184.96,South East Water Ltd,Sewerage - Sewerage Charges,2027655,202107
Rother District Council,14/09/2021,091HOUSING,Housing and Community Services,20114,Bexhill Parks & Open Spaces,D1201,Equipment & Materials,"4,999.00",Cleveland Sitesafe Ltd,Equipment & materials - Miscellaneous,2028918,202108
Rother District Council,15/09/2021,041ENVIRON,Environmental Services,32143,EH Licenses and Registration R + W Partnership,D2513,Hired and Contracted services,359.48,Fairfield House Veterinary Surgery,Hired and contracted services - EnvH-Veterinary Services for Licens,2028223,202107
Rother District Council,15/09/2021,041ENVIRON,Environmental Services,32136,EH Pest Control R + W Partnership,C1104,Derv,5.70,Allstar Business Solutions,Derv - Fuel Service fee payable on fuel cards,2028629,202108
Rother District Council,15/09/2021,041ENVIRON,Environmental Services,32136,EH Pest Control R + W Partnership,C1104,Derv,51.28,Allstar Business Solutions,Derv,2028629,202108
Rother District Council,15/09/2021,041ENVIRON,Environmental Services,32136,EH Pest Control R + W Partnership,C1104,Derv,45.87,Allstar Business Solutions,Derv,2028629,202108
Rother District Council,15/09/2021,041ENVIRON,Environmental Services,32136,EH Pest Control R + W Partnership,C1104,Derv,33.31,Allstar Business Solutions,Derv,2028629,202108
Rother District Council,15/09/2021,091HOUSING,Housing and Community Services,20114,Bexhill Parks & Open Spaces,B1100,Repairs to Premises,260.00,GW Grab Hire Ltd,Repairs to Premises - Specified Repairs and Works listed,2027740,202107
Rother District Council,15/09/2021,091HOUSING,Housing and Community Services,20114,Bexhill Parks & Open Spaces,B1100,Repairs to Premises,12.24,Saint-Gobain Building Distribution Ltd t/a Jewson,Repairs to Premises - Purchase of Materials - Build Maint,2027658,202107
Rother District Council,15/09/2021,091HOUSING,Housing and Community Services,20200,Housing Needs - HB (Housing Benefit),D2508,Removals and Storage,120.00,Express Removals Worldwide Ltd,Removals and Storage,2028042,202107
Rother District Council,15/09/2021,091HOUSING,Housing and Community Services,20200,Housing Needs - HB (Housing Benefit),D2508,Removals and Storage,175.00,Stamford Storage Solutions,Removals and Storage,2028133,202107
Rother District Council,15/09/2021,091HOUSING,Housing and Community Services,20200,Housing Needs - HB (Housing Benefit),D2508,Removals and Storage,108.16,Stamford Storage Solutions,Removals and Storage,2028134,202107
Rother District Council,15/09/2021,091HOUSING,Housing and Community Services,20200,Housing Needs - HB (Housing Benefit),D2508,Removals and Storage,65.00,Stamford Storage Solutions,Removals and Storage,2028135,202107
Rother District Council,15/09/2021,091HOUSING,Housing and Community Services,20145,Maintenance Services,C1103,Petrol,22.50,Allstar Business Solutions,Petrol,2028629,202108
Rother District Council,15/09/2021,091HOUSING,Housing and Community Services,20145,Maintenance Services,C1104,Derv,45.42,Allstar Business Solutions,Derv,2028629,202108
Rother District Council,15/09/2021,091HOUSING,Housing and Community Services,20145,Maintenance Services,C1104,Derv,31.67,Allstar Business Solutions,Derv,2028629,202108
Rother District Council,15/09/2021,091HOUSING,Housing and Community Services,20145,Maintenance Services,C1104,Derv,69.75,Allstar Business Solutions,Derv,2028629,202108
Rother District Council,15/09/2021,091HOUSING,Housing and Community Services,20145,Maintenance Services,C1104,Derv,72.46,Allstar Business Solutions,Derv,2028629,202108
Rother District Council,16/09/2021,081ACQUISIT,"Acquisitions, Transformation and Regeneration",20144,Property Management,D2513,Hired and Contracted services,6.00,Kernock Park Plants,Hired and contracted services - Land Registry-Property Management,2028654,202108
Rother District Council,16/09/2021,031RESOURCES,Chief Executive & Corporate Core,20173,Administrative Offices - Town Hall,B1100,Repairs to Premises,22.80,Wolseley UK Ltd,Repairs to Premises - Purchase of Materials - Build Maint,2027660,202107
Rother District Council,16/09/2021,041ENVIRON,Environmental Services,32144,EH Environmental Services Admin R + W Partnership,D2513,Hired and Contracted services,15.00,Kernock Park Plants,Hired and contracted services - Env H-Land Registry,2028654,202108
Rother District Council,16/09/2021,091HOUSING,Housing and Community Services,20128,Public Conveniences,B1100,Repairs to Premises,"1,351.50",Specialist Hygiene Services Ltd,Repairs to Premises - Public Conveniences - Various repairs,2027317,202107
Rother District Council,16/09/2021,091HOUSING,Housing and Community Services,20206,UK Resettlement (Syrians),D2513,Hired and Contracted services,"4,400.00",REDACTED PERSONAL DATA,Hired and contracted services - Syrian Resettlement Programme-Rent,2027596,202107
Rother District Council,16/09/2021,091HOUSING,Housing and Community Services,20206,UK Resettlement (Syrians),D2513,Hired and Contracted services,285.75,REDACTED PERSONAL DATA,Hired and contracted services - Syrian Misc,2027596,202107
Rother District Council,16/09/2021,101RESOURCES,Resources,20216,Cost Of Collection,D2513,Hired and Contracted services,9.00,Kernock Park Plants,Hired and contracted services - Council Tax-Land Registry Enquiries,2028654,202108
Rother District Council,16/09/2021,101RESOURCES,Resources,20239,Computer Services,D2633,Computer Equipment,627.66,Konica Minolta Business Solutions (UK) Ltd,Computer Equip Maintenance - Maintenance re Colourwave Printer,2027330,202107
Rother District Council,16/09/2021,071STRAT,Strategy and Planning,20246,Planning Applications,D2513,Hired and Contracted services,39.00,Kernock Park Plants,Hired and contracted services - Land Registry-Planning,2028654,202108
Rother District Council,16/09/2021,071STRAT,Strategy and Planning,20269,Neighbourhood plan referendums,D2513,Hired and Contracted services,450.00,Netherfield Village Hall & Playing Field,Hired and contracted services - Hire of Meeting Room,2028608,202108
Rother District Council,17/09/2021,081ACQUISIT,"Acquisitions, Transformation and Regeneration",20144,Property Management,D2513,Hired and Contracted services,9.00,H M Land Registry,Hired and contracted services - Land Registry-Property Management,2028647,202108
Rother District Council,17/09/2021,081ACQUISIT,"Acquisitions, Transformation and Regeneration",20267,Property Investment Strategy - 18-40 Beeching Road ( Land and Buildings),B2202,Gas,49.29,Gazprom Marketing & Trading Retail Ltd,Gas - Gas Charges,2027653,202107
Rother District Council,17/09/2021,081ACQUISIT,"Acquisitions, Transformation and Regeneration",20266,Property Investment Strategy,B2202,Gas,49.29,Gazprom Marketing & Trading Retail Ltd,Gas - Gas Charges,2027654,202107
Rother District Council,17/09/2021,041ENVIRON,Environmental Services,32144,EH Environmental Services Admin R + W Partnership,D2513,Hired and Contracted services,3.00,H M Land Registry,Hired and contracted services - Env H-Land Registry,2028647,202108
Rother District Council,17/09/2021,041ENVIRON,Environmental Services,32134,EH Pollution R + W Partnership,D2513,Hired and Contracted services,3.00,H M Land Registry,Hired and contracted services - Env H-Land Registry,2028647,202108
Rother District Council,17/09/2021,091HOUSING,Housing and Community Services,20261,"TA Purchases (prev - 41 Jameson Mews, Bexhill on Sea)",B2421,Water,103.76,South East Water Ltd,Water - Water Charges,2027656,202107
Rother District Council,17/09/2021,091HOUSING,Housing and Community Services,20261,"TA Purchases (prev - 41 Jameson Mews, Bexhill on Sea)",B2422,Sewerage,118.80,South East Water Ltd,Sewerage - Sewerage Charges,2027656,202107
Rother District Council,17/09/2021,091HOUSING,Housing and Community Services,20137,Car Parks,D2513,Hired and Contracted services,220.00,Flowbird Smart City UK Ltd,Hired and contracted services - Car Parks-CALE Online Software Service for ticket machines,2027440,202107
Rother District Council,17/09/2021,091HOUSING,Housing and Community Services,20145,Maintenance Services,D2352,Clothing and Uniforms,23.39,Saint-Gobain Building Distribution Ltd t/a Jewson,Clothing and Uniforms - Mens Protective-Footware,2027659,202107
Rother District Council,17/09/2021,101RESOURCES,Resources,20239,Computer Services,D2621,Telephones,477.18,GTT EMEA Ltd,Computer Licences - Computer Licence Renewal,2027371,202107
Rother District Council,17/09/2021,071STRAT,Strategy and Planning,20246,Planning Applications,D2513,Hired and Contracted services,9.00,H M Land Registry,Hired and contracted services - Land Registry-Planning,2028647,202108
Rother District Council,17/09/2021,071STRAT,Strategy and Planning,20258,BC Dangerous Structures H+R Partnership,D2513,Hired and Contracted services,3.00,H M Land Registry,Hired and contracted services - Env H-Land Registry,2028647,202108
Rother District Council,18/09/2021,041ENVIRON,Environmental Services,70706,Capital - Disabled Facilities Grant,N1012,Capital Advances,"1,659.41",Mr Mark Neale General Building and Plumbing Ltd,Capital Advances Disabled Facilities Grant,2028129,202107
Rother District Council,18/09/2021,091HOUSING,Housing and Community Services,20200,Housing Needs - HB (Housing Benefit),D2508,Removals and Storage,818.75,REDACTED PERSONAL DATA,Removals and Storage,2027696,202107
Rother District Council,20/09/2021,031RESOURCES,Chief Executive & Corporate Core,20175,Administrative Offices - T.H. Annex (NOT CHP),B1100,Repairs to Premises,494.35,Kerry SCS Ltd,Repairs to Premises - Specified Repairs and Works listed,2027688,202107
Rother District Council,20/09/2021,031RESOURCES,Chief Executive & Corporate Core,20173,Administrative Offices - Town Hall,B1100,Repairs to Premises,784.06,Kerry SCS Ltd,Repairs to Premises - Specified Repairs and Works listed,2027689,202107
Rother District Council,20/09/2021,031RESOURCES,Chief Executive & Corporate Core,20173,Administrative Offices - Town Hall,B1100,Repairs to Premises,93.39,Alfa Electric Ltd,Repairs to Premises - Repairs - Electrical Works,2028605,202108
Rother District Council,20/09/2021,031RESOURCES,Chief Executive & Corporate Core,20281,Establishing a Bexhill Town Council,D2635,Computer Licences,537.50,Barry Technology Ltd,Computer Licences - New Computer Software,2027783,202107
Rother District Council,20/09/2021,041ENVIRON,Environmental Services,32143,EH Licenses and Registration R + W Partnership,D2513,Hired and Contracted services,354.17,Fairfield House Veterinary Surgery,Hired and contracted services - EnvH-Veterinary Services for Licens,2028219,202107
Rother District Council,20/09/2021,091HOUSING,Housing and Community Services,20137,Car Parks,B1100,Repairs to Premises,84.31,Alfa Electric Ltd,Repairs to Premises - Repairs - Electrical Works,2028604,202108
Rother District Council,20/09/2021,091HOUSING,Housing and Community Services,20206,UK Resettlement (Syrians),D2513,Hired and Contracted services,"1,219.03",REDACTED PERSONAL DATA,Hired and contracted services - Syrian-Translation Services,2027803,202107
Rother District Council,20/09/2021,091HOUSING,Housing and Community Services,20261,"TA Purchases (prev - 41 Jameson Mews, Bexhill on Sea)",D2513,Hired and Contracted services,25.43,Lets 2 Share Limited,Hired and contracted services - Service fee paid,2027435,202107
Rother District Council,20/09/2021,091HOUSING,Housing and Community Services,20261,"TA Purchases (prev - 41 Jameson Mews, Bexhill on Sea)",D2513,Hired and Contracted services,25.43,Lets 2 Share Limited,Hired and contracted services - Service fee paid,2027435,202107
Rother District Council,20/09/2021,091HOUSING,Housing and Community Services,20261,"TA Purchases (prev - 41 Jameson Mews, Bexhill on Sea)",D2513,Hired and Contracted services,25.43,Lets 2 Share Limited,Hired and contracted services - Service fee paid,2027435,202107
Rother District Council,20/09/2021,091HOUSING,Housing and Community Services,20261,"TA Purchases (prev - 41 Jameson Mews, Bexhill on Sea)",D2513,Hired and Contracted services,25.43,Lets 2 Share Limited,Hired and contracted services - Service fee paid,2027435,202107
Rother District Council,20/09/2021,091HOUSING,Housing and Community Services,20261,"TA Purchases (prev - 41 Jameson Mews, Bexhill on Sea)",D2513,Hired and Contracted services,25.43,Lets 2 Share Limited,Hired and contracted services - Service fee paid,2027435,202107
Rother District Council,20/09/2021,091HOUSING,Housing and Community Services,20114,Bexhill Parks & Open Spaces,B1100,Repairs to Premises,24.62,Saint-Gobain Building Distribution Ltd t/a Jewson,Repairs to Premises,2027864,202107
Rother District Council,20/09/2021,101RESOURCES,Resources,20240,Printing Services,D1201,Equipment & Materials,"2,055.78",Insight Direct (UK) Ltd,Equipment & Materials - Platemaking Materials,2027638,202107
Rother District Council,20/09/2021,071STRAT,Strategy and Planning,20269,Neighbourhood plan referendums,D2513,Hired and Contracted services,375.00,Wilmoths Citroen,Hired and Contracted services,2027630,202107
Rother District Council,21/09/2021,031RESOURCES,Chief Executive & Corporate Core,20173,Administrative Offices - Town Hall,B1100,Repairs to Premises,196.33,Alfa Electric Ltd,Repairs to Premises - Repairs - Electrical Works,2027780,202107
Rother District Council,21/09/2021,031RESOURCES,Chief Executive & Corporate Core,70759,Capital - Town Hall Renaissance Project,N1004,Architects & Consultant Fees,700.00,1st Line Defence Ltd,Architects & Consultant Fees Capital-Architect and Conslt Fees,2028263,202108
Rother District Council,21/09/2021,041ENVIRON,Environmental Services,32143,EH Licenses and Registration R + W Partnership,D2513,Hired and Contracted services,437.50,Fairfield House Veterinary Surgery,Hired and contracted services - EnvH-Veterinary Services for Licens,2028222,202107
Rother District Council,21/09/2021,091HOUSING,Housing and Community Services,20137,Car Parks,B1100,Repairs to Premises,82.13,Alfa Electric Ltd,Repairs to Premises - Repairs - Electrical Works,2027781,202107
Rother District Council,21/09/2021,091HOUSING,Housing and Community Services,20137,Car Parks,B1100,Repairs to Premises,685.00,Flowbird Smart City UK Ltd,Repairs to Premises - Car Park Maintenance,2027511,202107
Rother District Council,21/09/2021,091HOUSING,Housing and Community Services,20137,Car Parks,B1100,Repairs to Premises,220.80,Flowbird Smart City UK Ltd,Repairs to Premises - Car Park Maintenance,2027511,202107
Rother District Council,21/09/2021,091HOUSING,Housing and Community Services,20206,UK Resettlement (Syrians),D2513,Hired and Contracted services,"6,125.00",REDACTED PERSONAL DATA,Hired and contracted services - Syrian Resettlement Programme-Rent,2028072,202107
Rother District Council,21/09/2021,091HOUSING,Housing and Community Services,20206,UK Resettlement (Syrians),D2513,Hired and Contracted services,129.47,REDACTED PERSONAL DATA,Hired and contracted services - Syrian Misc,2028072,202107
Rother District Council,21/09/2021,091HOUSING,Housing and Community Services,20114,Bexhill Parks & Open Spaces,B1100,Repairs to Premises,109.00,Fuzion 4 Limited,Hired and contracted services - CCTV System Maintenance,2027416,202107
Rother District Council,21/09/2021,091HOUSING,Housing and Community Services,20304,Housing First,B2202,Gas,32.48,British Gas Business (600 Accounts only),Gas - Gas Charges,2027606,202107
Rother District Council,21/09/2021,091HOUSING,Housing and Community Services,20137,Car Parks,D1201,Equipment & Materials,15.00,Flowbird Smart City UK Ltd,Equipment & Materials - Carriage/Handling Charge,2027511,202107
Rother District Council,21/09/2021,101RESOURCES,Resources,20239,Computer Services,D2635,Computer Licences,"9,450.00",LHS Locata (Housing Services) Ltd,Computer Licences - Maintenance/Upgrading of Software,2027505,202107
Rother District Council,22/09/2021,041ENVIRON,Environmental Services,20130,Crime and Disorder Initiatives,D2923,Grants made,"1,000.00",Hastings and Rother Mediation Service,Grants made - Crime Prevention Initiative (JAG),2027538,202107
Rother District Council,22/09/2021,041ENVIRON,Environmental Services,20129,Community Safety - CCTV costs only,D2513,Hired and Contracted services,"1,348.70",The Police and Crime Commissioner for Sussex,Hired and Contracted services,2027533,202107
Rother District Council,22/09/2021,091HOUSING,Housing and Community Services,20114,Bexhill Parks & Open Spaces,B1100,Repairs to Premises,92.58,Saint-Gobain Building Distribution Ltd t/a Jewson,Repairs to Premises - Purchase of Materials - Build Maint,2027865,202107
Rother District Council,22/09/2021,101RESOURCES,Resources,20239,Computer Services,D2633,Computer Equipment,"1,950.00",Computacenter (UK) Ltd,Computer Equipment - Computer peripherals,2027520,202107
Rother District Council,22/09/2021,071STRAT,Strategy and Planning,20269,Neighbourhood plan referendums,D2513,Hired and Contracted services,250.00,Life with Hope Trust/ Battle Baptist Church,Hired and Contracted services,2027627,202107
Rother District Council,23/09/2021,081ACQUISIT,"Acquisitions, Transformation and Regeneration",70705,Capital - Fairlight Coastal Protection Scheme (Preservational Trust),N1005,Other fees,"3,950.00",Canterbury City Council,Other Fees - Capital exp Std VAT,2027674,202107
Rother District Council,23/09/2021,081ACQUISIT,"Acquisitions, Transformation and Regeneration",20118,Tourism,D2517,Marketing,"15,000.00",The Charleston Trust (Bloomsbury in Sussex),Marketing - Regular Marketing activities-Tourism,2028127,202107
Rother District Council,23/09/2021,081ACQUISIT,"Acquisitions, Transformation and Regeneration",70725,Capital - Blackfriars,N1004,Architects & Consultant Fees,500.00,REDACTED PERSONAL DATA,Architects & Consultant Fees Capital-Architect and Conslt Fees,2027975,202107
Rother District Council,23/09/2021,041ENVIRON,Environmental Services,20129,Community Safety - CCTV costs only,D2513,Hired and Contracted services,18.00,H M Land Registry,Hired and contracted services - Env H-Land Registry,2028651,202108
Rother District Council,23/09/2021,041ENVIRON,Environmental Services,32144,EH Environmental Services Admin R + W Partnership,D2513,Hired and Contracted services,3.00,H M Land Registry,Hired and contracted services - Env H-Land Registry,2028651,202108
Rother District Council,23/09/2021,041ENVIRON,Environmental Services,32134,EH Pollution R + W Partnership,D2513,Hired and Contracted services,3.00,H M Land Registry,Hired and contracted services - Env H-Land Registry,2028651,202108
Rother District Council,23/09/2021,041ENVIRON,Environmental Services,20129,Community Safety - CCTV costs only,D2513,Hired and Contracted services,"4,420.12",The Police and Crime Commissioner for Sussex,Hired and Contracted services,2027534,202107
Rother District Council,23/09/2021,091HOUSING,Housing and Community Services,20236,Customer Services and Development,A2203,Training,750.00,Institute of Customer Service,Training,2028394,202108
Rother District Council,23/09/2021,091HOUSING,Housing and Community Services,20114,Bexhill Parks & Open Spaces,B2422,Sewerage,148.00,Cleansing Service Group Ltd,Sewerage Parks- Emptying of Cesspit,2027514,202107
Rother District Council,23/09/2021,091HOUSING,Housing and Community Services,20111,Rye Sports Centre & Pool,B1100,Repairs to Premises,"13,416.00",Ascend Lift Services Ltd,Repairs to Premises - Lift Repairs/ Maintenance cost,2027609,202107
Rother District Council,23/09/2021,091HOUSING,Housing and Community Services,20206,UK Resettlement (Syrians),D2513,Hired and Contracted services,"1,840.90",HFS - Hastings Furniture Service Ltd,Hired and contracted services - Syrian Resettlement Programme-Furniture,2028250,202107
Rother District Council,23/09/2021,101RESOURCES,Resources,20216,Cost Of Collection,D2513,Hired and Contracted services,15.00,H M Land Registry,Hired and contracted services - Council Tax-Land Registry Enquiries,2028651,202108
Rother District Council,23/09/2021,071STRAT,Strategy and Planning,20246,Planning Applications,D2513,Hired and Contracted services,15.00,H M Land Registry,Hired and contracted services - Land Registry-Planning,2028651,202108
Rother District Council,23/09/2021,071STRAT,Strategy and Planning,20249,Planning Appeals,D2509,Consultants and Other Services,"2,145.00",Derek Finnie Associates Ltd,Consultants and other services - Consultants Fees,2027603,202107
Rother District Council,24/09/2021,031RESOURCES,Chief Executive & Corporate Core,20175,Administrative Offices - T.H. Annex (NOT CHP),B1100,Repairs to Premises,245.00,NWT International Ltd T/a NWT Energy & NWT Solar,Repairs to Premises - Specified Repairs and Works listed,2027662,202107
Rother District Council,24/09/2021,031RESOURCES,Chief Executive & Corporate Core,70759,Capital - Town Hall Renaissance Project,N1004,Architects & Consultant Fees,"1,800.00",1st Line Defence Ltd,Architects & Consultant Fees Capital-Architect and Conslt Fees,2027834,202107
Rother District Council,24/09/2021,041ENVIRON,Environmental Services,32143,EH Licenses and Registration R + W Partnership,D2513,Hired and Contracted services,437.50,Fairfield House Veterinary Surgery,Hired and contracted services - EnvH-Veterinary Services for Licens,2028221,202107
Rother District Council,24/09/2021,091HOUSING,Housing and Community Services,20102,Rother Museum Services,B1100,Repairs to Premises,245.00,NWT International Ltd T/a NWT Energy & NWT Solar,Repairs to Premises - Specified Repairs and Works listed,2027662,202107
Rother District Council,24/09/2021,091HOUSING,Housing and Community Services,20128,Public Conveniences,B1100,Repairs to Premises,413.13,Wolseley UK Ltd,Repairs to Premises - Purchase of Materials - Build Maint,2027866,202107
Rother District Council,24/09/2021,091HOUSING,Housing and Community Services,20137,Car Parks,B1100,Repairs to Premises,588.04,Alfa Electric Ltd,Repairs to Premises - Car Park Maintenance,2027896,202107
Rother District Council,24/09/2021,091HOUSING,Housing and Community Services,20304,Housing First,D2513,Hired and Contracted services,25.00,A&A Cleaning & Property Services Ltd,Hired and contracted services - Service fee paid,2027785,202107
Rother District Council,24/09/2021,091HOUSING,Housing and Community Services,20205,Housing Loans Account,D2514,Accommodation Costs,"1,590.00",Redwell Estates Ltd,Accommodation Costs - Homelessness services Rent in Advance for Homeless,2028004,202107
Rother District Council,24/09/2021,101RESOURCES,Resources,20216,Cost Of Collection,D2513,Hired and Contracted services,12.00,H M Land Registry,Hired and contracted services - Council Tax-Land Registry Enquiries,2028645,202108
Rother District Council,24/09/2021,101RESOURCES,Resources,20239,Computer Services,D2635,Computer Licences,"1,525.67",Civica UK Ltd,Computer Licences - Website Management,2028793,202109
Rother District Council,24/09/2021,071STRAT,Strategy and Planning,20246,Planning Applications,D2509,Consultants and Other Services,"3,780.55",REDACTED PERSONAL DATA,Consultants and other services - Consultants Fees,2027517,202107
Rother District Council,25/09/2021,031RESOURCES,Chief Executive & Corporate Core,20171,Human Resources,A2203,Training,818.10,Croner Group Ltd,Training,2028630,202108
Rother District Council,25/09/2021,031RESOURCES,Chief Executive & Corporate Core,20171,Human Resources,A2203,Training,101.81,Croner Group Ltd,Training,2028630,202108
Rother District Council,25/09/2021,031RESOURCES,Chief Executive & Corporate Core,20281,Establishing a Bexhill Town Council,D2509,Consultants and Other Services,100.00,S & S Taxis,Consultants and Other Services,2028711,202108
Rother District Council,25/09/2021,091HOUSING,Housing and Community Services,20204,Housing Administration Account,D2635,Computer Licences,"1,000.00",LHS Locata (Housing Services) Ltd,Computer Licences,2028168,202108
Rother District Council,25/09/2021,101RESOURCES,Resources,20239,Computer Services,D2621,Telephones,267.68,GTT EMEA Ltd,Telephones - Leased Line Rental,2027522,202107
Rother District Council,26/09/2021,091HOUSING,Housing and Community Services,20206,UK Resettlement (Syrians),D2513,Hired and Contracted services,82.98,REDACTED PERSONAL DATA,Hired and contracted services - Syrian Misc,2027853,202107
Rother District Council,26/09/2021,091HOUSING,Housing and Community Services,20200,Housing Needs - HB (Housing Benefit),D2508,Removals and Storage,270.00,Peter Wilson T/A Friendly Pete,Removals and Storage,2027697,202107
Rother District Council,27/09/2021,081ACQUISIT,"Acquisitions, Transformation and Regeneration",70725,Capital - Blackfriars,N1004,Architects & Consultant Fees,"8,385.69",Baily Garner LLP,Architects & Consultant Fees Capital-Architect and Conslt Fees,2027672,202107
Rother District Council,27/09/2021,031RESOURCES,Chief Executive & Corporate Core,20171,Human Resources,A2203,Training,525.00,ADM Training Ltd,Training,2027861,202107
Rother District Council,27/09/2021,031RESOURCES,Chief Executive & Corporate Core,20173,Administrative Offices - Town Hall,D1206,Furniture & Fittings,"2,388.00",Southern Office Furniture Ltd,Furniture & Fittings - Purchase of office equipment,2028147,202107
Rother District Council,27/09/2021,031RESOURCES,Chief Executive & Corporate Core,20276,COVID19 RDC expenditure,D2514,Accommodation Costs,344.40,SDR Living Ltd,Accomodation Costs - Housing Due to Covid 19,2027587,202107
Rother District Council,27/09/2021,031RESOURCES,Chief Executive & Corporate Core,20276,COVID19 RDC expenditure,D2514,Accommodation Costs,86.10,SDR Living Ltd,Accomodation Costs - Housing Due to Covid 19,2027587,202107
Rother District Council,27/09/2021,031RESOURCES,Chief Executive & Corporate Core,20276,COVID19 RDC expenditure,D2514,Accommodation Costs,430.50,SDR Living Ltd,Accomodation Costs - Housing Due to Covid 19,2027587,202107
Rother District Council,27/09/2021,031RESOURCES,Chief Executive & Corporate Core,20276,COVID19 RDC expenditure,D2514,Accommodation Costs,300.00,Roost People Ltd,Accomodation Costs - Housing Due to Covid 19,2027588,202107
Rother District Council,27/09/2021,091HOUSING,Housing and Community Services,20108,Bexhill Promenade & Foreshore,B1100,Repairs to Premises,229.59,Alfa Electric Ltd,Repairs to Premises - Repairs - Electrical Works,2028103,202107
Rother District Council,27/09/2021,091HOUSING,Housing and Community Services,20114,Bexhill Parks & Open Spaces,B1100,Repairs to Premises,27.56,Saint-Gobain Building Distribution Ltd t/a Jewson,Repairs to Premises - Purchase of Materials - Build Maint,2028034,202107
Rother District Council,27/09/2021,091HOUSING,Housing and Community Services,20261,"TA Purchases (prev - 41 Jameson Mews, Bexhill on Sea)",D2513,Hired and Contracted services,25.43,Lets 2 Share Limited,Hired and contracted services - Service fee paid,2027559,202107
Rother District Council,27/09/2021,091HOUSING,Housing and Community Services,20261,"TA Purchases (prev - 41 Jameson Mews, Bexhill on Sea)",D2513,Hired and Contracted services,25.43,Lets 2 Share Limited,Hired and contracted services - Service fee paid,2027559,202107
Rother District Council,27/09/2021,091HOUSING,Housing and Community Services,20261,"TA Purchases (prev - 41 Jameson Mews, Bexhill on Sea)",D2513,Hired and Contracted services,25.43,Lets 2 Share Limited,Hired and contracted services - Service fee paid,2027559,202107
Rother District Council,27/09/2021,091HOUSING,Housing and Community Services,20261,"TA Purchases (prev - 41 Jameson Mews, Bexhill on Sea)",D2513,Hired and Contracted services,25.43,Lets 2 Share Limited,Hired and contracted services - Service fee paid,2027559,202107
Rother District Council,27/09/2021,091HOUSING,Housing and Community Services,20261,"TA Purchases (prev - 41 Jameson Mews, Bexhill on Sea)",D2513,Hired and Contracted services,25.43,Lets 2 Share Limited,Hired and contracted services - Service fee paid,2027559,202107
Rother District Council,27/09/2021,091HOUSING,Housing and Community Services,20137,Car Parks,D1201,Equipment & Materials,867.60,Contract Sign Systems,Equipment & Materials - Purchase of Signs,2027568,202107
Rother District Council,27/09/2021,091HOUSING,Housing and Community Services,20200,Housing Needs - HB (Housing Benefit),D2514,Accommodation Costs,388.50,SDR Living Ltd,Accommodation Costs,2027587,202107
Rother District Council,27/09/2021,091HOUSING,Housing and Community Services,20200,Housing Needs - HB (Housing Benefit),D2514,Accommodation Costs,310.80,SDR Living Ltd,Accommodation Costs,2027587,202107
Rother District Council,27/09/2021,091HOUSING,Housing and Community Services,20200,Housing Needs - HB (Housing Benefit),D2514,Accommodation Costs,77.70,SDR Living Ltd,Accommodation Costs,2027587,202107
Rother District Council,27/09/2021,091HOUSING,Housing and Community Services,20200,Housing Needs - HB (Housing Benefit),D2514,Accommodation Costs,361.20,SDR Living Ltd,Accommodation Costs,2027587,202107
Rother District Council,27/09/2021,091HOUSING,Housing and Community Services,20200,Housing Needs - HB (Housing Benefit),D2514,Accommodation Costs,90.30,SDR Living Ltd,Accommodation Costs,2027587,202107
Rother District Council,27/09/2021,091HOUSING,Housing and Community Services,20200,Housing Needs - HB (Housing Benefit),D2514,Accommodation Costs,246.00,SDR Living Ltd,Accommodation Costs,2027587,202107
Rother District Council,27/09/2021,091HOUSING,Housing and Community Services,20200,Housing Needs - HB (Housing Benefit),D2514,Accommodation Costs,344.40,SDR Living Ltd,Accommodation Costs,2027587,202107
Rother District Council,27/09/2021,091HOUSING,Housing and Community Services,20200,Housing Needs - HB (Housing Benefit),D2514,Accommodation Costs,86.10,SDR Living Ltd,Accommodation Costs,2027587,202107
Rother District Council,27/09/2021,091HOUSING,Housing and Community Services,20200,Housing Needs - HB (Housing Benefit),D2514,Accommodation Costs,277.20,SDR Living Ltd,Accommodation Costs,2027587,202107
Rother District Council,27/09/2021,091HOUSING,Housing and Community Services,20200,Housing Needs - HB (Housing Benefit),D2514,Accommodation Costs,69.30,SDR Living Ltd,Accommodation Costs,2027587,202107
Rother District Council,27/09/2021,091HOUSING,Housing and Community Services,20200,Housing Needs - HB (Housing Benefit),D2514,Accommodation Costs,310.80,SDR Living Ltd,Accommodation Costs,2027587,202107
Rother District Council,27/09/2021,091HOUSING,Housing and Community Services,20200,Housing Needs - HB (Housing Benefit),D2514,Accommodation Costs,77.70,SDR Living Ltd,Accommodation Costs,2027587,202107
Rother District Council,27/09/2021,091HOUSING,Housing and Community Services,20329,Rough Sleeping Initiative,D2514,Accommodation Costs,430.50,SDR Living Ltd,Accommodation Costs,2027587,202107
Rother District Council,27/09/2021,091HOUSING,Housing and Community Services,20200,Housing Needs - HB (Housing Benefit),D2514,Accommodation Costs,361.20,SDR Living Ltd,Accommodation Costs,2027587,202107
Rother District Council,27/09/2021,091HOUSING,Housing and Community Services,20200,Housing Needs - HB (Housing Benefit),D2514,Accommodation Costs,90.30,SDR Living Ltd,Accommodation Costs,2027587,202107
Rother District Council,27/09/2021,091HOUSING,Housing and Community Services,20200,Housing Needs - HB (Housing Benefit),D2514,Accommodation Costs,430.50,SDR Living Ltd,Accommodation Costs,2027587,202107
Rother District Council,27/09/2021,091HOUSING,Housing and Community Services,20200,Housing Needs - HB (Housing Benefit),D2514,Accommodation Costs,295.00,SDR Living Ltd,Accommodation Costs,2027587,202107
Rother District Council,27/09/2021,091HOUSING,Housing and Community Services,20200,Housing Needs - HB (Housing Benefit),D2514,Accommodation Costs,94.40,SDR Living Ltd,Accommodation Costs,2027587,202107
Rother District Council,27/09/2021,091HOUSING,Housing and Community Services,20200,Housing Needs - HB (Housing Benefit),D2514,Accommodation Costs,23.60,SDR Living Ltd,Accommodation Costs,2027587,202107
Rother District Council,27/09/2021,091HOUSING,Housing and Community Services,20200,Housing Needs - HB (Housing Benefit),D2514,Accommodation Costs,344.40,SDR Living Ltd,Accommodation Costs,2027587,202107
Rother District Council,27/09/2021,091HOUSING,Housing and Community Services,20200,Housing Needs - HB (Housing Benefit),D2514,Accommodation Costs,86.10,SDR Living Ltd,Accommodation Costs,2027587,202107
Rother District Council,27/09/2021,091HOUSING,Housing and Community Services,20200,Housing Needs - HB (Housing Benefit),D2514,Accommodation Costs,344.40,SDR Living Ltd,Accommodation Costs,2027587,202107
Rother District Council,27/09/2021,091HOUSING,Housing and Community Services,20200,Housing Needs - HB (Housing Benefit),D2514,Accommodation Costs,86.10,SDR Living Ltd,Accommodation Costs,2027587,202107
Rother District Council,27/09/2021,091HOUSING,Housing and Community Services,20200,Housing Needs - HB (Housing Benefit),D2514,Accommodation Costs,310.80,SDR Living Ltd,Accommodation Costs,2027587,202107
Rother District Council,27/09/2021,091HOUSING,Housing and Community Services,20200,Housing Needs - HB (Housing Benefit),D2514,Accommodation Costs,77.70,SDR Living Ltd,Accommodation Costs,2027587,202107
Rother District Council,27/09/2021,091HOUSING,Housing and Community Services,20200,Housing Needs - HB (Housing Benefit),D2514,Accommodation Costs,151.20,SDR Living Ltd,Accommodation Costs,2027587,202107
Rother District Council,27/09/2021,091HOUSING,Housing and Community Services,20200,Housing Needs - HB (Housing Benefit),D2514,Accommodation Costs,37.80,SDR Living Ltd,Accommodation Costs,2027587,202107
Rother District Council,27/09/2021,091HOUSING,Housing and Community Services,20200,Housing Needs - HB (Housing Benefit),D2514,Accommodation Costs,277.20,SDR Living Ltd,Accommodation Costs,2027587,202107
Rother District Council,27/09/2021,091HOUSING,Housing and Community Services,20200,Housing Needs - HB (Housing Benefit),D2514,Accommodation Costs,69.30,SDR Living Ltd,Accommodation Costs,2027587,202107
Rother District Council,27/09/2021,091HOUSING,Housing and Community Services,20200,Housing Needs - HB (Housing Benefit),D2514,Accommodation Costs,99.00,SDR Living Ltd,Accommodation Costs,2027587,202107
Rother District Council,27/09/2021,091HOUSING,Housing and Community Services,20329,Rough Sleeping Initiative,D2514,Accommodation Costs,354.00,SDR Living Ltd,Accommodation Costs,2027587,202107
Rother District Council,27/09/2021,091HOUSING,Housing and Community Services,20329,Rough Sleeping Initiative,D2514,Accommodation Costs,247.50,SDR Living Ltd,Accommodation Costs,2027587,202107
Rother District Council,27/09/2021,091HOUSING,Housing and Community Services,20200,Housing Needs - HB (Housing Benefit),D2514,Accommodation Costs,415.00,Roost People Ltd,Accommodation Costs,2027588,202107
Rother District Council,27/09/2021,091HOUSING,Housing and Community Services,20200,Housing Needs - HB (Housing Benefit),D2514,Accommodation Costs,390.00,Roost People Ltd,Accommodation Costs,2027588,202107
Rother District Council,27/09/2021,091HOUSING,Housing and Community Services,20200,Housing Needs - HB (Housing Benefit),D2514,Accommodation Costs,390.00,Roost People Ltd,Accommodation Costs,2027588,202107
Rother District Council,27/09/2021,091HOUSING,Housing and Community Services,20200,Housing Needs - HB (Housing Benefit),D2514,Accommodation Costs,390.00,Roost People Ltd,Accommodation Costs,2027588,202107
Rother District Council,27/09/2021,091HOUSING,Housing and Community Services,20200,Housing Needs - HB (Housing Benefit),D2514,Accommodation Costs,390.00,Roost People Ltd,Accommodation Costs,2027588,202107
Rother District Council,27/09/2021,091HOUSING,Housing and Community Services,20200,Housing Needs - HB (Housing Benefit),D2514,Accommodation Costs,390.00,Roost People Ltd,Accommodation Costs,2027588,202107
Rother District Council,27/09/2021,091HOUSING,Housing and Community Services,20200,Housing Needs - HB (Housing Benefit),D2514,Accommodation Costs,390.00,Roost People Ltd,Accommodation Costs,2027588,202107
Rother District Council,27/09/2021,091HOUSING,Housing and Community Services,20200,Housing Needs - HB (Housing Benefit),D2514,Accommodation Costs,390.00,Roost People Ltd,Accommodation Costs,2027588,202107
Rother District Council,27/09/2021,091HOUSING,Housing and Community Services,20200,Housing Needs - HB (Housing Benefit),D2514,Accommodation Costs,340.00,Roost People Ltd,Accommodation Costs,2027588,202107
Rother District Council,27/09/2021,091HOUSING,Housing and Community Services,20200,Housing Needs - HB (Housing Benefit),D2514,Accommodation Costs,315.00,Roost People Ltd,Accommodation Costs,2027588,202107
Rother District Council,27/09/2021,091HOUSING,Housing and Community Services,20329,Rough Sleeping Initiative,D2514,Accommodation Costs,315.00,Roost People Ltd,Accommodation Costs,2027588,202107
Rother District Council,27/09/2021,091HOUSING,Housing and Community Services,20200,Housing Needs - HB (Housing Benefit),D2514,Accommodation Costs,390.00,Roost People Ltd,Accommodation Costs,2027588,202107
Rother District Council,27/09/2021,091HOUSING,Housing and Community Services,20200,Housing Needs - HB (Housing Benefit),D2514,Accommodation Costs,340.00,Roost People Ltd,Accommodation Costs,2027588,202107
Rother District Council,27/09/2021,091HOUSING,Housing and Community Services,20200,Housing Needs - HB (Housing Benefit),D2514,Accommodation Costs,252.00,Savoy Court Hotel Ltd,Accommodation Costs,2027683,202107
Rother District Council,27/09/2021,091HOUSING,Housing and Community Services,20200,Housing Needs - HB (Housing Benefit),D2514,Accommodation Costs,63.00,Savoy Court Hotel Ltd,Accommodation Costs,2027683,202107
Rother District Council,27/09/2021,091HOUSING,Housing and Community Services,20200,Housing Needs - HB (Housing Benefit),D2514,Accommodation Costs,330.00,Savoy Court Hotel Ltd,Accommodation Costs,2027684,202107
Rother District Council,27/09/2021,091HOUSING,Housing and Community Services,20200,Housing Needs - HB (Housing Benefit),D2514,Accommodation Costs,44.00,Savoy Court Hotel Ltd,Accommodation Costs,2027684,202107
Rother District Council,27/09/2021,091HOUSING,Housing and Community Services,20200,Housing Needs - HB (Housing Benefit),D2514,Accommodation Costs,11.00,Savoy Court Hotel Ltd,Accommodation Costs,2027684,202107
Rother District Council,27/09/2021,101RESOURCES,Resources,20242,Communications-Phones,D2621,Telephones,305.29,BT British Telecommunications plc,Telephones - BT-Rental-General,2027955,202109
Rother District Council,27/09/2021,101RESOURCES,Resources,20209,Corporate management,D2513,Hired and Contracted services,40.00,BT British Telecommunications plc,Interest Paid - Late Invoice Payment Fee,2027955,202109
Rother District Council,27/09/2021,101RESOURCES,Resources,20216,Cost Of Collection,D2509,Consultants and Other Services,600.00,Airey Consultancy Services Ltd,Consultants and other services - Consultants Fees,2028196,202107
Rother District Council,28/09/2021,081ACQUISIT,"Acquisitions, Transformation and Regeneration",20144,Property Management,D2513,Hired and Contracted services,30.00,H M Land Registry,Hired and contracted services - Land Registry-Property Management,2028655,202108
Rother District Council,28/09/2021,031RESOURCES,Chief Executive & Corporate Core,20281,Establishing a Bexhill Town Council,D2513,Hired and Contracted services,150.00,REDACTED PERSONAL DATA,Hired and contracted services - Service fee paid,2027801,202107
Rother District Council,28/09/2021,041ENVIRON,Environmental Services,32144,EH Environmental Services Admin R + W Partnership,D2513,Hired and Contracted services,6.00,H M Land Registry,Hired and contracted services - Env H-Land Registry,2028655,202108
Rother District Council,28/09/2021,041ENVIRON,Environmental Services,32134,EH Pollution R + W Partnership,D2513,Hired and Contracted services,6.00,H M Land Registry,Hired and contracted services - Env H-Land Registry,2028655,202108
Rother District Council,28/09/2021,041ENVIRON,Environmental Services,20129,Community Safety - CCTV costs only,D2513,Hired and Contracted services,6.00,H M Land Registry,Hired and contracted services - Env H-Land Registry,2028655,202108
Rother District Council,28/09/2021,041ENVIRON,Environmental Services,20126,Sub Standard Housing,D2513,Hired and Contracted services,18.00,H M Land Registry,Hired and contracted services - Council Tax-Land Registry Enquiries,2028655,202108
Rother District Council,28/09/2021,091HOUSING,Housing and Community Services,20115,Rye Area Parks & Gardens,B2421,Water,46.10,Scottish Water Business Stream Limited,Water - Water Charges,2027632,202107
Rother District Council,28/09/2021,091HOUSING,Housing and Community Services,20125,Coast Protection,B1100,Repairs to Premises,10.82,Trade UK Account (Screwfix & B&Q),Repairs to Premises - Purchase of Materials - Build Maint,2027650,202107
Rother District Council,28/09/2021,091HOUSING,Housing and Community Services,20137,Car Parks,B1100,Repairs to Premises,"1,195.60",Flowbird Smart City UK Ltd,Repairs to Premises - Car Park Maintenance,2027676,202107
Rother District Council,28/09/2021,091HOUSING,Housing and Community Services,20137,Car Parks,D2513,Hired and Contracted services,170.00,Contract Sign Systems,Hired and contracted services - Delivery and/or Packaging of Equipm,2027589,202107
Rother District Council,28/09/2021,091HOUSING,Housing and Community Services,20137,Car Parks,D1201,Equipment & Materials,"4,028.56",Contract Sign Systems,Equipment & Materials - Purchase of Signs,2027589,202107
Rother District Council,28/09/2021,091HOUSING,Housing and Community Services,20137,Car Parks,D1201,Equipment & Materials,15.00,Flowbird Smart City UK Ltd,Equipment & Materials - Carriage/Handling Charge,2027676,202107
Rother District Council,28/09/2021,091HOUSING,Housing and Community Services,20137,Car Parks,D1201,Equipment & Materials,135.00,Flowbird Smart City UK Ltd,Equipment & Materials - Car Parks various,2027676,202107
Rother District Council,28/09/2021,091HOUSING,Housing and Community Services,20200,Housing Needs - HB (Housing Benefit),D2509,Consultants and Other Services,5.50,NEC Software Solutions UK Ltd,Consultants and other services - Consultants Fees,2027649,202107
Rother District Council,28/09/2021,091HOUSING,Housing and Community Services,20236,Customer Services and Development,D2635,Computer Licences,19.95,Click4Assistance,Computer Licences - Maintenance/Upgrading of Software,2028517,202108
Rother District Council,28/09/2021,091HOUSING,Housing and Community Services,20107,Camber Beach & Foreshore,D2352,Clothing and Uniforms,47.80,Southeast Marketing Ltd T/A GP PromoWear,Clothing and Uniforms - Mens Uniform-Shirt,2027615,202107
Rother District Council,28/09/2021,091HOUSING,Housing and Community Services,70714,Capital - Grants Halls and Community Projects,N1011,Capital Grants,"6,153.00",Battle Preschool Playgroup,Capital Grants - Community Grants Scheme,2028125,202107
Rother District Council,28/09/2021,091HOUSING,Housing and Community Services,70744,Capital - 1066 Walk Pathways,N1004,Architects & Consultant Fees,"5,750.00",18 Hours Ltd,Architects & Consultant Fees Capital-Architect and Conslt Fees,2027922,202107
Rother District Council,28/09/2021,091HOUSING,Housing and Community Services,20114,Bexhill Parks & Open Spaces,B1100,Repairs to Premises,148.00,Cleansing Service Group Ltd,Repairs to Premises,2027631,202107
Rother District Council,28/09/2021,101RESOURCES,Resources,20216,Cost Of Collection,D2626,Postages,904.06,DSI Billing Services Ltd,Postages - DSI Billing,2027690,202107
Rother District Council,28/09/2021,101RESOURCES,Resources,20216,Cost Of Collection,D2509,Consultants and Other Services,38.08,NEC Software Solutions UK Ltd,Consultants and other services - Consultants Fees,2027649,202107
Rother District Council,28/09/2021,101RESOURCES,Resources,20217,Reliefs & Benefits-Council Tax Benefit,D2509,Consultants and Other Services,69.30,NEC Software Solutions UK Ltd,Consultants and other services - Consultants Fees,2027649,202107
Rother District Council,28/09/2021,071STRAT,Strategy and Planning,20258,BC Dangerous Structures H+R Partnership,D2513,Hired and Contracted services,6.00,H M Land Registry,Hired and contracted services - Env H-Land Registry,2028655,202108
Rother District Council,28/09/2021,071STRAT,Strategy and Planning,20246,Planning Applications,D2509,Consultants and Other Services,"4,214.40",Capita Business Services Ltd,Consultants and other services - Consultants Fees,2027679,202107
Rother District Council,29/09/2021,031RESOURCES,Chief Executive & Corporate Core,20173,Administrative Offices - Town Hall,B1100,Repairs to Premises,19.02,Saint-Gobain Building Distribution Ltd t/a Jewson,Repairs to Premises - Purchase of Materials - Build Maint,2028035,202107
Rother District Council,29/09/2021,031RESOURCES,Chief Executive & Corporate Core,20281,Establishing a Bexhill Town Council,D2513,Hired and Contracted services,750.00,REDACTED PERSONAL DATA,Hired and contracted services - Service fee paid,2028007,202107
Rother District Council,29/09/2021,031RESOURCES,Chief Executive & Corporate Core,20281,Establishing a Bexhill Town Council,D2635,Computer Licences,37.50,Barry Technology Ltd,Computer Licences - New Computer Software,2027784,202107
Rother District Council,29/09/2021,031RESOURCES,Chief Executive & Corporate Core,20173,Administrative Offices - Town Hall,B2612,Cleaning materials,100.88,Wightman and Parrish Ltd,Cleaning materials - Premises,2027677,202107
Rother District Council,29/09/2021,041ENVIRON,Environmental Services,32144,EH Environmental Services Admin R + W Partnership,A2203,Training,65.00,CIEH-Chartered Institute of Environmental Health,Training,2027675,202107
Rother District Council,29/09/2021,091HOUSING,Housing and Community Services,20128,Public Conveniences,B2421,Water,148.04,Scottish Water Business Stream Limited,Water - Water Charges,2027651,202107
Rother District Council,29/09/2021,091HOUSING,Housing and Community Services,20128,Public Conveniences,B2421,Water,111.42,Scottish Water Business Stream Limited,Water - Water Charges,2027652,202107
Rother District Council,29/09/2021,091HOUSING,Housing and Community Services,20236,Customer Services and Development,A2203,Training,250.00,Institute of Customer Service,Training,2028395,202108
Rother District Council,29/09/2021,091HOUSING,Housing and Community Services,20128,Public Conveniences,B1100,Repairs to Premises,"1,022.00",I.B. Lock & Safe,Third party payment private contractors - Payments to Contractor,2027686,202107
Rother District Council,29/09/2021,091HOUSING,Housing and Community Services,20128,Public Conveniences,B2422,Sewerage,166.95,Scottish Water Business Stream Limited,Sewerage - Sewerage Charges,2027651,202107
Rother District Council,29/09/2021,091HOUSING,Housing and Community Services,20128,Public Conveniences,B2422,Sewerage,154.31,Scottish Water Business Stream Limited,Sewerage - Sewerage Charges,2027652,202107
Rother District Council,29/09/2021,091HOUSING,Housing and Community Services,20137,Car Parks,B1100,Repairs to Premises,30.00,I.B. Lock & Safe,Repairs to Premises - Purchase of Materials - Build Maint,2027633,202107
Rother District Council,29/09/2021,091HOUSING,Housing and Community Services,20261,"TA Purchases (prev - 41 Jameson Mews, Bexhill on Sea)",D2513,Hired and Contracted services,572.00,Lets 2 Share Limited,Hired and contracted services - Service fee paid,2027661,202107
Rother District Council,29/09/2021,091HOUSING,Housing and Community Services,20261,"TA Purchases (prev - 41 Jameson Mews, Bexhill on Sea)",D2513,Hired and Contracted services,24.00,Lets 2 Share Limited,Hired and contracted services - Service fee paid,2027664,202107
Rother District Council,29/09/2021,091HOUSING,Housing and Community Services,20261,"TA Purchases (prev - 41 Jameson Mews, Bexhill on Sea)",D2513,Hired and Contracted services,24.00,Lets 2 Share Limited,Hired and contracted services - Service fee paid,2027664,202107
Rother District Council,29/09/2021,091HOUSING,Housing and Community Services,20261,"TA Purchases (prev - 41 Jameson Mews, Bexhill on Sea)",D2513,Hired and Contracted services,24.00,Lets 2 Share Limited,Hired and contracted services - Service fee paid,2027664,202107
Rother District Council,29/09/2021,091HOUSING,Housing and Community Services,20261,"TA Purchases (prev - 41 Jameson Mews, Bexhill on Sea)",D2513,Hired and Contracted services,24.00,Lets 2 Share Limited,Hired and contracted services - Service fee paid,2027664,202107
Rother District Council,29/09/2021,091HOUSING,Housing and Community Services,20261,"TA Purchases (prev - 41 Jameson Mews, Bexhill on Sea)",D2513,Hired and Contracted services,24.00,Lets 2 Share Limited,Hired and contracted services - Service fee paid,2027664,202107
Rother District Council,29/09/2021,091HOUSING,Housing and Community Services,20261,"TA Purchases (prev - 41 Jameson Mews, Bexhill on Sea)",D2513,Hired and Contracted services,50.00,Lets 2 Share Limited,Hired and contracted services - Service fee paid,2027664,202107
Rother District Council,29/09/2021,091HOUSING,Housing and Community Services,20145,Maintenance Services,D2509,Consultants and Other Services,"2,250.00",ADM Training Ltd,Consultants and other services - Consultants Fees,2027687,202107
Rother District Council,29/09/2021,091HOUSING,Housing and Community Services,20204,Housing Administration Account,A1110,Agency Staff,"1,020.00",Oyster Partnership,Agency Staff,2027685,202107
Rother District Council,29/09/2021,091HOUSING,Housing and Community Services,20204,Housing Administration Account,A1110,Agency Staff,"1,260.00","G2V Recruitment Group Ltd, t/a Vivid Resourcing",Agency Staff,2027775,202107
Rother District Council,29/09/2021,101RESOURCES,Resources,20239,Computer Services,D2635,Computer Licences,585.80,Softcat PLC,Computer Licences - Computer Licence Renewal,2027678,202107
Rother District Council,30/09/2021,081ACQUISIT,"Acquisitions, Transformation and Regeneration",20267,Property Investment Strategy - 18-40 Beeching Road ( Land and Buildings),B2422,Sewerage,25.40,Scottish Water Business Stream Limited,Sewerage - Sewerage Charges,2027745,202107
Rother District Council,30/09/2021,081ACQUISIT,"Acquisitions, Transformation and Regeneration",20146,West Trading Estate,B1100,Repairs to Premises,600.00,Clearway Environmental Services (UK) Ltd,Repairs to Premises - Repairs Refurbishment of premises,2027713,202107
Rother District Council,30/09/2021,081ACQUISIT,"Acquisitions, Transformation and Regeneration",20144,Property Management,B1100,Repairs to Premises,450.00,REDACTED PERSONAL DATA,Repairs to Premises - Energy Performance Certificate,2027787,202107
Rother District Council,30/09/2021,081ACQUISIT,"Acquisitions, Transformation and Regeneration",20154,Committee Property Account,B1100,Repairs to Premises,405.00,CountyClean Environmental Services Ltd,Repairs to Premises - Cesspool Pumping station service/Call out,2028107,202107
Rother District Council,30/09/2021,081ACQUISIT,"Acquisitions, Transformation and Regeneration",70725,Capital - Blackfriars,N1002,Land & Property fees,273.00,Bevan Brittan LLP,Land & Property fees Capital-Land and Propty - Fees Etc.,2027836,202107
Rother District Council,30/09/2021,081ACQUISIT,"Acquisitions, Transformation and Regeneration",20153,"Elva Business Centre, Bexhill",D2513,Hired and Contracted services,750.50,IWA Consulting Engineers Ltd,Hired and contracted services - Cost of Survey,2027762,202107
Rother District Council,30/09/2021,081ACQUISIT,"Acquisitions, Transformation and Regeneration",20104,Ancient Monuments & Gazebo,D2983,Professional Services - Surveys and Enquiries,"1,000.00",Thomas Ford and Partners,Hired and contracted services - Cost of Survey,2027776,202107
Rother District Council,30/09/2021,081ACQUISIT,"Acquisitions, Transformation and Regeneration",20153,"Elva Business Centre, Bexhill",D2513,Hired and Contracted services,500.00,IWA Consulting Engineers Ltd,Hired and contracted services - Cost of Survey,2027859,202107
Rother District Council,30/09/2021,081ACQUISIT,"Acquisitions, Transformation and Regeneration",20143,Community Strategy,D2923,Grants made,"50,000.00",Sussex Wildlife Trust,Grants made - No VAT,2027759,202107
Rother District Council,30/09/2021,081ACQUISIT,"Acquisitions, Transformation and Regeneration",70736,Capital - 18-40 Beeching Close Refurbishment,N1003,Construction/Conversion,"128,663.90",Alfa Electric Ltd,Construction/Conversion Capital-Contract Payments - General,2028130,202107
Rother District Council,30/09/2021,081ACQUISIT,"Acquisitions, Transformation and Regeneration",70725,Capital - Blackfriars,N1004,Architects & Consultant Fees,"1,150.00",GTA Civils Ltd,Architects & Consultant Fees Capital-Architect and Conslt Fees,2027777,202107
Rother District Council,30/09/2021,081ACQUISIT,"Acquisitions, Transformation and Regeneration",70737,Capital � Barnhorn Green,N1004,Architects & Consultant Fees,"4,000.00",R H Partnership Architects Ltd,Architects & Consultant Fees Capital-Architect and Conslt Fees,2027900,202107
Rother District Council,30/09/2021,081ACQUISIT,"Acquisitions, Transformation and Regeneration",70754,Capital - King Offa Residential Development Scheme,N1004,Architects & Consultant Fees,"34,125.00",MH Architects Ltd,Architects & Consultant Fees Capital-Architect and Conslt Fees,2027958,202107
Rother District Council,30/09/2021,031RESOURCES,Chief Executive & Corporate Core,20171,Human Resources,A2203,Training,287.50,Solace in Business,Training,2028033,202107
Rother District Council,30/09/2021,031RESOURCES,Chief Executive & Corporate Core,20162,Electoral Registration,D2415,Printing by external suppliers,"1,372.08",Civica Election Services Ltd,Printing by external suppliers - Printing (Not from RDC Print Room),2027681,202107
Rother District Council,30/09/2021,031RESOURCES,Chief Executive & Corporate Core,20171,Human Resources,D2513,Hired and Contracted services,36.60,Computershare Voucher Services,Hired and contracted services - Child Care Voucher Service Charge,2028663,202108
Rother District Council,30/09/2021,031RESOURCES,Chief Executive & Corporate Core,20175,Administrative Offices - T.H. Annex (NOT CHP),B2611,Contract cleaning,204.00,Abacus Main Ltd,Contract cleaning - Office Cleaning,2027863,202107
Rother District Council,30/09/2021,031RESOURCES,Chief Executive & Corporate Core,70759,Capital - Town Hall Renaissance Project,N1003,Construction/Conversion,"2,468.40",Hailsham Roadway Construction Ltd,Construction/Conversion Capital-Contract Payments - General,2027980,202107
Rother District Council,30/09/2021,031RESOURCES,Chief Executive & Corporate Core,70759,Capital - Town Hall Renaissance Project,N1004,Architects & Consultant Fees,"8,500.00",Robinson Low Francis LLP,Architects & Consultant Fees Capital-Architect and Conslt Fees,2027737,202107
Rother District Council,30/09/2021,031RESOURCES,Chief Executive & Corporate Core,70759,Capital - Town Hall Renaissance Project,N1004,Architects & Consultant Fees,"16,548.10",Southern Testing Laboratories Limited,Architects & Consultant Fees Capital-Architect and Conslt Fees,2027881,202107
Rother District Council,30/09/2021,031RESOURCES,Chief Executive & Corporate Core,70759,Capital - Town Hall Renaissance Project,N1004,Architects & Consultant Fees,"3,245.00",Lizard Landscape Design Ltd,Architects & Consultant Fees Capital-Architect and Conslt Fees,2027981,202108
Rother District Council,30/09/2021,041ENVIRON,Environmental Services,32142,EH Taxi and Private Hire Licenses R + W Partnership,D2513,Hired and Contracted services,400.00,DBS The Disclosure and Barring Service,Hired and contracted services - Service fee paid,2027747,202107
Rother District Council,30/09/2021,041ENVIRON,Environmental Services,32134,EH Pollution R + W Partnership,D1201,Equipment & Materials,929.00,Cirrus Research PLC,Equipment & Materials - EnvH- Pollution Equipment,2027714,202107
Rother District Council,30/09/2021,041ENVIRON,Environmental Services,32134,EH Pollution R + W Partnership,D1201,Equipment & Materials,48.00,Cirrus Research PLC,Equipment & Materials - Carriage/Handling Charge,2027714,202107
Rother District Council,30/09/2021,041ENVIRON,Environmental Services,32136,EH Pest Control R + W Partnership,C1104,Derv,3.80,Allstar Business Solutions,Derv - Fuel Service fee payable on fuel cards,2028627,202108
Rother District Council,30/09/2021,041ENVIRON,Environmental Services,70706,Capital - Disabled Facilities Grant,N1012,Capital Advances,"5,074.09",REDACTED PERSONAL DATA,Capital Advances Disabled Facilities Grant,2027738,202107
Rother District Council,30/09/2021,041ENVIRON,Environmental Services,70706,Capital - Disabled Facilities Grant,N1012,Capital Advances,"2,308.74",Peabody South East Ltd,Capital Advances Disabled Facilities Grant,2027739,202107
Rother District Council,30/09/2021,041ENVIRON,Environmental Services,32136,EH Pest Control R + W Partnership,C1104,Derv,47.50,Allstar Business Solutions,Derv,2028627,202108
Rother District Council,30/09/2021,041ENVIRON,Environmental Services,32136,EH Pest Control R + W Partnership,C1104,Derv,57.50,Allstar Business Solutions,Derv,2028627,202108
Rother District Council,30/09/2021,091HOUSING,Housing and Community Services,20128,Public Conveniences,B2421,Water,530.23,Scottish Water Business Stream Limited,Water - Water Charges,2027744,202107
Rother District Council,30/09/2021,091HOUSING,Housing and Community Services,20133,Refuse Collection,E2302,Third party payment private contractors,320.00,Sussex Waste Management Ltd,Third party payment private contractors - Waste Collection Contract Variable cost to RDC,2027795,202107
Rother District Council,30/09/2021,091HOUSING,Housing and Community Services,20133,Refuse Collection,E2302,Third party payment private contractors,520.00,Sussex Waste Management Ltd,Third party payment private contractors - Waste Collection Contract Variable cost to RDC,2027796,202107
Rother District Council,30/09/2021,091HOUSING,Housing and Community Services,20133,Refuse Collection,E2302,Third party payment private contractors,42.52,CFH Docmail Ltd,Third party payment private contractors - Payments to Contractor,2027704,202107
Rother District Council,30/09/2021,091HOUSING,Housing and Community Services,20133,Refuse Collection,E2302,Third party payment private contractors,156.12,CFH Docmail Ltd,Third party payment private contractors - Payments to Contractor,2027705,202107
Rother District Council,30/09/2021,091HOUSING,Housing and Community Services,20133,Refuse Collection,E2302,Third party payment private contractors,349.91,Biffa Waste Services Ltd,Third party payment private contractors - Commercial Waste Collection Contract,2027703,202107
Rother District Council,30/09/2021,091HOUSING,Housing and Community Services,20133,Refuse Collection,E2302,Third party payment private contractors,95.10,Data Shredding Services Ltd,Third party payment private contractors - Commercial Waste Collection Contract,2027953,202107
Rother District Council,30/09/2021,091HOUSING,Housing and Community Services,20114,Bexhill Parks & Open Spaces,B2422,Sewerage,235.00,CountyClean Environmental Services Ltd,Sewerage Parks- Emptying of Cesspit,2027898,202107
Rother District Council,30/09/2021,091HOUSING,Housing and Community Services,20128,Public Conveniences,B2422,Sewerage,680.04,Scottish Water Business Stream Limited,Sewerage - Sewerage Charges,2027744,202107
Rother District Council,30/09/2021,091HOUSING,Housing and Community Services,20114,Bexhill Parks & Open Spaces,B1100,Repairs to Premises,14.99,C Brewer and Sons Ltd,Repairs to Premises - Purchase of Materials - Build Maint,2027841,202107
Rother District Council,30/09/2021,091HOUSING,Housing and Community Services,20114,Bexhill Parks & Open Spaces,B1100,Repairs to Premises,136.30,Martello Plant Hire Ltd,Repairs to Premises - Purchase of Materials - Build Maint,2028158,202108
Rother District Council,30/09/2021,091HOUSING,Housing and Community Services,20132,Street & Beach Cleansing,D1201,Equipment & Materials,122.40,C Brewer and Sons Ltd,Repairs to Premises - Purchase of Materials - Build Maint,2027840,202107
Rother District Council,30/09/2021,091HOUSING,Housing and Community Services,20128,Public Conveniences,B1100,Repairs to Premises,"1,209.50",Specialist Hygiene Services Ltd,Repairs to Premises - Public Conveniences - Various repairs,2027886,202107
Rother District Council,30/09/2021,091HOUSING,Housing and Community Services,20128,Public Conveniences,B1100,Repairs to Premises,503.50,Specialist Hygiene Services Ltd,Repairs to Premises - Public Conveniences - Various repairs,2027887,202107
Rother District Council,30/09/2021,091HOUSING,Housing and Community Services,20306,Afghan Relocation Assistance Policy,D2513,Hired and Contracted services,56.04,Migrant Help Trading Ltd t/a Clear Voice,Hired and contracted services - Syrian-Translation Services,2027843,202107
Rother District Council,30/09/2021,091HOUSING,Housing and Community Services,20206,UK Resettlement (Syrians),D2513,Hired and Contracted services,26.25,Jigsaw at YMCA Ltd,Hired and contracted services - Syrian-Education-Exempt VAT,2027792,202107
Rother District Council,30/09/2021,091HOUSING,Housing and Community Services,20206,UK Resettlement (Syrians),D2513,Hired and Contracted services,105.00,Jigsaw at YMCA Ltd,Hired and contracted services - Syrian-Education-Exempt VAT,2027793,202107
Rother District Council,30/09/2021,091HOUSING,Housing and Community Services,20206,UK Resettlement (Syrians),D2513,Hired and Contracted services,805.60,REDACTED PERSONAL DATA,Hired and contracted services - Syrian-Education-Exempt VAT,2027802,202107
Rother District Council,30/09/2021,091HOUSING,Housing and Community Services,20206,UK Resettlement (Syrians),D2513,Hired and Contracted services,588.92,247 Transport Solutions Ltd,Hired and contracted services - Syrian Resettlement Programme-Travel,2027789,202107
Rother District Council,30/09/2021,091HOUSING,Housing and Community Services,20206,UK Resettlement (Syrians),D2513,Hired and Contracted services,120.00,SD Blything Plumbing & Heating,Hired and contracted services - Syrian Misc,2027954,202107
Rother District Council,30/09/2021,091HOUSING,Housing and Community Services,20108,Bexhill Promenade & Foreshore,D2513,Hired and Contracted services,80.00,Impact Scaffolding Ltd,Hired and contracted services - Service fee paid,2027691,202107
Rother District Council,30/09/2021,091HOUSING,Housing and Community Services,20108,Bexhill Promenade & Foreshore,D2513,Hired and Contracted services,80.00,Impact Scaffolding Ltd,Hired and contracted services - Service fee paid,2027692,202107
Rother District Council,30/09/2021,091HOUSING,Housing and Community Services,20108,Bexhill Promenade & Foreshore,B1100,Repairs to Premises,100.00,Meridian Toilet Hire,Hired and contracted services - Service fee paid,2027715,202107
Rother District Council,30/09/2021,091HOUSING,Housing and Community Services,20145,Maintenance Services,D2513,Hired and Contracted services,125.00,Amstech Inspections & Testing Ltd,Hired and contracted services - Service fee paid,2027770,202107
Rother District Council,30/09/2021,091HOUSING,Housing and Community Services,20145,Maintenance Services,D2513,Hired and Contracted services,125.00,Amstech Inspections & Testing Ltd,Hired and contracted services - Service fee paid,2027771,202107
Rother District Council,30/09/2021,091HOUSING,Housing and Community Services,20145,Maintenance Services,D2513,Hired and Contracted services,125.00,Amstech Inspections & Testing Ltd,Hired and contracted services - Service fee paid,2027772,202107
Rother District Council,30/09/2021,091HOUSING,Housing and Community Services,20145,Maintenance Services,D2513,Hired and Contracted services,85.00,Amstech Inspections & Testing Ltd,Hired and contracted services - Service fee paid,2027773,202107
Rother District Council,30/09/2021,091HOUSING,Housing and Community Services,20145,Maintenance Services,D2513,Hired and Contracted services,325.00,R French and  Son Ltd,Hired and contracted services - Service fee paid,2027860,202107
Rother District Council,30/09/2021,091HOUSING,Housing and Community Services,20145,Maintenance Services,D2513,Hired and Contracted services,85.00,Amstech Inspections & Testing Ltd,Hired and contracted services - Service fee paid,2027967,202107
Rother District Council,30/09/2021,091HOUSING,Housing and Community Services,20123,Cemeteries,D2513,Hired and Contracted services,645.00,Bexhill Funeral Service,Hired and contracted services - Parks-Public Health Burials,2027829,202107
Rother District Council,30/09/2021,091HOUSING,Housing and Community Services,20139,Abandoned Vehicles,D2513,Hired and Contracted services,"1,200.00",Sussex Waste Management Ltd,Hired and contracted services - Collec / Disposal of Aband Vehicles,2027794,202107
Rother District Council,30/09/2021,091HOUSING,Housing and Community Services,20137,Car Parks,D2513,Hired and Contracted services,"2,658.48",Jade Security Services Ltd,Hired and contracted services - Cash Security Fees-Car Parks,2027902,202107
Rother District Council,30/09/2021,091HOUSING,Housing and Community Services,70744,Capital - 1066 Walk Pathways,N1009,Furniture & Fittings,"13,539.45",The Sussex Sign Company Limited,Furniture and Fittings (Capital spend),2027923,202107
Rother District Council,30/09/2021,091HOUSING,Housing and Community Services,20145,Maintenance Services,C1104,Derv,1.90,Allstar Business Solutions,Derv - Fuel Service fee payable on fuel cards,2028627,202108
Rother District Council,30/09/2021,091HOUSING,Housing and Community Services,20108,Bexhill Promenade & Foreshore,B2611,Contract cleaning,126.00,Abacus Main Ltd,Contract cleaning - Office Cleaning,2027862,202107
Rother District Council,30/09/2021,091HOUSING,Housing and Community Services,20200,Housing Needs - HB (Housing Benefit),D2513,Hired and Contracted services,55.00,Town Taxis,Hired and Contracted services,2027682,202107
Rother District Council,30/09/2021,091HOUSING,Housing and Community Services,20200,Housing Needs - HB (Housing Benefit),D2514,Accommodation Costs,225.00,Solutions Accommodation Providers Ltd,Accommodation Costs,2027756,202107
Rother District Council,30/09/2021,091HOUSING,Housing and Community Services,20200,Housing Needs - HB (Housing Benefit),D2514,Accommodation Costs,900.00,Solutions Accommodation Providers Ltd,Accommodation Costs,2027756,202107
Rother District Council,30/09/2021,091HOUSING,Housing and Community Services,20200,Housing Needs - HB (Housing Benefit),D2513,Hired and Contracted services,38.33,247 Transport Solutions Ltd,Hired and Contracted services,2027790,202107
Rother District Council,30/09/2021,091HOUSING,Housing and Community Services,20204,Housing Administration Account,D2635,Computer Licences,"2,625.00",LHS Locata (Housing Services) Ltd,Computer Licences,2028169,202107
Rother District Council,30/09/2021,091HOUSING,Housing and Community Services,20145,Maintenance Services,C1104,Derv,40.00,Allstar Business Solutions,Derv,2028627,202108
Rother District Council,30/09/2021,091HOUSING,Housing and Community Services,20145,Maintenance Services,C1104,Derv,83.50,Allstar Business Solutions,Derv,2028627,202108
Rother District Council,30/09/2021,101RESOURCES,Resources,20209,Corporate management,D2513,Hired and Contracted services,976.30,allpay.net Ltd,Hired and contracted services - Allpay Card/Rep/Let Chrg - Vatable,2028619,202108
Rother District Council,30/09/2021,101RESOURCES,Resources,20209,Corporate management,D2513,Hired and Contracted services,18.73,allpay.net Ltd,Hired and contracted services - Allpay Card/Rep/Let Chrg - Vatable,2028620,202108
Rother District Council,30/09/2021,101RESOURCES,Resources,20209,Corporate management,D2513,Hired and Contracted services,10.50,allpay.net Ltd,Hired and contracted services - Allpay Card/Rep/Let Chrg - Vatable,2028621,202108
Rother District Council,30/09/2021,101RESOURCES,Resources,20209,Corporate management,D2513,Hired and Contracted services,22.23,allpay.net Ltd,Hired and contracted services - Allpay Card/Rep/Let Chrg - Vatable,2028622,202108
Rother District Council,30/09/2021,101RESOURCES,Resources,20241,Stationery,D2420,General office supplies (Stationery purchased from ext suppliers),15.40,Lyreco UK Limited,General office supplies - Stationery (Stationery Services to buy ONLY),2027693,202107
Rother District Council,30/09/2021,101RESOURCES,Resources,20241,Stationery,D2420,General office supplies (Stationery purchased from ext suppliers),100.94,Lyreco UK Limited,General office supplies - Stationery (Stationery Services to buy ONLY),2027694,202107
Rother District Council,30/09/2021,101RESOURCES,Resources,90000,Balance sheet all accounts,T1002,Childcare Vouchers,563.00,Computershare Voucher Services,Childcare Vouchers,2028663,202108
Rother District Council,30/09/2021,071STRAT,Strategy and Planning,20246,Planning Applications,D2519,Statutory Advertising,366.00,JPIMedia Publishing Ltd,Statutory Advertising - Planadv - Rye+Battle Observer,2027799,202107
Rother District Council,30/09/2021,071STRAT,Strategy and Planning,20246,Planning Applications,D2519,Statutory Advertising,"1,098.00",JPIMedia Publishing Ltd,Statutory Advertising - Planadv - Rye+Battle Observer,2027800,202107
Rother District Council,30/09/2021,071STRAT,Strategy and Planning,20244,General Planning Expenses,D2513,Hired and Contracted services,104.50,Reef Environmental Solutions Ltd,Hired and contracted services - Scanning Services,2027718,202107
Rother District Council,30/09/2021,071STRAT,Strategy and Planning,20253,Conservation & Preservation,D2513,Hired and Contracted services,500.00,Sussex Wildlife Trust,Hired and contracted services - Plan-Ecological Advice,2027761,202107
Rother District Council,30/09/2021,071STRAT,Strategy and Planning,20246,Planning Applications,A1110,Agency Staff,805.80,Hays Specialist Recruitment Ltd,Agency Staff,2027673,202107
Rother District Council,01/10/2021,081ACQUISIT,"Acquisitions, Transformation and Regeneration",20146,West Trading Estate,D1201,Equipment & Materials,490.00,Thompson Advertising,Equipment & Materials - Purchase of Signs,2027735,202107
Rother District Council,01/10/2021,031RESOURCES,Chief Executive & Corporate Core,20175,Administrative Offices - T.H. Annex (NOT CHP),B1100,Repairs to Premises,47.18,Kerry SCS Ltd,Repairs to Premises - Specified Repairs and Works listed,2028115,202107
Rother District Council,01/10/2021,031RESOURCES,Chief Executive & Corporate Core,20173,Administrative Offices - Town Hall,B1100,Repairs to Premises,220.00,REDACTED PERSONAL DATA,Repairs to Premises - Repairs Refurbishment of premises,2027774,202107
Rother District Council,01/10/2021,031RESOURCES,Chief Executive & Corporate Core,20156,Representing Local Interest,D2734,Members Training and Seminars,330.65,Professional Development Group T/A Government Events,Members Training and Seminars,2027844,202107
Rother District Council,01/10/2021,031RESOURCES,Chief Executive & Corporate Core,20173,Administrative Offices - Town Hall,D2513,Hired and Contracted services,322.00,GT Access Ltd,Hired and contracted services - Service fee paid,2028047,202107
Rother District Council,01/10/2021,031RESOURCES,Chief Executive & Corporate Core,20183,Chief Executive,D2738,Conferences,95.83,Event-X Ltd,Conferences - Officers Conference fees,2028036,202107
Rother District Council,01/10/2021,031RESOURCES,Chief Executive & Corporate Core,20281,Establishing a Bexhill Town Council,D2635,Computer Licences,108.00,Waveney IT,Computer Licences - New Computer Software,2028824,202108
Rother District Council,01/10/2021,031RESOURCES,Chief Executive & Corporate Core,20175,Administrative Offices - T.H. Annex (NOT CHP),B2612,Cleaning materials,106.16,Wightman and Parrish Ltd,Cleaning materials - Premises,2027805,202107
Rother District Council,01/10/2021,031RESOURCES,Chief Executive & Corporate Core,20162,Electoral Registration,D1203,Books And Publications,144.00,Thomson Reuters Ltd,Books And Publications - Miscellaneous Legal Reference Books,2027717,202107
Rother District Council,01/10/2021,031RESOURCES,Chief Executive & Corporate Core,20162,Electoral Registration,D1203,Books And Publications,144.00,Thomson Reuters Ltd,Books And Publications - Miscellaneous Legal Reference Books,2027717,202107
Rother District Council,01/10/2021,031RESOURCES,Chief Executive & Corporate Core,20180,Emergency Planning,D2621,Telephones,17.74,Daisy Communications PLC,Telephones,2027766,202108
Rother District Council,01/10/2021,041ENVIRON,Environmental Services,70706,Capital - Disabled Facilities Grant,N1012,Capital Advances,"1,200.00",Peabody South East Ltd,Capital Advances Disabled Facilities Grant,2027733,202107
Rother District Council,01/10/2021,041ENVIRON,Environmental Services,70706,Capital - Disabled Facilities Grant,N1012,Capital Advances,"1,200.00",Peabody South East Ltd,Capital Advances Disabled Facilities Grant,2027734,202107
Rother District Council,01/10/2021,041ENVIRON,Environmental Services,32134,EH Pollution R + W Partnership,D2621,Telephones,17.77,Daisy Communications PLC,Telephones,2027766,202108
Rother District Council,01/10/2021,091HOUSING,Housing and Community Services,20125,Coast Protection,E2302,Third party payment private contractors,400.00,REDACTED PERSONAL DATA,Third party payment private contractors - Fairlight Compressor Maintenance Contract,2027712,202107
Rother District Council,01/10/2021,091HOUSING,Housing and Community Services,20107,Camber Beach & Foreshore,D2621,Telephones,50.95,Beaming Ltd,Telephones - Broadband Connection,2028617,202108
Rother District Council,01/10/2021,091HOUSING,Housing and Community Services,20132,Street & Beach Cleansing,D1201,Equipment & Materials,22.41,Trade UK Account (Screwfix & B&Q),Repairs to Premises - Purchase of Materials - Build Maint,2027698,202107
Rother District Council,01/10/2021,091HOUSING,Housing and Community Services,20128,Public Conveniences,B1100,Repairs to Premises,106.68,Specialist Hygiene Services Ltd,Repairs to Premises - Public Conveniences - Various repairs,2028005,202108
